Workbook

Sheet SERIES
A2: WALKER FRASER STEELE HPI (SCOTLAND) NATIONAL AND REGIONAL FORMATTED DATA FROM 2000
A3: A TRUE MEASURE OF HOUSE PRICE INFLATION | K3: FEBRUARY 2024
A5: The following table provides national smoothed, seasonally and mix adjusted current and back data for our e.surv Scotland HPI. The data are based upon the prices for all residential transactions in Scotland, including cash purchases, reported by Registers of Scotland (RoS).
A6: At national level, monthly transactions ranged from only 4,427 to 7,313 in the 12 months to January 2013, averaging something less than 6,500 p.m. Of these sales, RoS reports prices for some 99% for the current month of the index but does so after a delay of over a month from the end of the month in question. Since our e.surv Scotland HPI average prices are averaged over the month and the prior two months, the volume of data used is such that we describe our first updated results as the final e.surv Scotland HPI index since the averages will be very close, in normal circumstances, to those of the ultimate e.surv Scotland HPI, calculated when every transaction has been reported.
A7: Note that e.surv Scotland HPI results are reported, every month, for the month preceding the month reported for LSL Acadata E&W HPI. That said, LSL Acadata E&W HPI reports the average price for the month only at national level. Regional (including Wales), county and London borough prices are reported for the preceding month and are averaged over three months, centre month smoothed. By end month smoothing the e.surv Scotland HPI average prices, the averages for Scotland are synchronised and comparable with those of e.g. Greater London or Wales.
A8: Our Acadata House Prices series is calibrated to provide portfolio revaluations with standard errors.
A9: e.surv Scotland HPI is prepared from Registers of Scotland data that we believe to be correct using a methodology designed to provide the best possible guide to house price movements in Scotland, and applied with care. We do not guarantee the accuracy of the results and Acadata shall not be liable for any loss or damage, whatsoever, consequential upon any error, misdescription or other inadequacy in the data. Persons using the data do so entirely at their own risk. No part of the house price index may be reproduced in any form or for any purpose without the prior permission of Acadata. Please email information@Acadata.co.uk.
L11: © Acadata Limited
M12: Walker Fraser Steele HPI (Scotland) clb/cms
M13: www.acadata.co.uk
A14: SCOTLAND
B16: 2000-01-01 | C16: 2000-02-01 | D16: 2000-03-01 | E16: 2000-04-01 | F16: 2000-05-01 | G16: 2000-06-01 | H16: 2000-07-01 | I16: 2000-08-01 | J16: 2000-09-01 | K16: 2000-10-01 | L16: 2000-11-01 | M16: 2000-12-01
A17: HP | B17: 76353.59484 | C17: 76365.32758 | D17: 76377.06033 | E17: 76251.79602 | F17: 76126.53172 | G17: 76001.26742 | H17: 76162.42012 | I17: 76323.57281 | J17: 76484.72551 | K17: 76455.73873 | L17: 76426.75195 | M17: 76397.76517
A18: Index | B18: 100 | C18: =+B18*C17/B17 -> 100.0153663 | D18: 100.0307327 | E18: 99.8666745 | F18: 99.70261634 | G18: 99.53855819 | H18: 99.74961923 | I18: 99.96068028 | J18: 100.1717413 | K18: 100.1337775 | L18: 100.0958136 | M18: 100.0578497
A19: Monthly% | C19: =(+C17-B17)/B17*100 -> 0.01536632876 | D19: =(+D17-C17)/C17*100 -> 0.01536396788 | E19: -0.1640077531 | F19: -0.1642771804 | G19: -0.1645474944 | H19: 0.2120394838 | I19: 0.2115908277 | J19: 0.2111440663 | K19: -0.03789878318 | L19: -0.0379131518 | M19: -0.03792753132
A20: Annual%
B22: 2001-01-01 | C22: 2001-02-01 | D22: 2001-03-01 | E22: 2001-04-01 | F22: 2001-05-01 | G22: 2001-06-01 | H22: 2001-07-01 | I22: 2001-08-01 | J22: 2001-09-01 | K22: 2001-10-01 | L22: 2001-11-01 | M22: 2001-12-01
A23: HP | B23: 74839 | C23: 75881 | D23: 76923 | E23: 76091.02786 | F23: 75259.05572 | G23: 74427.08358 | H23: 73998.74498 | I23: 73513.82021 | J23: 72996.15624 | K23: 73611.67995 | L23: 74698.38209 | M23: 75445.81804
A24: Index | B24: =+M18/M17*B23 -> 98.01634116 | C24: =+B24*C23/B23 -> 99.38104442 | D24: 100.7457477 | E24: 99.65611707 | F24: 98.56648646 | G24: 97.47685585 | H24: 96.91586249 | I24: 96.28075845 | J24: 95.60277601 | K24: 96.40892496 | L24: 97.83217443 | M24: 98.81108834
A25: Monthly% | B25: =(B23-M17)/M17*100 -> -2.040328228 | C25: =(+C23-B23)/B23*100 -> 1.392322185 | D25: =(+D23-C23)/C23*100 -> 1.373202778 | E25: -1.081564864 | F25: -1.093390593 | G25: -1.105477783 | H25: -0.5755144217 | I25: -0.6553148496 | J25: -0.7041723156 | K25: 0.8432275545 | L25: 1.476263196 | M25: 1.000605284
A26: Annual% | B26: =(B23-B17)/B17*100 -> -1.983658844 | C26: =(C23-C17)/C17*100 -> -0.6342244529 | D26: 0.7147953485 | E26: -0.2108385295 | F26: -1.139518622 | G26: -2.071259992 | H26: -2.840869732 | I26: -3.681369328 | J26: -4.561131967 | K26: -3.719876139 | L26: -2.261472349 | M26: -1.246040537
B28: 2002-01-01 | C28: 2002-02-01 | D28: 2002-03-01 | E28: 2002-04-01 | F28: 2002-05-01 | G28: 2002-06-01 | H28: 2002-07-01 | I28: 2002-08-01 | J28: 2002-09-01 | K28: 2002-10-01 | L28: 2002-11-01 | M28: 2002-12-01
A29: HP | B29: 77116.65019 | C29: 78149.2938 | D29: 80084.87904 | E29: 80518.38514 | F29: 81107.81008 | G29: 80809.37894 | H29: 81206.39994 | I29: 81888.48991 | J29: 83050.00653 | K29: 83727.68947 | L29: 84588.5895 | M29: 84479.58182
A30: Index | B30: =+M24/M23*B29 -> 100.9993706 | C30: =+B30*C29/B29 -> 102.3518198 | D30: 104.8868481 | E30: 105.4546093 | F30: 106.2265768 | G30: 105.8357227 | H30: 106.3556996 | I30: 107.2490301 | J30: 108.7702638 | K30: 109.6578225 | L30: 110.7853398 | M30: 110.6425729
A31: Monthly% | B31: =(B29-M23)/M23*100 -> 2.214612013 | C31: =(+C29-B29)/B29*100 -> 1.339066989 | D31: =(+D29-C29)/C29*100 -> 2.476778927 | E31: 0.5413082984 | F31: 0.7320377065 | G31: -0.3679437759 | H31: 0.4913056003 | I31: 0.8399460775 | J31: 1.418412546 | K31: 0.8159938501 | L31: 1.028214244 | M31: -0.1288680733
A32: Annual% | B32: =(B29-B23)/B23*100 -> 3.043400091 | C32: =(C29-C23)/C23*100 -> 2.989277685 | D32: 4.110446864 | E32: 5.81850108 | F32: 7.771495805 | G32: 8.575232366 | H32: 9.740239467 | I32: 11.3919664 | J32: 13.77312286 | K32: 13.74239731 | L32: 13.2401896 | M32: 11.97384296
B34: 2003-01-01 | C34: 2003-02-01 | D34: 2003-03-01 | E34: 2003-04-01 | F34: 2003-05-01 | G34: 2003-06-01 | H34: 2003-07-01 | I34: 2003-08-01 | J34: 2003-09-01 | K34: 2003-10-01 | L34: 2003-11-01 | M34: 2003-12-01
A35: HP | B35: 84460.21514 | C35: 84163.5531 | D35: 84348.38153 | E35: 86705.9204 | F35: 87322.12481 | G35: 90252.94153 | H35: 92557.87941 | I35: 93384.93281 | J35: 93999.47184 | K35: 94870.69868 | L35: 95651.46957 | M35: 96974.84184
A36: Index | B36: =+M30/M29*B35 -> 110.6172084 | C36: =+B36*C35/B35 -> 110.2286713 | D36: 110.4707404 | E36: 113.5583997 | F36: 114.3654402 | G36: 118.2039192 | H36: 121.2226872 | I36: 122.3058757 | J36: 123.1107351 | K36: 124.2517774 | L36: 125.2743499 | M36: 127.0075653
A37: Monthly% | B37: =(B35-M29)/M29*100 -> -0.02292468651 | C37: =(+C35-B35)/B35*100 -> -0.3512447055 | D37: =(+D35-C35)/C35*100 -> 0.2196062488 | E37: 2.795001906 | F37: 0.7106832067 | G37: 3.356327763 | H37: 2.553864548 | I37: 0.8935526729 | J37: 0.6580708566 | K37: 0.926842269 | L37: 0.8229842329 | M37: 1.383535745
A38: Annual% | B38: =(B35-B29)/B29*100 -> 9.522671077 | C38: =(C35-C29)/C29*100 -> 7.695858799 | D38: 5.323729692 | E38: 7.684624138 | F38: 7.661795738 | G38: 11.68622098 | H38: 13.97855277 | I38: 14.03914386 | J38: 13.18418357 | K38: 13.30863096 | L38: 13.07845436 | M38: 14.79086397
B40: 2004-01-01 | C40: 2004-02-01 | D40: 2004-03-01 | E40: 2004-04-01 | F40: 2004-05-01 | G40: 2004-06-01 | H40: 2004-07-01 | I40: 2004-08-01 | J40: 2004-09-01 | K40: 2004-10-01 | L40: 2004-11-01 | M40: 2004-12-01
A41: HP | B41: 100596.8105 | C41: 102919.7754 | D41: 104379.2662 | E41: 103726.4186 | F41: 104557.0867 | G41: 105538.3481 | H41: 107351.3148 | I41: 109768.2026 | J41: 110736.0525 | K41: 111401.5644 | L41: 112750.6012 | M41: 116100.5515
A42: Index | B42: =+M36/M35*B41 -> 131.7512432 | C42: =+B42*C41/B41 -> 134.7936212 | D42: =+C42*D41/C41 -> 136.7051105 | E42: 135.8500785 | F42: 136.9380014 | G42: 138.2231555 | H42: 140.5975908 | I42: 143.7629791 | J42: 145.0305683 | K42: 145.9021865 | L42: 147.6690147 | M42: =+L42*M41/L41 -> 152.0564313
A43: Monthly% | B43: =(B41-M35)/M35*100 -> 3.73495697 | C43: =(+C41-B41)/B41*100 -> 2.309183509 | D43: =(+D41-C41)/C41*100 -> 1.418085862 | E43: -0.6254572037 | F43: 0.8008260461 | G43: 0.938493444 | H43: 1.717827433 | I43: 2.251381581 | J43: 0.8817216227 | K43: 0.6009892975 | L43: 1.210967573 | M43: 2.971115247
A44: Annual% | B44: =(B41-B35)/B35*100 -> 19.10555792 | C44: =(C41-C35)/C35*100 -> 22.28544497 | D44: 23.74779967 | E44: 19.6301453 | F44: 19.73722234 | G44: 16.93618662 | H44: 15.98290229 | I44: 17.54380418 | J44: 17.80497313 | K44: 17.42462733 | L44: 17.87649651 | M44: 19.72234167
B46: 2005-01-01 | C46: 2005-02-01 | D46: 2005-03-01 | E46: 2005-04-01 | F46: 2005-05-01 | G46: 2005-06-01 | H46: 2005-07-01 | I46: 2005-08-01 | J46: 2005-09-01 | K46: 2005-10-01 | L46: 2005-11-01 | M46: 2005-12-01
A47: HP | B47: 117889.7576 | C47: 118362.2447 | D47: 117230.4417 | E47: 119590.5928 | F47: 120822.0243 | G47: 121910.0886 | H47: 120526.9482 | I47: 121898.779 | J47: 123570.0046 | K47: 126211.8144 | L47: 126658.4341 | M47: 126963.0633
A48: Index | B48: =+M42/M41*B47 -> 154.3997474 | C48: =+B48*C47/B47 -> 155.0185619 | D48: 153.5362441 | E48: 156.6273246 | F48: 158.2401255 | G48: 159.665159 | H48: 157.8536655 | I48: 159.6503469 | J48: 161.8391443 | K48: 165.2991122 | L48: 165.8840482 | M48: 166.2830199
A49: Monthly% | B49: =(B47-M41)/M41*100 -> 1.541083194 | C49: =(+C47-B47)/B47*100 -> 0.4007872295 | D49: =(+D47-C47)/C47*100 -> -0.9562195514 | E49: 2.013257859 | F49: 1.029705989 | G49: 0.9005513002 | H49: -1.134557836 | I49: 1.138194321 | J49: 1.370994466 | K49: 2.137905423 | L49: 0.3538651818 | M49: 0.2405123874
A50: Annual% | B50: =(B47-B41)/B41*100 -> 17.19035329 | C50: =(C47-C41)/C41*100 -> 15.0043752 | D50: 12.31200028 | E50: 15.29424662 | F50: 15.55603555 | G50: 15.51259877 | H50: 12.27337863 | I50: 11.05108419 | J50: 11.58967809 | K50: 13.29447222 | L50: 12.33504099 | M50: 9.356124199
B52: 2006-01-01 | C52: 2006-02-01 | D52: 2006-03-01 | E52: 2006-04-01 | F52: 2006-05-01 | G52: 2006-06-01 | H52: 2006-07-01 | I52: 2006-08-01 | J52: 2006-09-01 | K52: 2006-10-01 | L52: 2006-11-01 | M52: 2006-12-01
A53: HP | B53: 127006.3415 | C53: 128392.8421 | D53: 130676.5136 | E53: 132338.567 | F53: 134423.3024 | G53: 135435.0315 | H53: 136351.0713 | I53: 136851.9882 | J53: 138944.8738 | K53: 141173.3231 | L53: 142467.7054 | M53: 144517.36
A54: Index | B54: =+M48/M47*B53 -> 166.3397013 | C54: =+B54*C53/B53 -> 168.1555955 | D54: 171.146511 | E54: 173.3232958 | F54: 176.0536654 | G54: 177.378723 | H54: 178.5784567 | I54: 179.2345056 | J54: 181.9755495 | K54: 184.8941407 | L54: 186.5893881 | M54: 189.2738126
A55: Monthly% | B55: =(B53-M47)/M47*100 -> 0.0340872894 | C55: =(+C53-B53)/B53*100 -> 1.091678214 | D55: =(+D53-C53)/C53*100 -> 1.778659508 | E55: 1.271883816 | F55: 1.575304468 | G55: 0.7526441095 | H55: 0.676368456 | I55: 0.3673729365 | J55: 1.529305903 | K55: 1.60383702 | L55: 0.9168745854 | M55: 1.438680147
A56: Annual% | B56: =(B53-B47)/B47*100 -> 7.733143371 | C56: =(C53-C47)/C47*100 -> 8.474490721 | D56: 11.46977838 | E56: 10.65967975 | F56: 11.25728372 | G56: 11.09419489 | H56: 13.12911623 | I56: 12.26690644 | J56: 12.44223406 | K56: 11.8542854 | L56: 12.48181494 | M56: 13.82630212
B58: 2007-01-01 | C58: 2007-02-01 | D58: 2007-03-01 | E58: 2007-04-01 | F58: 2007-05-01 | G58: 2007-06-01 | H58: 2007-07-01 | I58: 2007-08-01 | J58: 2007-09-01 | K58: 2007-10-01 | L58: 2007-11-01 | M58: 2007-12-01
A59: HP | B59: 147399.6837 | C59: 149864.3471 | D59: 149177.3632 | E59: 150423.3234 | F59: 151938.1228 | G59: 155583.3341 | H59: 156919.4181 | I59: 158103.4181 | J59: 158576.0437 | K59: 158963.5902 | L59: 159502.0829 | M59: 159833.9789
A60: Index | B60: =+M54/M53*B59 -> 193.0487805 | C60: =+B60*C59/B59 -> 196.2767403 | D60: 195.3770003 | E60: 197.0088294 | F60: 198.9927562 | G60: 203.766875 | H60: 205.5167388 | I60: 207.0674189 | J60: 207.6864148 | K60: 208.1939829 | L60: 208.8992447 | M60: 209.3339275
A61: Monthly% | B61: =(B59-M53)/M53*100 -> 1.9944481 | C61: =(+C59-B59)/B59*100 -> 1.672095405 | D61: =(+D59-C59)/C59*100 -> -0.4584037777 | E61: 0.8352206327 | F61: 1.007024313 | G61: 2.399142018 | H61: 0.8587577388 | I61: 0.7545273892 | J61: 0.2989344973 | K61: 0.2443915598 | L61: 0.3387522507 | M61: 0.2080825228
A62: Annual% | B62: =(B59-B53)/B53*100 -> 16.05694797 | C62: =(C59-C53)/C53*100 -> 16.72328816 | D62: 14.15774659 | E62: 13.66552226 | F62: 13.02960134 | G62: 14.87672906 | H62: 15.08484428 | I62: 15.52876952 | J62: 14.1287472 | K62: 12.60172015 | L62: 11.95665886 | M62: 10.59846297
B64: 2008-01-01 | C64: 2008-02-01 | D64: 2008-03-01 | E64: 2008-04-01 | F64: 2008-05-01 | G64: 2008-06-01 | H64: 2008-07-01 | I64: 2008-08-01 | J64: 2008-09-01 | K64: 2008-10-01 | L64: 2008-11-01 | M64: 2008-12-01
A65: HP | B65: 159507.8048 | C65: 159726.4414 | D65: 160335.0155 | E65: 160596.1213 | F65: 160537.5915 | G65: 160287.8533 | H65: 159805.0511 | I65: 158296.4031 | J65: 156355.2667 | K65: 154350.9291 | L65: 153536.6191 | M65: 152968.7974
A66: Index | B66: =+M60/M59*B65 -> 208.9067386 | C66: =+B66*C65/B65 -> 209.1930861 | D66: 209.9901332 | E66: 210.3321025 | F66: 210.2554462 | G66: 209.9283651 | H66: 209.2960409 | I66: 207.3201707 | J66: 204.777872 | K66: 202.152799 | L66: 201.0863004 | M66: 200.3426266
A67: Monthly% | B67: =(B65-M59)/M59*100 -> -0.2040705562 | C67: =(+C65-B65)/B65*100 -> 0.1370695137 | D67: =(+D65-C65)/C65*100 -> 0.3810102662 | E67: 0.1628501565 | F67: -0.03644535578 | G67: -0.1555636638 | H67: -0.3012095216 | I67: -0.9440552302 | J67: -1.226266925 | K67: -1.281912425 | L67: -0.5275705179 | M67: -0.3698281703
A68: Annual% | B68: =(B65-B59)/B59*100 -> 8.214482383 | C68: =(C65-C59)/C59*100 -> 6.580680782 | D68: 7.479453995 | E68: 6.76277969 | F68: 5.659849244 | G68: 3.023793787 | H68: 1.838926647 | I68: 0.1220625489 | J68: -1.40044926 | K68: -2.901709179 | L68: -3.740053869 | M68: -4.295195238
B70: 2009-01-01 | C70: 2009-02-01 | D70: 2009-03-01 | E70: 2009-04-01 | F70: 2009-05-01 | G70: 2009-06-01 | H70: 2009-07-01 | I70: 2009-08-01 | J70: 2009-09-01 | K70: 2009-10-01 | L70: 2009-11-01 | M70: 2009-12-01
A71: HP | B71: 150413.6673 | C71: 148141.801 | D71: 144319.0647 | E71: 146116.9008 | F71: 146557.985 | G71: 147881.5447 | H71: 146564.1926 | I71: 146144.2987 | J71: 146583.8842 | K71: 147751.3091 | L71: 149132.047 | M71: 150384.5824
A72: Index | B72: =+M66/M65*B71 -> 196.9961829 | C72: =+B72*C71/B71 -> 194.0207285 | D72: 189.014106 | E72: 191.3687248 | F72: 191.9464111 | G72: 193.6798719 | H72: 191.9545411 | I72: 191.4046077 | J72: 191.9803312 | K72: 193.5093028 | L72: 195.3176499 | M72: 196.9580905
A73: Monthly% | B73: =(B71-M65)/M65*100 -> -1.67036031 | C73: =(+C71-B71)/B71*100 -> -1.510412207 | D73: =(+D71-C71)/C71*100 -> -2.580457543 | E73: 1.245737079 | F73: 0.3018707793 | G73: 0.9030962498 | H73: -0.8908157315 | I73: -0.2864914992 | J73: 0.3007887222 | K73: 0.7964210027 | L73: 0.9345013404 | M73: 0.8398834375
A74: Annual% | B74: =(B71-B65)/B65*100 -> -5.701374583 | C74: =(C71-C65)/C65*100 -> -7.252800667 | D74: -9.989053714 | E74: -9.015921695 | F74: -8.707995653 | G74: -7.740017977 | H74: -8.285632002 | I74: -7.676803908 | J74: -6.24947446 | K74: -4.275724199 | L74: -2.868743687 | M74: -1.689373963
B76: 2010-01-01 | C76: 2010-02-01 | D76: 2010-03-01 | E76: 2010-04-01 | F76: 2010-05-01 | G76: 2010-06-01 | H76: 2010-07-01 | I76: 2010-08-01 | J76: 2010-09-01 | K76: 2010-10-01 | L76: 2010-11-01 | M76: 2010-12-01
A77: HP | B77: 151221.2324 | C77: 152456.3322 | D77: 152725.5946 | E77: 153498.7083 | F77: 153145.2867 | G77: 153237.3295 | H77: 153349.565 | I77: 154388.4775 | J77: 155082.0103 | K77: 155135.3128 | L77: 154044.3905 | M77: 154397.5521
A78: Index | B78: =+M72/M71*B77 -> 198.0538476 | C78: =+B78*C77/B77 -> 199.6714529 | D78: 200.0241049 | E78: 201.0366487 | F78: 200.5737739 | G78: 200.6943221 | H78: 200.8413165 | I78: 202.201976 | J78: 203.1102932 | K78: 203.1801032 | L78: 201.7513266 | M78: 202.2138609
A79: Monthly% | B79: =(B77-M71)/M71*100 -> 0.5563402697 | C79: =(+C77-B77)/B77*100 -> 0.8167502531 | D79: =(+D77-C77)/C77*100 -> 0.1766161153 | E79: 0.5062109061 | F79: -0.2302440063 | G79: 0.06010166278 | H79: 0.07324291605 | I79: 0.6774798985 | J79: 0.4492128232 | K79: 0.03437048266 | L79: -0.7032069426 | M79: 0.2292596102
A80: Annual% | B80: =(B77-B71)/B71*100 -> 0.5368960479 | C80: =(C77-C71)/C71*100 -> 2.912433357 | D80: 5.8249615 | E80: 5.051987436 | F80: 4.494672649 | G80: 3.621672249 | H80: 4.629624942 | I80: 5.641122454 | J80: 5.797449128 | K80: 4.997589367 | L80: 3.29395563 | M80: 2.668471462
B82: 2011-01-01 | C82: 2011-02-01 | D82: 2011-03-01 | E82: 2011-04-01 | F82: 2011-05-01 | G82: 2011-06-01 | H82: 2011-07-01 | I82: 2011-08-01 | J82: 2011-09-01 | K82: 2011-10-01 | L82: 2011-11-01 | M82: 2011-12-01
A83: HP | B83: 154082.5385 | C83: 153538.453 | D83: 152324.3304 | E83: 151533.6157 | F83: 151459.3548 | G83: 150860.2407 | H83: 151472.0039 | I83: 152576.848 | J83: 153710.693 | K83: 153919.7488 | L83: 153760.0794 | M83: 153017.2487
A84: Index | B84: =+M78/M77*B83 -> 201.8012889 | C84: =+B84*C83/B83 -> 201.0887023 | D84: 199.4985708 | E84: 198.4629748 | F84: 198.3657156 | G84: 197.5810583 | H84: 198.3822821 | I84: 199.829292 | J84: 201.3142844 | K84: 201.5880839 | L84: 201.3789655 | M84: 200.406083
A85: Monthly% | B85: =B83/M77*100-100 -> -0.2040275617 | C85: =(+C83-B83)/B83*100 -> -0.3531130028 | D85: -0.7907612541 | E85: -0.5190994322 | F85: -0.04900622035 | G85: -0.3955609618 | H85: 0.4055165331 | I85: 0.7294047842 | J85: 0.7431304839 | K85: 0.1360060288 | L85: -0.1037355378 | M85: -0.4831102412
A86: Annual% | B86: =B83/B77*100-100 -> 1.892132518 | C86: =(C83-C77)/C77*100 -> 0.7097906794 | D86: =(D83-D77)/D77*100 -> -0.2627354066 | E86: =(E83-E77)/E77*100 -> -1.280201368 | F86: =(F83-F77)/F77*100 -> -1.100870893 | G86: =(G83-G77)/G77*100 -> -1.551246577 | H86: =(H83-H77)/H77*100 -> -1.224366759 | I86: -1.17342276 | J86: -0.8842529839 | K86: -0.783550765 | L86: -0.1845644094 | M86: -0.8939930463
B88: 2012-01-01 | C88: 2012-02-01 | D88: 2012-03-01 | E88: 2012-04-01 | F88: 2012-05-01 | G88: 2012-06-01 | H88: 2012-07-01 | I88: 2012-08-01 | J88: 2012-09-01 | K88: 2012-10-01 | L88: 2012-11-01 | M88: 2012-12-01
A89: HP | B89: 151438.1219 | C89: 151030.8937 | D89: 151343.9455 | E89: 152380.9493 | F89: 152287.3747 | G89: 152933.3133 | H89: 152207.1207 | I89: 151175.2223 | J89: 150743.8374 | K89: 149872.5251 | L89: 149311.8128 | M89: 147858.4022
A90: Index | B90: =+M84/M83*B89 -> 198.3379069 | C90: =+B90*C89/B89 -> 197.8045619 | D90: 198.2145645 | E90: 199.5727243 | F90: 199.4501699 | G90: 200.2961533 | H90: 199.3450617 | I90: 197.9935884 | J90: 197.4286054 | K90: 196.287451 | L90: 195.5530884 | M90: 193.6495623
A91: Monthly% | B91: =B89/M83*100-100 -> -1.031992678 | C91: =(+C89-B89)/B89*100 -> -0.2689072902 | D91: 0.2072766433 | E91: 0.6851967703 | F91: -0.06140837214 | G91: 0.4241577317 | H91: -0.4748426642 | I91: -0.6779567514 | J91: -0.285354186 | K91: -0.5780086045 | L91: -0.3741261099 | M91: -0.9734063289
A92: Annual% | B92: =B89/B83*100-100 -> -1.716233809 | C92: =(C89-C83)/C83*100 -> -1.63317999 | D92: =(D89-D83)/D83*100 -> -0.6436167652 | E92: =(E89-E83)/E83*100 -> 0.559172055 | F92: =(F89-F83)/F83*100 -> 0.546694439 | G92: =(G89-G83)/G83*100 -> 1.37416765 | H92: =(H89-H83)/H83*100 -> 0.4853152847 | I92: -0.9186359044 | J92: -1.930155633 | K92: -2.629437607 | L92: -2.892991827 | M92: -3.371415001
B94: 2013-01-01 | C94: 2013-02-01 | D94: 2013-03-01 | E94: 2013-04-01 | F94: 2013-05-01 | G94: 2013-06-01 | H94: 2013-07-01 | I94: 2013-08-01 | J94: 2013-09-01 | K94: 2013-10-01 | L94: 2013-11-01 | M94: 2013-12-01
A95: HP | B95: 148008.2253 | C95: 149160.4316 | D95: 149507.7733 | E95: 149720.1386 | F95: 149514.4127 | G95: 149699.1469 | H95: 150486.503 | I95: 150539.365 | J95: 150824.5515 | K95: 150910.502 | L95: 152053.8466 | M95: 152966.1334
A96: Index | B96: =+M90/M89*B95 -> 193.845785 | C96: =+B96*C95/B95 -> 195.354825 | D96: 195.8097371 | E96: 196.087871 | F96: 195.8184327 | G96: 196.0603783 | H96: 197.0915755 | I96: 197.1608086 | J96: 197.5343163 | K96: 197.6468852 | L96: 199.1443192 | M96: 200.3391376
A97: Monthly% | B97: =B95/M89*100-100 -> 0.1013287447 | C97: =(+C95-B95)/B95*100 -> 0.778474509 | D97: 0.2328645522 | E97: 0.142042936 | F97: -0.1374069206 | G97: 0.1235560964 | H97: 0.5259589992 | I97: 0.03512735727 | J97: 0.1894431723 | K97: 0.0569870319 | L97: 0.7576309433 | M97: 0.5999761517
A98: Annual% | B98: =B95/B89*100-100 -> -2.26488322 | C98: =(C95-C89)/C89*100 -> -1.238463277 | D98: -1.213244538 | E98: -1.746157088 | F98: -1.820874465 | G98: -2.114756001 | H98: -1.130444922 | I98: =(I95-I89)/I89*100 -> -0.4206094584 | J98: =(J95-J89)/J89*100 -> 0.05354387359 | K98: =(K95-K89)/K89*100 -> 0.6925731555 | L98: =(L95-L89)/L89*100 -> 1.836447989 | M98: =(M95-M89)/M89*100 -> 3.454474796
B100: 2014-01-01 | C100: 2014-02-01 | D100: 2014-03-01 | E100: 2014-04-01 | F100: 2014-05-01 | G100: 2014-06-01 | H100: 2014-07-01 | I100: 2014-08-01 | J100: 2014-09-01 | K100: 2014-10-01 | L100: 2014-11-01 | M100: 2014-12-01
A101: HP | B101: 155047.4567 | C101: 154240.3426 | D101: 155210.9519 | E101: 155111.1047 | F101: 157379.6954 | G101: 158442.7712 | H101: 158920.9565 | I101: 159331.0249 | J101: 159226.9838 | K101: 159593.3947 | L101: 158610.907 | M101: 159190.1765
A102: Index | B102: =+M96/M95*B101 -> 203.0650385 | C102: =+B102*C101/B101 -> 202.0079643 | D102: 203.2791675 | E102: 203.148398 | F102: 206.1195622 | G102: 207.5118683 | H102: 208.1381458 | I102: 208.6752107 | J102: 208.5389485 | K102: 209.0188354 | L102: 207.7320752 | M102: 208.490742
A103: Monthly% | B103: =B101/M95*100-100 -> 1.360643209 | C103: =(+C101-B101)/B101*100 -> -0.5205594096 | D103: 0.6292836879 | E103: -0.06433000965 | F103: 1.462558526 | G103: 0.6754847095 | H103: 0.301803197 | I103: 0.2580329146 | J103: -0.06529870924 | K103: 0.2301186057 | L103: -0.6156192716 | M103: 0.3652141208
A104: Annual% | B104: =B101/B95*100-100 -> 4.755973168 | C104: =(C101-C95)/C95*100 -> 3.405669316 | D104: 3.814636837 | E104: 3.600695401 | F104: 5.260551488 | G104: 5.84079766 | H104: 5.604790671 | I104: =(I101-I95)/I95*100 -> 5.840106958 | J104: =(J101-J95)/J95*100 -> 5.570997687 | K104: =(K101-K95)/K95*100 -> 5.753670317 | L104: =(L101-L95)/L95*100 -> 4.312327869 | M104: =(M101-M95)/M95*100 -> 4.068902623
B106: 2015-01-01 | C106: 2015-02-01 | D106: 2015-03-01 | E106: 2015-04-01 | F106: 2015-05-01 | G106: 2015-06-01 | H106: 2015-07-01 | I106: 2015-08-01 | J106: 2015-09-01 | K106: 2015-10-01 | L106: 2015-11-01 | M106: 2015-12-01
A107: HP | B107: 160698.5711 | C107: 165360.5234 | D107: 180702.2426 | E107: 177650.6173 | F107: 173742.3097 | G107: 158095.6062 | H107: 159345.0216 | I107: 160093.4797 | J107: 160811.056 | K107: 161429.8537 | L107: 162139.5018 | M107: 162415.703
A108: Index | B108: =+M102/M101*B107 -> 210.4662806 | C108: =+B108*C107/B107 -> 216.5720209 | D108: 236.6650097 | E108: 232.6683081 | F108: 227.5496132 | G108: 207.0571877 | H108: 208.6935421 | I108: 209.6737947 | J108: 210.6136015 | K108: 211.4240384 | L108: 212.3534618 | M108: 212.7152013
A109: Monthly% | B109: =B107/M101*100-100 -> 0.9475425543 | C109: =(+C107-B107)/B107*100 -> 2.90105395 | D109: 9.277739906 | E109: -1.688758977 | F109: -2.199996614 | G109: -9.0056956 | H109: 0.7902910325 | I109: 0.4697091364 | J109: 0.4482232936 | K109: 0.3847979747 | L109: 0.439601573 | M109: 0.1703478326
A110: Annual% | B110: =B107/B101*100-100 -> 3.644764314 | C110: =(C107-C101)/C101*100 -> 7.209644736 | D110: 16.42364174 | E110: 14.53120498 | F110: 10.39690303 | G110: -0.219110662 | H110: 0.2668402293 | I110: =(I107-I101)/I101*100 -> 0.4785350461 | J110: =(J107-J101)/J101*100 -> 0.9948515797 | K110: =(K107-K101)/K101*100 -> 1.150711117 | L110: =(L107-L101)/L101*100 -> 2.224686102 | M110: =(M107-M101)/M101*100 -> 2.026209515
B112: 2016-01-01 | C112: 2016-02-01 | D112: 2016-03-01 | E112: 2016-04-01 | F112: 2016-05-01 | G112: 2016-06-01 | H112: 2016-07-01 | I112: 2016-08-01 | J112: 2016-09-01 | K112: 2016-10-01 | L112: 2016-11-01 | M112: 2016-12-01
A113: HP | B113: 162714.5748 | C113: 161936.2824 | D113: 163754.1314 | E113: 163972.3571 | F113: 164497.8967 | G113: 163198.5164 | H113: 163538.0393 | I113: 164296.1275 | J113: 164420.7182 | K113: 165483.8176 | L113: 165433.3704 | M113: 165269.7833
A114: Index | B114: =+M108/M107*B113 -> 213.1066325 | C114: =+B114*C113/B113 -> 212.0873061 | D114: 214.4681357 | E114: 214.7539451 | F114: 215.4422422 | G114: 213.7404489 | H114: 214.1851207 | I114: 215.1779858 | J114: 215.3411618 | K114: 216.7334989 | L114: 216.6674283 | M114: 216.453179
A115: Monthly% | B115: =B113/M107*100-100 -> 0.1840165739 | C115: =(+C113-B113)/B113*100 -> -0.4783175363 | D115: 1.122570531 | E115: 0.1332642644 | F115: 0.3205049961 | G115: -0.7899069763 | H115: 0.208042874 | I115: 0.4635546717 | J115: 0.07583303541 | K115: 0.6465726275 | L115: -0.03048468857 | M115: -0.098883964
A116: Annual% | B116: =B113/B107*100-100 -> 1.254524939 | C116: =(C113-C107)/C107*100 -> -2.070772921 | D116: -9.379026498 | E116: -7.699528628 | F116: -5.320760953 | G116: 3.227736892 | H116: 2.631408029 | I116: =(I113-I107)/I107*100 -> 2.625121145 | J116: =(J113-J107)/J107*100 -> 2.244660505 | K116: =(K113-K107)/K107*100 -> 2.511285143 | L116: =(L113-L107)/L107*100 -> 2.031502806 | M116: =(M113-M107)/M107*100 -> 1.75726871
B118: 2017-01-01 | C118: 2017-02-01 | D118: 2017-03-01 | E118: 2017-04-01 | F118: 2017-05-01 | G118: 2017-06-01 | H118: 2017-07-01 | I118: 2017-08-01 | J118: 2017-09-01 | K118: 2017-10-01 | L118: 2017-11-01 | M118: 2017-12-01
A119: HP | B119: 165034.9192 | C119: 166042.1472 | D119: 166469.0308 | E119: 168424.3959 | F119: 169117.3447 | G119: 170320.2323 | H119: 170540.5301 | I119: 171053.7877 | J119: 171324.6847 | K119: 170628.0155 | L119: 170701.545 | M119: 172008.6875
A120: Index | B120: =+M114/M113*B119 -> 216.1455784 | C120: =+B120*C119/B119 -> 217.4647409 | D120: 218.0238287 | E120: 220.5847626 | F120: 221.4923149 | G120: 223.067732 | H120: 223.3562552 | I120: 224.0284666 | J120: 224.3832594 | K120: 223.4708344 | L120: 223.5671357 | M120: 225.2790951
A121: Monthly% | B121: =B119/M113*100-100 -> -0.1421095311 | C121: =(+C119-B119)/B119*100 -> 0.61031205 | D121: 0.2570935485 | E121: 1.174611913 | F121: 0.4114302133 | G121: 0.7112739174 | H121: 0.1293433068 | I121: 0.300959293 | J121: 0.1583695064 | K121: -0.4066368084 | L121: 0.04309343189 | M121: 0.765747352
A122: Annual% | B122: =B119/B113*100-100 -> 1.426021243 | C122: =(C119-C113)/C113*100 -> 2.535481662 | D122: 1.657912008 | E122: 2.71511541 | F122: 2.808210976 | G122: 4.363836189 | H122: 4.28187282 | I122: =(I119-I113)/I113*100 -> 4.113097679 | J122: =(J119-J113)/J113*100 -> 4.198963841 | K122: =(K119-K113)/K113*100 -> 3.108580641 | L122: =(L119-L113)/L113*100 -> 3.184469131 | M122: =(M119-M113)/M113*100 -> 4.077517446
B124: 2018-01-01 | C124: 2018-02-01 | D124: 2018-03-01 | E124: 2018-04-01 | F124: 2018-05-01 | G124: 2018-06-01 | H124: 2018-07-01 | I124: 2018-08-01 | J124: 2018-09-01 | K124: 2018-10-01 | L124: 2018-11-01 | M124: 2018-12-01
A125: HP | B125: 173724.5645 | C125: 177265.2889 | D125: 178528.6339 | E125: 179064.4499 | F125: 178012.2932 | G125: 177213.0578 | H125: 176954.8268 | I125: 177062.042 | J125: 178323.8666 | K125: 179237.9869 | L125: 179304.1464 | M125: 178254.521
A126: Index | B126: =+M120/M119*B125 -> 227.5263724 | C126: =+B126*C125/B125 -> 232.163645 | D126: 233.818243 | E126: 234.5199991 | F126: 233.1419936 | G126: 232.0952382 | H126: 231.7570341 | I126: 231.8974533 | J126: 233.5500601 | K126: 234.7472798 | L126: 234.8339286 | M126: 233.4592384
A127: Monthly% | B127: =B125/M119*100-100 -> 0.9975524976 | C127: =(+C125-B125)/B125*100 -> 2.038125349 | D127: 0.7126860725 | E127: 0.300128902 | F127: -0.587585484 | G127: -0.4489776389 | H127: -0.1457178113 | I127: 0.06058897532 | J127: 0.7126454833 | K127: 0.5126180533 | L127: 0.03691153065 | M127: -0.5853882621
A128: Annual% | B128: =B125/B119*100-100 -> 5.265337398 | C128: =(C125-C119)/C119*100 -> 6.759212584 | D128: 7.244352313 | E128: =(E125-E119)/E119*100 -> 6.317406685 | F128: 5.259631112 | G128: =(G125-G119)/G119*100 -> 4.046979875 | H128: 3.761156782 | I128: =(I125-I119)/I119*100 -> 3.512494133 | J128: 4.085331821 | K128: =(K125-K119)/K119*100 -> 5.04604792 | L128: 5.039556874 | M128: =(M125-M119)/M119*100 -> 3.631115117
B130: 2019-01-01 | C130: 2019-02-01 | D130: 2019-03-01 | E130: 2019-04-01 | F130: 2019-05-01 | G130: 2019-06-01 | H130: 2019-07-01 | I130: 2019-08-01 | J130: 2019-09-01 | K130: 2019-10-01 | L130: 2019-11-01 | M130: 2019-12-01
A131: HP | B131: 177982.8896 | C131: 177443.1606 | D131: 179209.9358 | E131: 180593.6959 | F131: 181802.8366 | G131: 182064.4933 | H131: 181868.5356 | I131: 181334.9684 | J131: 181532.132 | K131: 181443.2486 | L131: 181875.2366 | M131: 182151.632
A132: Index | B132: =+M126/M125*B131 -> 233.1034838 | C132: =+B132*C131/B131 -> 232.396603 | D132: 234.7105414 | E132: 236.5228465 | F132: 238.1064533 | G132: 238.449144 | H132: 238.1924989 | I132: 237.4936882 | J132: 237.7519125 | K132: 237.6355023 | L132: 238.2012752 | M132: 238.5632693
A133: Monthly% | B133: =B131/M125*100-100 -> -0.152384007 | C133: =(+C131-B131)/B131*100 -> -0.3032476672 | D133: 0.9956851468 | E133: 0.7721447433 | F133: 0.6695364929 | G133: 0.1439233044 | H133: -0.1076309432 | I133: -0.2933806715 | J133: 0.1087289299 | K133: -0.04896291146 | L133: 0.2380843663 | M133: 0.1519698137
A134: Annual% | B134: =B131/B125*100-100 -> 2.451193433 | C134: =(C131-C125)/C125*100 -> 0.1003421312 | D134: 0.3816205408 | E134: =(E131-E125)/E125*100 -> 0.8540198845 | F134: 2.129371715 | G134: =(G131-G125)/G125*100 -> 2.737628661 | H134: 2.776815308 | I134: =(I131-I125)/I125*100 -> 2.413236867 | J134: 1.799122832 | K134: =(K131-K125)/K125*100 -> 1.230353948 | L134: 1.43392678 | M134: =(M131-M125)/M125*100 -> 2.186262113
B136: 2020-01-01 | C136: 2020-02-01 | D136: 2020-03-01 | E136: 2020-04-01 | F136: 2020-05-01 | G136: 2020-06-01 | H136: 2020-07-01 | I136: 2020-08-01 | J136: 2020-09-01 | K136: 2020-10-01 | L136: 2020-11-01 | M136: 2020-12-01
A137: HP | B137: 182675.5286 | C137: 183138.9018 | D137: 183029.8374 | E137: 183036.4292 | F137: 182750.7741 | G137: 184912.9855 | H137: 185530.8313 | I137: 185887.6354 | J137: 185535.5372 | K137: 188186.8889 | L137: 192350.8002 | M137: 195783.4856
A138: Index | B138: =+M132/M131*B137 -> 239.2494145 | C138: =+B138*C137/B137 -> 239.8562926 | D138: =+C138*D137/C137 -> 239.7134514 | E138: =+D138*E137/D137 -> 239.7220846 | F138: =+E138*F137/E137 -> 239.3479633 | G138: =+F138*G137/F137 -> 242.179803 | H138: =+G138*H137/G137 -> 242.9889932 | I138: 243.456298 | J138: 242.9951564 | K138: 246.4676212 | L138: 251.9210793 | M138: 256.4168537
A139: Monthly% | B139: =B137/M131*100-100 -> 0.2876156119 | C139: =(+C137-B137)/B137*100 -> 0.2536591841 | D139: =(+D137-C137)/C137*100 -> -0.05955283387 | E139: =(+E137-D137)/D137*100 -> 0.003601463213 | F139: =(+F137-E137)/E137*100 -> -0.1560645866 | G139: =(+G137-F137)/F137*100 -> 1.183147602 | H139: =(+H137-G137)/G137*100 -> 0.3341278576 | I139: 0.1923152465 | J139: -0.1894145466 | K139: 1.429026356 | L139: 2.212646852 | M139: 1.78459637
A140: Annual% | B140: =B137/B131*100-100 -> 2.636567471 | C140: =(C137-C131)/C131*100 -> 3.209896153 | D140: 2.131523327 | E140: 1.352612685 | F140: 0.5214096283 | G140: 1.564551218 | H140: 2.01370499 | I140: =(I137-I131)/I131*100 -> 2.5106393 | J140: 2.205342462 | K140: =(K137-K131)/K131*100 -> 3.716666443 | L140: 5.759752561 | M140: =(M137-M131)/M131*100 -> 7.483794345
B142: 2021-01-01 | C142: 2021-02-01 | D142: 2021-03-01 | E142: 2021-04-01 | F142: 2021-05-01 | G142: 2021-06-01 | H142: 2021-07-01 | I142: 2021-08-01 | J142: 2021-09-01 | K142: 2021-10-01 | L142: 2021-11-01 | M142: 2021-12-01
A143: HP | B143: 197398.7128 | C143: 199086.841 | D143: 203724.7237 | E143: 202527.21 | F143: 202918.1174 | G143: 200125.3403 | H143: 204170.6718 | I143: 207346.0027 | J143: 209044.5332 | K143: 208979.5469 | L143: 208681.4351 | M143: 208910.7894
A144: Index | B144: =+M138/M137*B143 -> 258.5323104 | C144: =+B144*C143/B143 -> 260.7432452 | D144: 266.8174617 | E144: 265.2490828 | F144: 265.7610526 | G144: 262.1033636 | H144: 267.4015182 | I144: 271.5602364 | J144: 273.7847951 | K144: 273.6996828 | L144: 273.3092469 | M144: 273.6096315
A145: Monthly% | B145: =B143/M137*100-100 -> 0.8250068706 | C145: =(+C143-B143)/B143*100 -> 0.8551870349 | D145: 2.329577705 | E145: -0.5878096791 | F145: 0.1930147358 | G145: -1.376307396 | H145: 2.02139894 | I145: 1.555233581 | J145: 0.8191768865 | K145: -0.03108731471 | L145: -0.1426511887 | M145: 0.1099064669
A146: Annual% | B146: =B143/B137*100-100 -> 8.059746332 | C146: =(C143-C137)/C137*100 -> 8.708111165 | D146: 11.30683746 | E146: =(E143-E137)/E137*100 -> 10.64858013 | F146: 11.03543519 | G146: =(G143-G137)/G137*100 -> 8.226763918 | H146: 10.04676169 | I146: =(I143-I137)/I137*100 -> 11.54373028 | J146: 12.67088579 | K146: =(K143-K137)/K137*100 -> 11.0489408 | L146: 8.490027 | M146: =(M143-M137)/M137*100 -> 6.705010806
B148: 2022-01-01 | C148: 2022-02-01 | D148: 2022-03-01 | E148: 2022-04-01 | F148: 2022-05-01 | G148: 2022-06-01 | H148: 2022-07-01 | I148: 2022-08-01 | J148: 2022-09-01 | K148: 2022-10-01 | L148: 2022-11-01 | M148: 2022-12-01
A149: HP | B149: 211663.5685 | C149: 213745.1245 | D149: 216641.7245 | E149: 217972.8318 | F149: 219891.2178 | G149: 220790.8376 | H149: 222278.8787 | I149: 222262.1473 | J149: 222290.5293 | K149: 222422.3807 | L149: 222700.4525 | M149: 222375.6418
A150: Index | B150: =+M144/M143*B149 -> 277.2149352 | C150: =+B150*C149/B149 -> 279.9411409 | D150: 283.7348064 | E150: 285.4781524 | F150: 287.9906549 | G150: 289.1688833 | H150: 291.1177648 | I150: 291.0958518 | J150: 291.1330236 | K150: 291.3057089 | L150: 291.6698984 | M150: 291.2444952
A151: Monthly% | B151: =B149/M143*100-100 -> 1.317681594 | C151: =(+C149-B149)/B149*100 -> 0.9834267078 | D151: 1.355165405 | E151: 0.6144279468 | F151: 0.8801032577 | G151: 0.4091203683 | H151: 0.6739596196 | I151: -0.007527198895 | J151: 0.01276959408 | K151: 0.05931490735 | L151: 0.1250197057 | M151: -0.1458509235
A152: Annual% | B152: =B149/B143*100-100 -> 7.226417779 | C152: =(C149-C143)/C143*100 -> 7.362758617 | D152: 6.34041889 | E152: =(E149-E143)/E143*100 -> 7.62644279 | F152: 8.364507152 | G152: =(G149-G143)/G143*100 -> 10.32627714 | H152: 8.869151812 | I152: =(I149-I143)/I143*100 -> 7.193842381 | J152: 6.336447004 | K152: =(K149-K143)/K143*100 -> 6.432607409 | L152: 6.717903499 | M152: =(M149-M143)/M143*100 -> 6.445264222
B154: 2023-01-01 | C154: 2023-02-01 | D154: 2023-03-01 | E154: 2023-04-01 | F154: 2023-05-01 | G154: 2023-06-01 | H154: 2023-07-01 | I154: 2023-08-01 | J154: 2023-09-01 | K154: 2023-10-01 | L154: 2023-11-01 | M154: 2023-12-01
A155: HP | B155: 221156.6809 | C155: 219815.1658 | D155: 219546.1227 | E155: 221162.6316 | F155: 223383.4807 | G155: 223798.0371 | H155: 223264.2882 | I155: 223043.6013 | J155: 223699.403 | K155: 223267.7758 | L155: 222818.7601 | M155: 221508.0868
A156: Index | B156: =+M150/M149*B155 -> 289.6480269 | C156: =+B156*C155/B155 -> 287.8910498 | D156: 287.5386852 | E156: 289.6558205 | F156: 292.5644578 | G156: 293.1074006 | H156: 292.4083518 | I156: 292.1193191 | J156: 292.9782199 | K156: 292.4129196 | L156: 291.8248454 | M156: 290.1082618
A157: Monthly% | B157: =B155/M149*100-100 -> -0.5481539594 | C157: =(+C155-B155)/B155*100 -> -0.6065903851 | D157: -0.1223951329 | E157: 0.7362958215 | F157: 1.004170132 | G157: 0.185580579 | H157: -0.238495784 | I157: -0.09884556594 | J157: 0.2940239587 | K157: -0.1929496097 | L157: -0.2011108754 | M157: -0.5882239319
A158: Annual% | B158: =B155/B149*100-100 -> 4.48500067 | C158: =(C155-C149)/C149*100 -> 2.839850149 | D158: 1.340645805 | E158: =(E155-E149)/E149*100 -> 1.463393301 | F158: 1.588177532 | G158: =(G155-G149)/G149*100 -> 1.36201282 | H158: 0.4433212668 | I158: =(I155-I149)/I149*100 -> 0.3515911613 | J158: 0.6337983547 | K158: =(K155-K149)/K149*100 -> 0.3800854789 | L158: 0.05312408896 | M158: =(M155-M149)/M149*100 -> -0.3901304168
B160: 2024-01-01 | C160: 2024-02-01 | D160: 2024-03-01 | E160: 2024-04-01 | F160: 2024-05-01 | G160: 2024-06-01 | H160: 2024-07-01 | I160: 2024-08-01 | J160: 2024-09-01 | K160: 2024-10-01 | L160: 2024-11-01 | M160: 2024-12-01
A161: HP | B161: 221129.7686 | C161: 220735.5555
A162: Index | B162: =+M156/M155*B161 -> 289.6127799 | C162: =+B162*C161/B161 -> 289.0964806
A163: Monthly% | B163: =B161/M155*100-100 -> -0.1707920684 | C163: =(+C161-B161)/B161*100 -> -0.1782722666
A164: Annual% | B164: =B161/B155*100-100 -> -0.01216891831 | C164: =(C161-C155)/C155*100 -> 0.4187107532

Sheet SERIES CHARTS
B2: WALKER FRASER STEELE HPI (SCOTLAND) NATIONAL AND REGIONAL FORMATTED DATA FROM 2000
B3: A TRUE MEASURE OF HOUSE PRICE INFLATION | M3: =SERIES!$K$3 -> FEBRUARY 2024
O5: © Acadata Limited
O6: Walker Fraser Steele HPI (Scotland) clb/cms
C7: SCOTLAND | O7: www.acadata.co.uk
Q32: Polynomial Order 4

Sheet DATA
B2: WALKER FRASER STEELE HPI (SCOTLAND) NATIONAL AND REGIONAL FORMATTED DATA FROM 2000
B3: A TRUE MEASURE OF HOUSE PRICE INFLATION
H4: =SERIES!$K$3 -> FEBRUARY 2024
H5: © Acadata Limited
D6: SCOTLAND | H6: Walker Fraser Steele HPI (Scotland) clb/cms
D9: Month | E9: Average House Price | F9: Index | G9: Monthly% | H9: Annual%
D10: 2000-01-01 | E10: 76353.59484 | F10: 100
D11: 2000-02-01 | E11: 76365.32758 | F11: 100.0153663 | G11: =(E11-E10)/E10*100 -> 0.01536632876
D12: 2000-03-01 | E12: 76377.06033 | F12: 100.0307327 | G12: =(E12-E11)/E11*100 -> 0.01536396788
D13: 2000-04-01 | E13: 76251.79602 | F13: 99.8666745 | G13: -0.1640077531
D14: 2000-05-01 | E14: 76126.53172 | F14: 99.70261634 | G14: -0.1642771804
D15: 2000-06-01 | E15: 76001.26742 | F15: 99.53855819 | G15: -0.1645474944
D16: 2000-07-01 | E16: 76162.42012 | F16: 99.74961923 | G16: 0.2120394838
D17: 2000-08-01 | E17: 76323.57281 | F17: 99.96068028 | G17: 0.2115908277
D18: 2000-09-01 | E18: 76484.72551 | F18: 100.1717413 | G18: 0.2111440663
D19: 2000-10-01 | E19: 76455.73873 | F19: 100.1337775 | G19: -0.03789878318
D20: 2000-11-01 | E20: 76426.75195 | F20: 100.0958136 | G20: -0.0379131518
D21: 2000-12-01 | E21: 76397.76517 | F21: 100.0578497 | G21: -0.03792753132
D22: 2001-01-01 | E22: 74839 | F22: =+F21*E22/E21 -> 98.01634116 | G22: -2.040328228 | H22: =(E22-E10)/E10*100 -> -1.983658844
D23: 2001-02-01 | E23: 75881 | F23: 99.38104442 | G23: 1.392322185 | H23: =(E23-E11)/E11*100 -> -0.6342244529
D24: 2001-03-01 | E24: 76923 | F24: =+F23*E24/E23 -> 100.7457477 | G24: 1.373202778 | H24: 0.7147953485
D25: 2001-04-01 | E25: 76091.02786 | F25: 99.65611707 | G25: -1.081564864 | H25: -0.2108385295
D26: 2001-05-01 | E26: 75259.05572 | F26: 98.56648646 | G26: -1.093390593 | H26: -1.139518622
D27: 2001-06-01 | E27: 74427.08358 | F27: 97.47685585 | G27: -1.105477783 | H27: -2.071259992
D28: 2001-07-01 | E28: 73998.74498 | F28: 96.91586249 | G28: -0.5755144217 | H28: -2.840869732
D29: 2001-08-01 | E29: 73513.82021 | F29: 96.28075845 | G29: -0.6553148496 | H29: -3.681369328
D30: 2001-09-01 | E30: 72996.15624 | F30: 95.60277601 | G30: -0.7041723156 | H30: -4.561131967
D31: 2001-10-01 | E31: 73611.67995 | F31: 96.40892496 | G31: 0.8432275545 | H31: -3.719876139
D32: 2001-11-01 | E32: 74698.38209 | F32: 97.83217443 | G32: 1.476263196 | H32: -2.261472349
D33: 2001-12-01 | E33: 75445.81804 | F33: 98.81108834 | G33: 1.000605284 | H33: -1.246040537
D34: 2002-01-01 | E34: 77116.65019 | F34: 100.9993706 | G34: 2.214612013 | H34: 3.043400091
D35: 2002-02-01 | E35: 78149.2938 | F35: 102.3518198 | G35: 1.339066989 | H35: 2.989277685
D36: 2002-03-01 | E36: 80084.87904 | F36: 104.8868481 | G36: 2.476778927 | H36: 4.110446864
D37: 2002-04-01 | E37: 80518.38514 | F37: =+F36*E37/E36 -> 105.4546093 | G37: 0.5413082984 | H37: 5.81850108
D38: 2002-05-01 | E38: 81107.81008 | F38: =+F37*E38/E37 -> 106.2265768 | G38: 0.7320377065 | H38: 7.771495805
D39: 2002-06-01 | E39: 80809.37894 | F39: 105.8357227 | G39: -0.3679437759 | H39: 8.575232366
D40: 2002-07-01 | E40: 81206.39994 | F40: 106.3556996 | G40: 0.4913056003 | H40: 9.740239467
D41: 2002-08-01 | E41: 81888.48991 | F41: 107.2490301 | G41: 0.8399460775 | H41: 11.3919664
D42: 2002-09-01 | E42: 83050.00653 | F42: 108.7702638 | G42: 1.418412546 | H42: 13.77312286
D43: 2002-10-01 | E43: 83727.68947 | F43: 109.6578225 | G43: 0.8159938501 | H43: 13.74239731
D44: 2002-11-01 | E44: 84588.5895 | F44: 110.7853398 | G44: 1.028214244 | H44: 13.2401896
D45: 2002-12-01 | E45: 84479.58182 | F45: 110.6425729 | G45: -0.1288680733 | H45: 11.97384296
D46: 2003-01-01 | E46: 84460.21514 | F46: 110.6172084 | G46: -0.02292468651 | H46: 9.522671077
D47: 2003-02-01 | E47: 84163.5531 | F47: 110.2286713 | G47: -0.3512447055 | H47: 7.695858799
D48: 2003-03-01 | E48: 84348.38153 | F48: 110.4707404 | G48: 0.2196062488 | H48: 5.323729692
D49: 2003-04-01 | E49: 86705.9204 | F49: =+F48*E49/E48 -> 113.5583997 | G49: 2.795001906 | H49: 7.684624138
D50: 2003-05-01 | E50: 87322.12481 | F50: =+F49*E50/E49 -> 114.3654402 | G50: 0.7106832067 | H50: 7.661795738
D51: 2003-06-01 | E51: 90252.94153 | F51: 118.2039192 | G51: 3.356327763 | H51: 11.68622098
D52: 2003-07-01 | E52: 92557.87941 | F52: 121.2226872 | G52: 2.553864548 | H52: 13.97855277
D53: 2003-08-01 | E53: 93384.93281 | F53: 122.3058757 | G53: 0.8935526729 | H53: 14.03914386
D54: 2003-09-01 | E54: 93999.47184 | F54: 123.1107351 | G54: 0.6580708566 | H54: 13.18418357
D55: 2003-10-01 | E55: 94870.69868 | F55: 124.2517774 | G55: 0.926842269 | H55: 13.30863096
D56: 2003-11-01 | E56: 95651.46957 | F56: 125.2743499 | G56: 0.8229842329 | H56: 13.07845436
D57: 2003-12-01 | E57: 96974.84184 | F57: 127.0075653 | G57: 1.383535745 | H57: 14.79086397
D58: 2004-01-01 | E58: 100596.8105 | F58: 131.7512432 | G58: 3.73495697 | H58: 19.10555792
D59: 2004-02-01 | E59: 102919.7754 | F59: 134.7936212 | G59: 2.309183509 | H59: 22.28544497
D60: 2004-03-01 | E60: 104379.2662 | F60: 136.7051105 | G60: 1.418085862 | H60: 23.74779967
D61: 2004-04-01 | E61: 103726.4186 | F61: 135.8500785 | G61: -0.6254572037 | H61: 19.6301453
D62: 2004-05-01 | E62: 104557.0867 | F62: 136.9380014 | G62: 0.8008260461 | H62: 19.73722234
D63: 2004-06-01 | E63: 105538.3481 | F63: 138.2231555 | G63: 0.938493444 | H63: 16.93618662
D64: 2004-07-01 | E64: 107351.3148 | F64: 140.5975908 | G64: 1.717827433 | H64: 15.98290229
D65: 2004-08-01 | E65: 109768.2026 | F65: 143.7629791 | G65: 2.251381581 | H65: 17.54380418
D66: 2004-09-01 | E66: 110736.0525 | F66: 145.0305683 | G66: 0.8817216227 | H66: 17.80497313
D67: 2004-10-01 | E67: 111401.5644 | F67: 145.9021865 | G67: 0.6009892975 | H67: 17.42462733
D68: 2004-11-01 | E68: 112750.6012 | F68: 147.6690147 | G68: 1.210967573 | H68: 17.87649651
D69: 2004-12-01 | E69: 116100.5515 | F69: 152.0564313 | G69: 2.971115247 | H69: 19.72234167
D70: 2005-01-01 | E70: 117889.7576 | F70: 154.3997474 | G70: 1.541083194 | H70: 17.19035329
D71: 2005-02-01 | E71: 118362.2447 | F71: 155.0185619 | G71: 0.4007872295 | H71: 15.0043752
D72: 2005-03-01 | E72: 117230.4417 | F72: 153.5362441 | G72: -0.9562195514 | H72: 12.31200028
D73: 2005-04-01 | E73: 119590.5928 | F73: 156.6273246 | G73: 2.013257859 | H73: 15.29424662
D74: 2005-05-01 | E74: 120822.0243 | F74: 158.2401255 | G74: 1.029705989 | H74: 15.55603555
D75: 2005-06-01 | E75: 121910.0886 | F75: 159.665159 | G75: 0.9005513002 | H75: 15.51259877
D76: 2005-07-01 | E76: 120526.9482 | F76: 157.8536655 | G76: =(E76-E75)/E75*100 -> -1.134557836 | H76: 12.27337863
D77: 2005-08-01 | E77: 121898.779 | F77: 159.6503469 | G77: 1.138194321 | H77: 11.05108419
D78: 2005-09-01 | E78: 123570.0046 | F78: 161.8391443 | G78: 1.370994466 | H78: 11.58967809
D79: 2005-10-01 | E79: 126211.8144 | F79: 165.2991122 | G79: 2.137905423 | H79: 13.29447222
D80: 2005-11-01 | E80: 126658.4341 | F80: 165.8840482 | G80: 0.3538651818 | H80: 12.33504099
D81: 2005-12-01 | E81: 126963.0633 | F81: 166.2830199 | G81: 0.2405123874 | H81: 9.356124199
D82: 2006-01-01 | E82: 127006.3415 | F82: 166.3397013 | G82: 0.0340872894 | H82: 7.733143371
D83: 2006-02-01 | E83: 128392.8421 | F83: 168.1555955 | G83: 1.091678214 | H83: 8.474490721
D84: 2006-03-01 | E84: 130676.5136 | F84: 171.146511 | G84: 1.778659508 | H84: 11.46977838
D85: 2006-04-01 | E85: 132338.567 | F85: 173.3232958 | G85: 1.271883816 | H85: 10.65967975
D86: 2006-05-01 | E86: 134423.3024 | F86: 176.0536654 | G86: 1.575304468 | H86: 11.25728372
D87: 2006-06-01 | E87: 135435.0315 | F87: 177.378723 | G87: 0.7526441095 | H87: =(E87-E75)/E75*100 -> 11.09419489
D88: 2006-07-01 | E88: 136351.0713 | F88: 178.5784567 | G88: 0.676368456 | H88: 13.12911623
D89: 2006-08-01 | E89: 136851.9882 | F89: 179.2345056 | G89: 0.3673729365 | H89: 12.26690644
D90: 2006-09-01 | E90: 138944.8738 | F90: 181.9755495 | G90: 1.529305903 | H90: 12.44223406
D91: 2006-10-01 | E91: 141173.3231 | F91: 184.8941407 | G91: 1.60383702 | H91: 11.8542854
D92: 2006-11-01 | E92: 142467.7054 | F92: 186.5893881 | G92: 0.9168745854 | H92: 12.48181494
D93: 2006-12-01 | E93: 144517.36 | F93: 189.2738126 | G93: 1.438680147 | H93: 13.82630212
D94: 2007-01-01 | E94: 147399.6837 | F94: 193.0487805 | G94: 1.9944481 | H94: 16.05694797
D95: 2007-02-01 | E95: 149864.3471 | F95: 196.2767403 | G95: 1.672095405 | H95: 16.72328816
D96: 2007-03-01 | E96: 149177.3632 | F96: 195.3770003 | G96: -0.4584037777 | H96: 14.15774659
D97: 2007-04-01 | E97: 150423.3234 | F97: 197.0088294 | G97: 0.8352206327 | H97: 13.66552226
D98: 2007-05-01 | E98: 151938.1228 | F98: 198.9927562 | G98: 1.007024313 | H98: 13.02960134
D99: 2007-06-01 | E99: 155583.3341 | F99: 203.766875 | G99: 2.399142018 | H99: 14.87672906
D100: 2007-07-01 | E100: 156919.4181 | F100: 205.5167388 | G100: 0.8587577388 | H100: 15.08484428
D101: 2007-08-01 | E101: 158103.4181 | F101: 207.0674189 | G101: 0.7545273892 | H101: 15.52876952
D102: 2007-09-01 | E102: 158576.0437 | F102: 207.6864148 | G102: 0.2989344973 | H102: 14.1287472
D103: 2007-10-01 | E103: 158963.5902 | F103: 208.1939829 | G103: 0.2443915598 | H103: 12.60172015
D104: 2007-11-01 | E104: 159502.0829 | F104: 208.8992447 | G104: 0.3387522507 | H104: 11.95665886
D105: 2007-12-01 | E105: 159833.9789 | F105: 209.3339275 | G105: 0.2080825228 | H105: 10.59846297
D106: 2008-01-01 | E106: 159507.8048 | F106: 208.9067386 | G106: -0.2040705562 | H106: 8.214482383
D107: 2008-02-01 | E107: 159726.4414 | F107: 209.1930861 | G107: 0.1370695137 | H107: 6.580680782
D108: 2008-03-01 | E108: 160335.0155 | F108: 209.9901332 | G108: 0.3810102662 | H108: 7.479453995
D109: 2008-04-01 | E109: 160596.1213 | F109: 210.3321025 | G109: 0.1628501565 | H109: 6.76277969
D110: 2008-05-01 | E110: 160537.5915 | F110: 210.2554462 | G110: -0.03644535578 | H110: 5.659849244
D111: 2008-06-01 | E111: 160287.8533 | F111: 209.9283651 | G111: -0.1555636638 | H111: 3.023793787
D112: 2008-07-01 | E112: 159805.0511 | F112: 209.2960409 | G112: -0.3012095216 | H112: 1.838926647
D113: 2008-08-01 | E113: 158296.4031 | F113: 207.3201707 | G113: -0.9440552302 | H113: 0.1220625489
D114: 2008-09-01 | E114: 156355.2667 | F114: =+F113*E114/E113 -> 204.777872 | G114: -1.226266925 | H114: -1.40044926
D115: 2008-10-01 | E115: 154350.9291 | F115: 202.152799 | G115: -1.281912425 | H115: -2.901709179
D116: 2008-11-01 | E116: 153536.6191 | F116: 201.0863004 | G116: -0.5275705179 | H116: -3.740053869
D117: 2008-12-01 | E117: 152968.7974 | F117: 200.3426266 | G117: -0.3698281703 | H117: -4.295195238
D118: 2009-01-01 | E118: 150413.6673 | F118: 196.9961829 | G118: -1.67036031 | H118: -5.701374583
D119: 2009-02-01 | E119: 148141.801 | F119: 194.0207285 | G119: -1.510412207 | H119: -7.252800667
D120: 2009-03-01 | E120: 144319.0647 | F120: 189.014106 | G120: -2.580457543 | H120: -9.989053714
D121: 2009-04-01 | E121: 146116.9008 | F121: 191.3687248 | G121: 1.245737079 | H121: -9.015921695
D122: 2009-05-01 | E122: 146557.985 | F122: 191.9464111 | G122: 0.3018707793 | H122: -8.707995653
D123: 2009-06-01 | E123: 147881.5447 | F123: 193.6798719 | G123: 0.9030962498 | H123: -7.740017977
D124: 2009-07-01 | E124: 146564.1926 | F124: 191.9545411 | G124: -0.8908157315 | H124: -8.285632002
D125: 2009-08-01 | E125: 146144.2987 | F125: 191.4046077 | G125: -0.2864914992 | H125: -7.676803908
D126: 2009-09-01 | E126: 146583.8842 | F126: 191.9803312 | G126: 0.3007887222 | H126: -6.24947446
D127: 2009-10-01 | E127: 147751.3091 | F127: 193.5093028 | G127: 0.7964210027 | H127: -4.275724199
D128: 2009-11-01 | E128: 149132.047 | F128: 195.3176499 | G128: 0.9345013404 | H128: -2.868743687
D129: 2009-12-01 | E129: 150384.5824 | F129: 196.9580905 | G129: 0.8398834375 | H129: -1.689373963
D130: 2010-01-01 | E130: 151221.2324 | F130: 198.0538476 | G130: 0.5563402697 | H130: 0.5368960479
D131: 2010-02-01 | E131: 152456.3322 | F131: 199.6714529 | G131: 0.8167502531 | H131: 2.912433357
D132: 2010-03-01 | E132: 152725.5946 | F132: 200.0241049 | G132: 0.1766161153 | H132: 5.8249615
D133: 2010-04-01 | E133: 153498.7083 | F133: 201.0366487 | G133: 0.5062109061 | H133: 5.051987436
D134: 2010-05-01 | E134: 153145.2867 | F134: 200.5737739 | G134: -0.2302440063 | H134: 4.494672649
D135: 2010-06-01 | E135: 153237.3295 | F135: 200.6943221 | G135: 0.06010166278 | H135: 3.621672249
D136: 2010-07-01 | E136: 153349.565 | F136: 200.8413165 | G136: 0.07324291605 | H136: 4.629624942
D137: 2010-08-01 | E137: 154388.4775 | F137: 202.201976 | G137: 0.6774798985 | H137: 5.641122454
D138: 2010-09-01 | E138: 155082.0103 | F138: 203.1102932 | G138: 0.4492128232 | H138: 5.797449128
D139: 2010-10-01 | E139: 155135.3128 | F139: 203.1801032 | G139: 0.03437048266 | H139: 4.997589367
D140: 2010-11-01 | E140: 154044.3905 | F140: 201.7513266 | G140: =(E140-E139)/E139*100 -> -0.7032069426 | H140: 3.29395563
D141: 2010-12-01 | E141: 154397.5521 | F141: 202.2138609 | G141: 0.2292596102 | H141: 2.668471462
D142: 2011-01-01 | E142: 154082.5385 | F142: 201.8012889 | G142: -0.2040275617 | H142: 1.892132518
D143: 2011-02-01 | E143: 153538.453 | F143: 201.0887023 | G143: -0.3531130028 | H143: 0.7097906794
D144: 2011-03-01 | E144: 152324.3304 | F144: 199.4985708 | G144: -0.7907612541 | H144: -0.2627354066
D145: 2011-04-01 | E145: 151533.6157 | F145: 198.4629748 | G145: -0.5190994322 | H145: -1.280201368
D146: 2011-05-01 | E146: 151459.3548 | F146: 198.3657156 | G146: -0.04900622035 | H146: -1.100870893
D147: 2011-06-01 | E147: 150860.2407 | F147: 197.5810583 | G147: -0.3955609618 | H147: -1.551246577
D148: 2011-07-01 | E148: 151472.0039 | F148: 198.3822821 | G148: =(E148-E147)/E147*100 -> 0.4055165331 | H148: =(E148-E136)/E136*100 -> -1.224366759
D149: 2011-08-01 | E149: 152576.848 | F149: 199.829292 | G149: 0.7294047842 | H149: -1.17342276
D150: 2011-09-01 | E150: 153710.693 | F150: 201.3142844 | G150: 0.7431304839 | H150: -0.8842529839
D151: 2011-10-01 | E151: 153919.7488 | F151: 201.5880839 | G151: 0.1360060288 | H151: -0.783550765
D152: 2011-11-01 | E152: 153760.0794 | F152: 201.3789655 | G152: -0.1037355378 | H152: -0.1845644094
D153: 2011-12-01 | E153: 153017.2487 | F153: 200.406083 | G153: -0.4831102412 | H153: -0.8939930463
D154: 2012-01-01 | E154: 151438.1219 | F154: 198.3379069 | G154: =(E154-E153)/E153*100 -> -1.031992678 | H154: =(E154-E142)/E142*100 -> -1.716233809
D155: 2012-02-01 | E155: 151030.8937 | F155: 197.8045619 | G155: -0.2689072902 | H155: -1.63317999
D156: 2012-03-01 | E156: 151343.9455 | F156: 198.2145645 | G156: 0.2072766433 | H156: -0.6436167652
D157: 2012-04-01 | E157: 152380.9493 | F157: 199.5727243 | G157: 0.6851967703 | H157: 0.559172055
D158: 2012-05-01 | E158: 152287.3747 | F158: 199.4501699 | G158: -0.06140837214 | H158: 0.546694439
D159: 2012-06-01 | E159: 152933.3133 | F159: 200.2961533 | G159: 0.4241577317 | H159: 1.37416765
D160: 2012-07-01 | E160: 152207.1207 | F160: 199.3450617 | G160: =(E160-E159)/E159*100 -> -0.4748426642 | H160: =(E160-E148)/E148*100 -> 0.4853152847
D161: 2012-08-01 | E161: 151175.2223 | F161: 197.9935884 | G161: -0.6779567514 | H161: -0.9186359044
D162: 2012-09-01 | E162: 150743.8374 | F162: 197.4286054 | G162: -0.285354186 | H162: -1.930155633
D163: 2012-10-01 | E163: 149872.5251 | F163: 196.287451 | G163: -0.5780086045 | H163: -2.629437607
D164: 2012-11-01 | E164: 149311.8128 | F164: 195.5530884 | G164: -0.3741261099 | H164: -2.892991827
D165: 2012-12-01 | E165: 147858.4022 | F165: 193.6495623 | G165: -0.9734063289 | H165: -3.371415001
D166: 2013-01-01 | E166: 148008.2253 | F166: 193.845785 | G166: =(E166-E165)/E165*100 -> 0.1013287447 | H166: =(E166-E154)/E154*100 -> -2.26488322
D167: 2013-02-01 | E167: 149160.4316 | F167: 195.354825 | G167: 0.778474509 | H167: -1.238463277
D168: 2013-03-01 | E168: 149507.7733 | F168: 195.8097371 | G168: 0.2328645522 | H168: -1.213244538
D169: 2013-04-01 | E169: 149720.1386 | F169: 196.087871 | G169: 0.142042936 | H169: -1.746157088
D170: 2013-05-01 | E170: 149514.4127 | F170: 195.8184327 | G170: -0.1374069206 | H170: -1.820874465
D171: 2013-06-01 | E171: 149699.1469 | F171: 196.0603783 | G171: 0.1235560964 | H171: -2.114756001
D172: 2013-07-01 | E172: 150486.503 | F172: 197.0915755 | G172: =(E172-E171)/E171*100 -> 0.5259589992 | H172: =(E172-E160)/E160*100 -> -1.130444922
D173: 2013-08-01 | E173: 150539.365 | F173: 197.1608086 | G173: 0.03512735727 | H173: -0.4206094584
D174: 2013-09-01 | E174: 150824.5515 | F174: 197.5343163 | G174: 0.1894431723 | H174: 0.05354387359
D175: 2013-10-01 | E175: 150910.502 | F175: 197.6468852 | G175: 0.0569870319 | H175: 0.6925731555
D176: 2013-11-01 | E176: 152053.8466 | F176: 199.1443192 | G176: 0.7576309433 | H176: 1.836447989
D177: 2013-12-01 | E177: 152966.1334 | F177: 200.3391376 | G177: 0.5999761517 | H177: 3.454474796
D178: 2014-01-01 | E178: 155047.4567 | F178: =+F177*E178/E177 -> 203.0650385 | G178: =(E178-E177)/E177*100 -> 1.360643209 | H178: =(E178-E166)/E166*100 -> 4.755973168
D179: 2014-02-01 | E179: 154240.3426 | F179: 202.0079643 | G179: -0.5205594096 | H179: 3.405669316
D180: 2014-03-01 | E180: 155210.9519 | F180: 203.2791675 | G180: 0.6292836879 | H180: 3.814636837
D181: 2014-04-01 | E181: 155111.1047 | F181: 203.148398 | G181: -0.06433000965 | H181: 3.600695401
D182: 2014-05-01 | E182: 157379.6954 | F182: 206.1195622 | G182: 1.462558526 | H182: 5.260551488
D183: 2014-06-01 | E183: 158442.7712 | F183: 207.5118683 | G183: 0.6754847095 | H183: 5.84079766
D184: 2014-07-01 | E184: 158920.9565 | F184: =+F183*E184/E183 -> 208.1381458 | G184: =(E184-E183)/E183*100 -> 0.301803197 | H184: =(E184-E172)/E172*100 -> 5.604790671
D185: 2014-08-01 | E185: 159331.0249 | F185: 208.6752107 | G185: 0.2580329146 | H185: 5.840106958
D186: 2014-09-01 | E186: 159226.9838 | F186: 208.5389485 | G186: -0.06529870924 | H186: 5.570997687
D187: 2014-10-01 | E187: 159593.3947 | F187: 209.0188354 | G187: 0.2301186057 | H187: 5.753670317
D188: 2014-11-01 | E188: 158610.907 | F188: 207.7320752 | G188: -0.6156192716 | H188: 4.312327869
D189: 2014-12-01 | E189: 159190.1765 | F189: 208.490742 | G189: 0.3652141208 | H189: 4.068902623
D190: 2015-01-01 | E190: 160698.5711 | F190: =+F189*E190/E189 -> 210.4662806 | G190: =(E190-E189)/E189*100 -> 0.9475425543 | H190: =(E190-E178)/E178*100 -> 3.644764314
D191: 2015-02-01 | E191: 165360.5234 | F191: 216.5720209 | G191: 2.90105395 | H191: 7.209644736
D192: 2015-03-01 | E192: 180702.2426 | F192: 236.6650097 | G192: 9.277739906 | H192: 16.42364174
D193: 2015-04-01 | E193: 177650.6173 | F193: 232.6683081 | G193: -1.688758977 | H193: 14.53120498
D194: 2015-05-01 | E194: 173742.3097 | F194: 227.5496132 | G194: -2.199996614 | H194: 10.39690303
D195: 2015-06-01 | E195: 158095.6062 | F195: 207.0571877 | G195: -9.0056956 | H195: -0.219110662
D196: 2015-07-01 | E196: 159345.0216 | F196: =+F195*E196/E195 -> 208.6935421 | G196: =(E196-E195)/E195*100 -> 0.7902910325 | H196: =(E196-E184)/E184*100 -> 0.2668402293
D197: 2015-08-01 | E197: 160093.4797 | F197: 209.6737947 | G197: 0.4697091364 | H197: 0.4785350461
D198: 2015-09-01 | E198: 160811.056 | F198: 210.6136015 | G198: 0.4482232936 | H198: 0.9948515797
D199: 2015-10-01 | E199: 161429.8537 | F199: 211.4240384 | G199: 0.3847979747 | H199: 1.150711117
D200: 2015-11-01 | E200: 162139.5018 | F200: 212.3534618 | G200: 0.439601573 | H200: 2.224686102
D201: 2015-12-01 | E201: 162415.703 | F201: 212.7152013 | G201: 0.1703478326 | H201: 2.026209515
D202: 2016-01-01 | E202: 162714.5748 | F202: =+F201*E202/E201 -> 213.1066325 | G202: =(E202-E201)/E201*100 -> 0.1840165739 | H202: =(E202-E190)/E190*100 -> 1.254524939
D203: 2016-02-01 | E203: 161936.2824 | F203: 212.0873061 | G203: -0.4783175363 | H203: -2.070772921
... 96 more rows

Sheet REGIONS
B2: WALKER FRASER STEELE HPI (SCOTLAND) NATIONAL AND REGIONAL FORMATTED DATA FROM 2000
B3: A TRUE MEASURE OF HOUSE PRICE INFLATION
J4: =SERIES!$K$3 -> FEBRUARY 2024
J5: © Acadata Limited
I6: Walker Fraser Steele HPI (Scotland) clb/cms
B8: SCOTLAND
A10: Region | B10: North East | E10: North West | H10: Yorks & Humber | K10: East Midlands | N10: West Midlands | Q10: East of England | T10: Greater London | W10: South East | Z10: South West | AC10: Wales | AF10: Scotland | AI10: England & Wales
A11: Month | B11: Ave HP | C11: monthly % | D11: annual % | E11: Ave HP | F11: monthly % | G11: annual % | H11: Ave HP | I11: monthly % | J11: annual % | K11: Ave HP | L11: monthly % | M11: annual % | N11: Ave HP | O11: monthly % | P11: annual % | Q11: Ave HP | R11: monthly % | S11: annual % | T11: Ave HP | U11: monthly % | V11: annual % | W11: Ave HP | X11: monthly % | Y11: annual % | Z11: Ave HP | AA11: monthly % | AB11: annual % | AC11: Ave HP | AD11: monthly % | AE11: annual % | AF11: Ave HP | AG11: monthly % | AH11: annual % | AI11: Ave HP | AJ11: monthly % | AK11: annual %
A12: 2005-01-01 | B12: 133991.5909 | C12: 1.775112876 | D12: 18.6235477 | E12: 147187.6761 | F12: 0.5494768321 | G12: 17.63980821 | H12: 146239.1768 | I12: 1.217158632 | J12: 19.25061988 | K12: 161963.2569 | L12: 0.9548202823 | M12: 15.35115589 | N12: 167288.8792 | O12: -0.03054945302 | P12: 12.73762628 | Q12: 205860.4401 | R12: 0.3923554331 | S12: 11.35745398 | T12: 284460.3468 | U12: 0.2965800647 | V12: 7.583484687 | W12: 239968.2945 | X12: 0.3729360995 | Y12: 9.184506257 | Z12: 204378.8176 | AA12: -0.4114118767 | AB12: 12.67317952 | AC12: 141949.4877 | AD12: 0.05133325789 | AE12: 20.03488846 | AF12: 117889.7576 | AG12: 1.541083194 | AH12: 17.19035329 | AI12: 192890.1976 | AJ12: 0.3885594463 | AK12: 12.45481303
A13: 2005-02-01 | B13: 135539.5138 | C13: 1.155238778 | D13: 18.38364912 | E13: 149773.8742 | F13: 1.757075189 | G13: 17.84205368 | H13: 147361.7628 | I13: 0.7676369678 | J13: 17.81418448 | K13: 162216.5569 | L13: 0.1563935048 | M13: 13.74784924 | N13: 168845.2346 | O13: 0.9303400599 | P13: 12.34241443 | Q13: 207402.7777 | R13: 0.7492151536 | S13: 10.38822844 | T13: 285371.5787 | U13: 0.3203370422 | V13: 7.270949148 | W13: 240446.8511 | X13: 0.1994249439 | Y13: 7.757820336 | Z13: 205247.9596 | AA13: 0.591030347 | AB13: 11.60529905 | AC13: 142944.6515 | AD13: 0.7010689571 | AE13: 18.73139701 | AF13: 118362.2447 | AG13: 0.4007872295 | AH13: 15.0043752 | AI13: 194062.3099 | AJ13: 0.607657769 | AK13: 11.57633051
A14: 2005-03-01 | B14: 136539.7872 | C14: 0.7379939605 | D14: 16.84932248 | E14: 149686.7138 | F14: -0.05819464701 | G14: 16.15643629 | H14: 147549.4674 | I14: 0.1273767451 | J14: 15.18029918 | K14: 160869.4777 | L14: -0.8304202828 | M14: 11.75522554 | N14: 167778.8496 | O14: -0.6315754104 | P14: 10.19037995 | Q14: 206989.6896 | R14: -0.1991719459 | S14: 9.202826448 | T14: 286553.3439 | U14: 0.4141145547 | V14: 6.10323428 | W14: 240954.9788 | X14: 0.2113263825 | Y14: 7.020510786 | Z14: 204579.5241 | AA14: -0.3364909269 | AB14: 9.63214099 | AC14: 142424.237 | AD14: -0.3640671468 | AE14: 16.04220617 | AF14: 117230.4417 | AG14: -0.9562195514 | AH14: 12.31200028 | AI14: 193963.6672 | AJ14: -0.05083042223 | AK14: 10.06473412
A15: 2005-04-01 | B15: 135854.8879 | C15: -0.5016115332 | D15: 13.46164184 | E15: 149935.2257 | F15: 0.1660213593 | G15: 14.25605167 | H15: 147207.4595 | I15: -0.2317920108 | J15: 12.32977398 | K15: 159640.628 | L15: -0.763879977 | M15: 9.690927251 | N15: 169053.687 | O15: 0.7598319619 | P15: 10.03123331 | Q15: 208162.5453 | R15: 0.5666251966 | S15: 8.708166438 | T15: 285838.32 | U15: -0.2495255707 | V15: 4.757673199 | W15: 240640.6272 | X15: -0.1304607077 | Y15: 6.191729119 | Z15: 204659.4098 | AA15: -0.05655692176 | AB15: 8.255736589 | AC15: 143363.8085 | AD15: 0.6596991371 | AE15: 15.60497125 | AF15: 119590.5928 | AG15: 2.013257859 | AH15: 15.29424662 | AI15: 194002.6202 | AJ15: 0.02008263234 | AK15: 8.801870707
A16: 2005-05-01 | B16: 135971.2713 | C16: 0.08566745646 | D16: 10.37783476 | E16: 149993.3556 | F16: 0.03876997787 | G16: 11.85582457 | H16: 146822.0681 | I16: -0.2618015615 | J16: 10.29829461 | K16: 160129.3881 | L16: 0.3061627302 | M16: 8.330708209 | N16: 169106.7693 | O16: 0.03139967221 | P16: 8.639424546 | Q16: 207818.5835 | R16: -0.1652371147 | S16: 7.463533078 | T16: 285573.2381 | U16: -0.09273841556 | V16: 3.958826926 | W16: 238554.3557 | X16: -0.8669656114 | Y16: 4.622568728 | Z16: 203286.0126 | AA16: -1.033944516 | AB16: 5.346314658 | AC16: 143453.5106 | AD16: 0.06256958654 | AE16: 13.34100291 | AF16: 120822.0243 | AG16: 1.029705989 | AH16: 15.55603555 | AI16: 193452.2717 | AJ16: -0.2836809733 | AK16: 7.098791754
A17: 2005-06-01 | B17: 136451.8836 | C17: 0.3534661073 | D17: 8.921217165 | E17: 151084.0627 | F17: 0.7271702558 | G17: 9.808132549 | H17: 147737.4194 | I17: 0.6234425894 | J17: 9.743992611 | K17: 160716.3967 | L17: 0.3665839604 | M17: 6.834383969 | N17: 171471.6126 | O17: 1.398432117 | P17: 8.19100524 | Q17: 207428.0693 | R17: -0.1879111334 | S17: 6.01104361 | T17: 285558.7584 | U17: -0.005070386641 | V17: 3.78902287 | W17: 239439.657 | X17: 0.3711109419 | Y17: 4.077271147 | Z17: 202290.4993 | AA17: -0.3836203743 | AB17: 4.051695766 | AC17: 144628.469 | AD17: 0.8190516712 | AE17: 11.83748931 | AF17: 121910.0886 | AG17: 0.9005513002 | AH17: 15.51259877 | AI17: 194018.2252 | AJ17: 0.292554589 | AK17: 6.162335151
A18: 2005-07-01 | B18: 136955.9971 | C18: 0.3694441092 | D18: 8.538206016 | E18: 152353.0847 | F18: 0.8399443653 | G18: 8.379861837 | H18: 148228.5177 | I18: 0.3324129703 | J18: 8.176951775 | K18: 161520.0235 | L18: 0.5000278389 | M18: 5.753056496 | N18: 170252.6081 | O18: -0.7109074767 | P18: 5.345078118 | Q18: 206809.6136 | R18: -0.2981542665 | S18: 4.631474321 | T18: 285878.7635 | U18: 0.1120627806 | V18: 3.488865794 | W18: 238803.0729 | X18: -0.265864138 | Y18: 3.258412289 | Z18: 201862.1372 | AA18: -0.2113758757 | AB18: 2.537751494 | AC18: 145760.5046 | AD18: 0.782719732 | AE18: 9.655395465 | AF18: 120526.9482 | AG18: -1.134557836 | AH18: 12.27337863 | AI18: 194071.9092 | AJ18: 0.02766956546 | AK18: 4.960928719
A19: 2005-08-01 | B19: 137525.0056 | C19: 0.415468138 | D19: 7.866839314 | E19: 152532.7704 | F19: 0.1179403116 | G19: 6.251723533 | H19: 149126.4217 | I19: 0.6057565886 | J19: 6.656077028 | K19: 161543.6497 | L19: 0.01462742234 | M19: 4.550858961 | N19: 169683.9663 | O19: -0.3339988845 | P19: 3.169644248 | Q19: 207102.4119 | R19: 0.1415786529 | S19: 3.901831454 | T19: 285951.7657 | U19: 0.02553604369 | V19: 3.008184924 | W19: 239729.3804 | X19: 0.3878959994 | Y19: 2.788042684 | Z19: 201580.1533 | AA19: -0.184068822 | AB19: 1.645921271 | AC19: 147413.5027 | AD19: 1.134050765 | AE19: 9.103039164 | AF19: 121898.779 | AG19: 1.138194321 | AH19: 11.05108419 | AI19: 194408.8734 | AJ19: 0.1736284986 | AK19: 3.983133309
A20: 2005-09-01 | B20: 139267.3748 | C20: 1.266947173 | D20: 7.909057298 | E20: 153399.607 | F20: 0.5682953071 | G20: 5.876308527 | H20: 150913.377 | I20: 1.19828216 | J20: 6.035938485 | K20: 162702.2069 | L20: 0.7171790396 | M20: 3.920957458 | N20: 169090.571 | O20: -0.3497061972 | P20: 2.041629296 | Q20: 207707.2842 | R20: 0.2920643714 | S20: 3.305347602 | T20: 286754.1944 | U20: 0.2806168317 | V20: 2.664811599 | W20: 239511.6657 | X20: -0.09081688208 | Y20: 2.396715129 | Z20: 201839.9326 | AA20: 0.1709808307 | AB20: 0.7442589494 | AC20: 148400.1244 | AD20: 0.6692885478 | AE20: 8.059433537 | AF20: 123570.0046 | AG20: 1.370994466 | AH20: 11.58967809 | AI20: 195011.417 | AJ20: 0.3099362665 | AK20: 3.417172256
A21: 2005-10-01 | B21: 141538.6476 | C21: 1.630872147 | D21: 8.536222182 | E21: 154188.0252 | F21: 0.5139636179 | G21: 5.774685469 | H21: 151925.5462 | I21: 0.6706954343 | J21: 5.872645574 | K21: 162991.5157 | L21: 0.1778149567 | M21: 2.985183094 | N21: 170524.5461 | O21: 0.848051484 | P21: 2.013323334 | Q21: 208411.2491 | R21: 0.3389215811 | S21: 3.032069074 | T21: 289102.2083 | U21: 0.818824588 | V21: 2.771776119 | W21: 240473.1105 | X21: 0.4014188027 | Y21: 1.76282472 | Z21: 203074.4677 | AA21: 0.5251594947 | AB21: 0.1557807736 | AC21: 150011.1099 | AD21: 1.085568862 | AE21: 7.62431907 | AF21: 126211.8144 | AG21: 2.137905423 | AH21: 13.29447222 | AI21: 196181.058 | AJ21: 0.599780804 | AK21: 3.106891293
A22: 2005-11-01 | B22: 142685.652 | C22: 0.8103824435 | D22: 8.790337744 | E22: 154679.0525 | F22: 0.3184600648 | G22: 6.522247691 | H22: 152769.2325 | I22: 0.555328824 | J22: 5.937836083 | K22: 163342.756 | L22: 0.2154960185 | M22: 2.631821274 | N22: 171717.8454 | O22: 0.699781586 | P22: 3.178957491 | Q22: 208023.8831 | R22: -0.1858661706 | S22: 2.323096204 | T22: 290899.8429 | U22: 0.6217989998 | V22: 2.829723009 | W22: 241652.5347 | X22: 0.4904599145 | Y22: 1.32060645 | Z22: 204461.7414 | AA22: 0.7998031783 | AB22: 0.4319753867 | AC22: 150127.2952 | AD22: 0.07745113977 | AE22: 6.895215864 | AF22: 126658.4341 | AG22: 0.3538651818 | AH22: 12.33504099 | AI22: 197023.6247 | AJ22: 0.429484208 | AK22: 3.089973015
A23: 2005-12-01 | B23: 146131.3907 | C23: 2.414916079 | D23: 10.99606088 | E23: 158906.047 | F23: 2.732751771 | G23: 8.554739906 | H23: 157313.7508 | I23: 2.974760186 | J23: 8.88225182 | K23: 166094.8543 | L23: 1.684860967 | M23: 3.530124596 | N23: 176685.4443 | O23: 2.892884437 | P23: 5.584703962 | Q23: 215256.4335 | R23: 3.476788522 | S23: 4.974517564 | T23: 295291.4936 | U23: 1.509677917 | V23: 4.115484864 | W23: 250968.0686 | X23: 3.854929096 | Y23: 4.97387568 | Z23: 213562.2757 | AA23: 0.9778553549 | AB23: 4.06345316 | AC23: 154340.8156 | AD23: 2.806631817 | AE23: 8.78520683 | AF23: 126963.0633 | AG23: 0.2405123874 | AH23: 9.356124199 | AI23: 202962.8962 | AJ23: 3.014497134 | AK23: 5.630835666
A24: 2006-01-01 | B24: 149606.0713 | C24: 2.377778339 | D24: 11.65332856 | E24: 163167.0929 | F24: 2.681487554 | G24: 10.85649101 | H24: 162047.8683 | I24: 3.009347538 | J24: 10.81016174 | K24: 169306.2683 | L24: 1.933481967 | M24: 4.533751425 | N24: 181770.7555 | O24: 2.878172157 | P24: 8.656807574 | Q24: 222356.1891 | R24: 3.298278007 | S24: 8.013073826 | T24: 296961.9448 | U24: 0.5656956763 | V24: 4.394847355 | W24: 261043.1015 | X24: 4.014468052 | Y24: 8.782329804 | Z24: 219287.0583 | AA24: 2.6806151 | AB24: 7.294415768 | AC24: 158330.2133 | AD24: 2.5847976 | AE24: 11.53982722 | AF24: 127006.3415 | AG24: 0.0340872894 | AH24: 7.733143371 | AI24: 208412.3116 | AJ24: 2.684931861 | AK24: 8.04712432
A25: 2006-02-01 | B25: 153089.2431 | C25: 2.32822892 | D25: 12.94805393 | E25: 167404.5513 | F25: 2.59700552 | G25: 11.77153037 | H25: 166710.5038 | I25: 2.877319876 | J25: 13.13009611 | K25: 173712.1449 | L25: 2.602311536 | M25: 7.086568859 | N25: 185621.3897 | O25: 2.118401394 | P25: 9.935817946 | Q25: 230664.2427 | R25: 3.736371607 | S25: 11.21559952 | T25: 300266.8956 | U25: 1.112920639 | V25: 5.219621732 | W25: 271528.171 | X25: 4.016604677 | Y25: 12.92648238 | Z25: 226989.6602 | AA25: 3.512565656 | AB25: 10.59289489 | AC25: 163315.1903 | AD25: 3.148468559 | AE25: 14.25064778 | AF25: 128392.8421 | AG25: 1.091678214 | AH25: 8.474490721 | AI25: 214499.1089 | AJ25: 2.920555499 | AK25: 10.53105004
A26: 2006-03-01 | B26: 153053.9298 | C26: -0.02306710189 | D26: 12.09474762 | E26: 168219.7692 | F26: 0.4869747858 | G26: 12.3812294 | H26: 166618.1303 | I26: -0.05540951718 | J26: 12.92357289 | K26: 174597.6756 | L26: 0.5097690276 | M26: 8.533749288 | N26: 186115.3791 | O26: 0.2661274067 | P26: 10.92898749 | Q26: 232467.6962 | R26: 0.7818522544 | S26: 12.30882888 | T26: 300518.1173 | U26: 0.08366612273 | V26: 4.873359066 | W26: 274023.1122 | X26: 0.9188516909 | Y26: 13.72378092 | Z26: 227980.2978 | AA26: 0.4364240979 | AB26: 11.438473 | AC26: 163907.3287 | AD26: 0.3625739745 | AE26: 15.08387347 | AF26: 130676.5136 | AG26: 1.778659508 | AH26: 11.46977838 | AI26: 215515.6159 | AJ26: 0.4738980229 | AK26: 11.11133286
A27: 2006-04-01 | B27: 152439.0514 | C27: -0.4017397065 | D27: 12.20726308 | E27: 168675.4148 | F27: 0.2708632431 | G27: 12.49885672 | H27: 168244.1872 | I27: 0.9759183369 | J27: 14.29053107 | K27: 175256.4902 | L27: 0.3773329381 | M27: 9.781884709 | N27: 186655.0391 | O27: 0.2899599068 | P27: 10.41169374 | Q27: 233849.4697 | R27: 0.5943937453 | S27: 12.33983969 | T27: 303629.5826 | U27: 1.035366968 | V27: 6.224239826 | W27: 276710.977 | X27: 0.9808898236 | Y27: 14.98930177 | Z27: 232169.6426 | AA27: 1.837590725 | AB27: 13.44195843 | AC27: 163273.9251 | AD27: -0.3864400655 | AE27: 13.88782627 | AF27: 132338.567 | AG27: 1.271883816 | AH27: 10.65967975 | AI27: 217191.3131 | AJ27: 0.7775293704 | AK27: 11.95277304
A28: 2006-05-01 | B28: 152961.0817 | C28: 0.3424518063 | D28: 12.49514715 | E28: 169453.3874 | F28: 0.4612246732 | G28: 12.97392923 | H28: 168801.5421 | I28: 0.3312773272 | J28: 14.97014332 | K28: 176172.0131 | L28: 0.5223903143 | M28: 10.01853888 | N28: 187294.7221 | O28: 0.3427086911 | P28: 10.75530741 | Q28: 235086.1969 | R28: 0.5288561066 | S28: 13.12087346 | T28: 305570.3126 | U28: 0.6391768582 | V28: 7.002432945 | W28: 277518.2457 | X28: 0.2917371502 | Y28: 16.33333832 | Z28: 234469.7969 | AA28: 0.9907213814 | AB28: 15.33985733 | AC28: 162989.0143 | AD28: -0.1744986471 | AE28: 13.61800324 | AF28: 134423.3024 | AG28: 1.575304468 | AH28: 11.25728372 | AI28: 218233.4194 | AJ28: 0.4798102746 | AK28: 12.80995432
A29: 2006-06-01 | B29: 153804.8866 | C29: 0.5516467646 | D29: 12.71730552 | E29: 169731.5611 | F29: 0.1641594086 | G29: 12.34246557 | H29: 169354.3711 | I29: 0.3275023709 | J29: 14.6320085 | K29: 176225.9508 | L29: 0.03061651122 | M29: 9.650262442 | N29: 187965.7051 | O29: 0.3582497996 | P29: 9.619138835 | Q29: 236095.7409 | R29: 0.4294356688 | S29: 13.8205363 | T29: 307779.8267 | U29: 0.7230787692 | V29: 7.781609765 | W29: 280840.6157 | X29: 1.197171731 | Y29: 17.29076928 | Z29: 235525.6712 | AA29: 0.4503242393 | AB29: 16.42942797 | AC29: 163952.3225 | AD29: 0.5910264572 | AE29: 13.36103029 | AF29: 135435.0315 | AG29: 0.7526441095 | AH29: 11.09419489 | AI29: 219510.8153 | AJ29: 0.585334715 | AK29: 13.13927601
A30: 2006-07-01 | B30: 153701.3017 | C30: -0.06734821425 | D30: 12.22677721 | E30: 170341.7983 | F30: 0.3595307802 | G30: 11.8072526 | H30: 168467.2967 | I30: -0.523797792 | J30: 13.6537687 | K30: 175945.0837 | L30: -0.1593789581 | M30: 8.930818579 | N30: 187324.2498 | O30: -0.341261911 | P30: 10.02724236 | Q30: 237045.8804 | R30: 0.4024382145 | S30: 14.62033907 | T30: 309534.3811 | U30: 0.5700680223 | V30: 8.274702613 | W30: 281554.3254 | X30: 0.2541333624 | Y30: 17.9023042 | Z30: 235683.2333 | AA30: 0.06689806183 | AB30: 16.7545517 | AC30: 165181.2994 | AD30: 0.7495940885 | AE30: 13.32377036 | AF30: 136351.0713 | AG30: 0.676368456 | AH30: 13.12911623 | AI30: 219914.2591 | AJ30: 0.1837922233 | AK30: 13.31586319
A31: 2006-08-01 | B31: 152650.7873 | C31: -0.6834778675 | D31: 10.99856834 | E31: 170999.8996 | F31: 0.386341672 | G31: 12.10699127 | H31: 169916.6942 | I31: 0.8603435717 | J31: 13.94137421 | K31: 175942.786 | L31: -0.0013059462 | M31: 8.913464768 | N31: 189091.0039 | O31: 0.9431529373 | P31: 11.43716642 | Q31: 238698.4242 | R31: 0.6971409223 | S31: 15.25622614 | T31: 311600.0007 | U31: 0.6673312572 | V31: 8.969427067 | W31: 284881.4052 | X31: 1.181683071 | Y31: 18.83458118 | Z31: 236562.13 | AA31: 0.3729143806 | AB31: 17.35387939 | AC31: 166957.312 | AD31: 1.075189851 | AE31: 13.25781492 | AF31: 136851.9882 | AG31: 0.3673729365 | AH31: 12.26690644 | AI31: 221414.1253 | AJ31: 0.6820231496 | AK31: 13.89095645
A32: 2006-09-01 | B32: 152113.5067 | C32: -0.3519671405 | D32: 9.22407848 | E32: 172233.9116 | F32: 0.7216448233 | G32: 12.27793533 | H32: 171949.1759 | I32: 1.196163618 | J32: 13.9389889 | K32: 178252.2711 | L32: 1.31263419 | M32: 9.557377596 | N32: 190388.5609 | O32: 0.6862076896 | P32: 12.59561065 | Q32: 240068.6644 | R32: 0.5740465891 | S32: 15.58028175 | T32: 314950.6046 | U32: 1.075290058 | V32: 9.832954725 | W32: 287014.4001 | X32: 0.7487308312 | Y32: 19.83316107 | Z32: 237855.8062 | AA32: 0.5468653311 | AB32: 17.84378005 | AC32: 168045.2788 | AD32: 0.6516436767 | AE32: 13.23796358 | AF32: 138944.8738 | AG32: 1.529305903 | AH32: 12.44223406 | AI32: 223135.0313 | AJ32: 0.7772340803 | AK32: 14.42152199
A33: 2006-10-01 | B33: 152598.4755 | C33: 0.3188203077 | D33: 7.81399855 | E33: 172600.2829 | F33: 0.2127173098 | G33: 11.9414317 | H33: 174182.0112 | I33: 1.298543753 | J33: 14.64958698 | K33: 179261.1489 | L33: 0.5659831316 | M33: 9.981889623 | N33: 191249.2144 | O33: 0.4520510144 | P33: 12.15348099 | Q33: 241558.9317 | R33: 0.6207671159 | S33: 15.90493928 | T33: 317538.7389 | U33: 0.8217588103 | V33: 9.836151294 | W33: 288959.8731 | X33: 0.6778311421 | Y33: 20.1630704 | Z33: 239589.529 | AA33: 0.728896524 | AB33: 17.98111877 | AC33: 169386.3708 | AD33: 0.7980539788 | AE33: 12.91588398 | AF33: 141173.3231 | AG33: 1.60383702 | AH33: 11.8542854 | AI33: 224622.1217 | AJ33: 0.6664531085 | AK33: 14.49735462
A34: 2006-11-01 | B34: 154690.1364 | C34: 1.370695834 | D34: 8.413238684 | E34: 172405.381 | F34: -0.1129209453 | G34: 11.46007057 | H34: 174406.9611 | I34: 0.1291464434 | J34: 14.16366908 | K34: 178935.2207 | L34: -0.1818175734 | M34: 9.545856262 | N34: 190702.0688 | O34: -0.2860903501 | P34: 11.05547494 | Q34: 240032.0742 | R34: -0.6320848886 | S34: 15.38678668 | T34: 322379.7606 | U34: 1.524545241 | V34: 10.82156572 | W34: 289826.1881 | X34: 0.2998046071 | Y34: 19.93509127 | Z34: 239124.4574 | AA34: -0.1941117839 | AB34: 16.95315506 | AC34: 168694.7522 | AD34: -0.4083082873 | AE34: 12.36780892 | AF34: 142467.7054 | AG34: 0.9168745854 | AH34: 12.48181494 | AI34: 225033.9279 | AJ34: 0.1833328926 | AK34: 14.21672314
A35: 2006-12-01 | B35: 154902.4004 | C35: 0.1372187938 | D35: 6.002139316 | E35: 171291.3663 | F35: -0.6461600497 | G35: 7.794114546 | H35: 171914.0238 | I35: -1.429379441 | J35: 9.280989693 | K35: 176419.4414 | L35: -1.405972081 | M35: 6.216078854 | N35: 188239.5394 | O35: -1.291296619 | P35: 6.53935882 | Q35: 236069.9174 | R35: -1.650678038 | S35: 9.669157647 | T35: 328176.8216 | U35: 1.798208717 | V35: 11.13656461 | W35: 281875.882 | X35: -2.743128956 | Y35: 12.31543661 | Z35: 235784.2693 | AA35: -1.396840882 | AB35: 10.40539276 | AC35: 166051.3389 | AD35: -1.566980185 | AE35: 7.587444181 | AF35: 144517.36 | AG35: 1.438680147 | AH35: 13.82630212 | AI35: 222513.4591 | AJ35: -1.120039468 | AK35: 9.632579791
A36: 2007-01-01 | B36: 155549.9263 | C36: 0.4180218532 | D36: 3.973003859 | E36: 170387.1795 | F36: -0.5278648024 | G36: 4.424964919 | H36: 168942.2061 | I36: -1.728665088 | J36: 4.254506938 | K36: 176079.5311 | L36: -0.192671701 | M36: 4.000597726 | N36: 187480.6814 | O36: -0.4031342436 | P36: 3.141278618 | Q36: 232657.6914 | R36: -1.445430251 | S36: 4.632883095 | T36: 334113.9184 | U36: 1.809115209 | V36: 12.51068502 | W36: 276528.8345 | X36: -1.896951051 | Y36: 5.932251366 | Z36: 229703.6396 | AA36: -2.578895377 | AB36: 4.750203423 | AC36: 164114.6735 | AD36: -1.166305177 | AE36: 3.653415259 | AF36: 147399.6837 | AG36: 1.9944481 | AH36: 16.05694797 | AI36: 220589.2425 | AJ36: -0.86476413 | AK36: 5.842711873
A37: 2007-02-01 | B37: 154393.0378 | C37: -0.7437409136 | D37: 0.8516566544 | E37: 170914.8505 | F37: 0.3096893498 | G37: 2.096895892 | H37: 166710.5038 | I37: -1.320985636 | J37: 0 | K37: 176399.3162 | L37: 0.1816140446 | M37: 1.546910452 | N37: 185621.3897 | O37: -0.9917243977 | P37: 0 | Q37: 231844.8392 | R37: -0.3493769209 | S37: 0.5118246707 | T37: 340049.9218 | U37: 1.776640563 | V37: 13.24922153 | W37: 271528.171 | X37: -1.808369655 | Y37: 0 | Z37: 226989.6602 | AA37: -1.181513473 | AB37: 0 | AC37: 163315.1903 | AD37: -0.4871491195 | AE37: 0 | AF37: 149864.3471 | AG37: 1.672095405 | AH37: 16.72328816 | AI37: 219585.7795 | AJ37: -0.4549011605 | AK37: 2.371418069
A38: 2007-03-01 | B38: 154066.2458 | C38: -0.2116624272 | D38: 0.6614112604 | E38: 171605.3741 | F38: 0.404016166 | G38: 2.012608177 | H38: 166618.1303 | I38: -0.05540951718 | J38: 0 | K38: 177175.6913 | L38: 0.4401236203 | M38: 1.476546387 | N38: 186115.3791 | O38: 0.2661274067 | P38: 0 | Q38: 233982.5922 | R38: 0.9220619281 | S38: 0.6516586769 | T38: 343983.4122 | U38: 1.15673909 | V38: 14.46345241 | W38: 274023.1122 | X38: 0.9188516909 | Y38: 0 | Z38: 227980.2978 | AA38: 0.4364240979 | AB38: 0 | AC38: 163907.3287 | AD38: 0.3625739745 | AE38: 0 | AF38: 149177.3632 | AG38: -0.4584037777 | AH38: 14.15774659 | AI38: 220992.0094 | AJ38: 0.6404011812 | AK38: 2.541065756
A39: 2007-04-01 | B39: 153503.1671 | C39: -0.3654782571 | D39: 0.6980597788 | E39: 172330.593 | F39: 0.4226085073 | G39: 2.166989317 | H39: 168244.1872 | I39: 0.9759183369 | J39: 0 | K39: 177572.3105 | L39: 0.2238564508 | M39: 1.321389207 | N39: 186655.0391 | O39: 0.2899599068 | P39: 0 | Q39: 235410.522 | R39: 0.6102718184 | S39: 0.6675457888 | T39: 348248.9514 | U39: 1.240042145 | V39: 14.6953299 | W39: 276710.977 | X39: 0.9808898236 | Y39: 0 | Z39: 232169.6426 | AA39: 1.837590725 | AB39: 0 | AC39: 163273.9251 | AD39: -0.3864400655 | AE39: 0 | AF39: 150423.3234 | AG39: 0.8352206327 | AH39: 13.66552226 | AI39: 222808.9715 | AJ39: 0.8221845314 | AK39: 2.586502351
A40: 2007-05-01 | B40: 153419.3305 | C40: -0.05461558347 | D40: 0.2995852046 | E40: 172296.1179 | F40: -0.02000517874 | G40: 1.677588503 | H40: 168801.5421 | I40: 0.3312773272 | J40: 0 | K40: 178484.275 | L40: 0.5135736228 | M40: 1.312502437 | N40: 187294.7221 | O40: 0.3427086911 | P40: 0 | Q40: 236502.6339 | R40: 0.4639180645 | S40: 0.6025181582 | T40: 352487.7546 | U40: 1.217176134 | V40: 15.35405764 | W40: 277518.2457 | X40: 0.2917371502 | Y40: 0 | Z40: 234469.7969 | AA40: 0.9907213814 | AB40: 0 | AC40: 162989.0143 | AD40: -0.1744986471 | AE40: 0 | AF40: 151938.1228 | AG40: 1.007024313 | AH40: 13.02960134 | AI40: 223946.863 | AJ40: 0.5107027208 | AK40: 2.618042499
A41: 2007-06-01 | B41: 154482.8953 | C41: 0.6932404016 | D41: 0.4408238965 | E41: 172568.1441 | F41: 0.1578829163 | G41: 1.671217176 | H41: 169354.3711 | I41: 0.3275023709 | J41: 0 | K41: 178843.522 | L41: 0.2012765368 | M41: 1.48534946 | N41: 187965.7051 | O41: 0.3582497996 | P41: 0 | Q41: 237506.8474 | R41: 0.4246098605 | S41: 0.597684033 | T41: 359348.8036 | U41: 1.946464508 | V41: 16.75515172 | W41: 280840.6157 | X41: 1.197171731 | Y41: 0 | Z41: 235525.6712 | AA41: 0.4503242393 | AB41: 0 | AC41: 163952.3225 | AD41: 0.5910264572 | AE41: 0 | AF41: 155583.3341 | AG41: 2.399142018 | AH41: 14.87672906 | AI41: 225752.0097 | AJ41: 0.8060602445 | AK41: 2.843228624
A42: 2007-07-01 | B42: 154112.9696 | C42: -0.2394605913 | D42: 0.267836303 | E42: 173187.8107 | F42: 0.3590851895 | G42: 1.670765761 | H42: 168467.2967 | I42: -0.523797792 | J42: 0 | K42: 179162.8604 | L42: 0.1785574444 | M42: 1.828852871 | N42: 187324.2498 | O42: -0.341261911 | P42: 0 | Q42: 238471.3972 | R42: 0.4061145193 | S42: 0.6013674868 | T42: 364432.1527 | U42: 1.414600256 | V42: 17.7355974 | W42: 281554.3254 | X42: 0.2541333624 | Y42: 0 | Z42: 235683.2333 | AA42: 0.06689806183 | AB42: 0 | AC42: 165181.2994 | AD42: 0.7495940885 | AE42: 0 | AF42: 156919.4181 | AG42: 0.8587577388 | AH42: 15.08484428 | AI42: 226550.8526 | AJ42: 0.353858601 | AK42: 3.017809511
A43: 2007-08-01 | B43: 153858.3983 | C43: -0.1651848839 | D43: 0.7910938127 | E43: 174028.8804 | F43: 0.4856402104 | G43: 1.771334806 | H43: 169916.6942 | I43: 0.8603435717 | J43: 0 | K43: 179106.996 | L43: -0.03118081228 | M43: 1.79843124 | N43: 189091.0039 | O43: 0.9431529373 | P43: 0 | Q43: 240240.0836 | R43: 0.7416765352 | S43: 0.6458607417 | T43: 369289.8345 | U43: 1.332945449 | V43: 18.51406727 | W43: 284881.4052 | X43: 1.181683071 | Y43: 0 | Z43: 236562.13 | AA43: 0.3729143806 | AB43: 0 | AC43: 166957.312 | AD43: 1.075189851 | AE43: 0 | AF43: 158103.4181 | AG43: 0.7545273892 | AH43: 15.52876952 | AI43: 228414.5533 | AJ43: 0.822641222 | AK43: 3.161689872
A44: 2007-09-01 | B44: 153599.1816 | C44: -0.1684774347 | D44: 0.9766883258 | E44: 175862.2417 | F44: 1.053481063 | G44: 2.10662934 | H44: 171949.1759 | I44: 1.196163618 | J44: 0 | K44: 181158.3057 | L44: 1.14529848 | M44: 1.630293151 | N44: 190388.5609 | O44: 0.6862076896 | P44: 0 | Q44: 241667.9166 | R44: 0.5943358799 | S44: 0.66616452 | T44: 371655.9853 | U44: 0.6407300205 | V44: 18.00453148 | W44: 287014.4001 | X44: 0.7487308312 | Y44: 0 | Z44: 237855.8062 | AA44: 0.5468653311 | AB44: 0 | AC44: 168045.2788 | AD44: 0.6516436767 | AE44: 0 | AF44: 158576.0437 | AG44: 0.2989344973 | AH44: 14.1287472 | AI44: 230104.0644 | AJ44: 0.7396687752 | AK44: 3.123235747
A45: 2007-10-01 | B45: 154593.294 | C45: 0.6472120669 | D45: 1.307233603 | E45: 176271.5241 | F45: 0.2327290054 | G45: 2.127019235 | H45: 174182.0112 | I45: 1.298543753 | J45: 0 | K45: 181393.7157 | L45: 0.1299471014 | M45: 1.189642463 | N45: 191249.2144 | O45: 0.4520510144 | P45: 0 | Q45: 243145.6522 | R45: 0.6114736203 | S45: 0.6568668314 | T45: 373294.4638 | U45: 0.4408588853 | V45: 17.55871584 | W45: 288959.8731 | X45: 0.6778311421 | Y45: 0 | Z45: 239589.529 | AA45: 0.728896524 | AB45: 0 | AC45: 169386.3708 | AD45: 0.7980539788 | AE45: 0 | AF45: 158963.5902 | AG45: 0.2443915598 | AH45: 12.60172015 | AI45: 231450.5554 | AJ45: 0.5851661311 | AK45: 3.039964946
A46: 2007-11-01 | B46: 156050.2599 | C46: 0.9424508908 | D46: 0.8792567594 | E46: 176081.6706 | F46: -0.1077051832 | G46: 2.13235196 | H46: 174406.9611 | I46: 0.1291464434 | J46: 0 | K46: 180942.5086 | L46: -0.2487446238 | M46: 1.121795863 | N46: 190702.0688 | O46: -0.2860903501 | P46: 0 | Q46: 241669.4897 | R46: -0.6071103876 | S46: 0.6821652894 | T46: 372005.7089 | U46: -0.3452381398 | V46: 15.39363022 | W46: 289826.1881 | X46: 0.2998046071 | Y46: 0 | Z46: 239124.4574 | AA46: -0.1941117839 | AB46: 0 | AC46: 168694.7522 | AD46: -0.4083082873 | AE46: 0 | AF46: 159502.0829 | AG46: 0.3387522507 | AH46: 11.95665886 | AI46: 231179.8764 | AJ46: -0.1169489649 | AK46: 2.731120838
A47: 2007-12-01 | B47: 155963.5277 | C47: -0.05557969165 | D47: 0.6850295964 | E47: 175591.147 | F47: -0.2785772874 | G47: 2.510214477 | H47: 174574.4811 | I47: 0.09605122571 | J47: 1.547551043 | K47: 179882.8583 | L47: -0.5856281341 | M47: 1.963171907 | N47: 189489.3086 | O47: -0.6359449876 | P47: 0.6639248707 | Q47: 243561.6692 | R47: 0.7829617128 | S47: 3.173530911 | T47: 372730.8422 | U47: 0.1949253091 | V47: 13.57622405 | W47: 290730.471 | X47: 0.3120086917 | Y47: 3.141307771 | Z47: 239937.2795 | AA47: 0.3399159049 | AB47: 1.761360186 | AC47: 168039.3628 | AD47: -0.3885061342 | AE47: 1.197234478 | AF47: 159833.9789 | AG47: 0.2080825228 | AH47: 10.59846297 | AI47: 231433.737 | AJ47: 0.1098108321 | AK47: 4.008871144
A48: 2008-01-01 | B48: 159439.0779 | C48: 2.228437793 | D48: 2.500259364 | E48: 175842.7358 | F48: 0.1432809991 | G48: 3.201858422 | H48: 174303.6667 | I48: -0.1551282632 | J48: 3.173547181 | K48: 179873.5949 | L48: -0.005149677459 | M48: 2.154744416 | N48: 189560.6796 | O48: 0.03766496148 | P48: 1.109446702 | Q48: 243542.6963 | R48: -0.00778978291 | S48: 4.678549336 | T48: 375512.7904 | U48: 0.7463692066 | V48: 12.39064575 | W48: 292902.1229 | X48: 0.746963981 | Y48: 5.921005823 | Z48: 237116.5444 | AA48: -1.175613522 | AB48: 3.227160342 | AC48: 166316.7793 | AD48: -1.025107129 | AE48: 1.34180918 | AF48: 159507.8048 | AG48: -0.2040705562 | AH48: 8.214482383 | AI48: 231862.8294 | AJ48: 0.1854061567 | AK48: 5.11066936
A49: 2008-02-01 | B49: 161464.359 | C49: 1.270253906 | D49: 4.580077738 | E49: 176497.5804 | F49: 0.3724035956 | G49: 3.26638087 | H49: 173832.4011 | I49: -0.2703704344 | J49: 4.272014751 | K49: 180888.9704 | L49: 0.5644938819 | M49: 2.545165276 | N49: 190307.0583 | O49: 0.3937412832 | P49: 2.524314981 | Q49: 247658.9689 | R49: 1.690164643 | S49: 6.820997076 | T49: 378712.1685 | U49: 0.8520024307 | V49: 11.36957965 | W49: 293228.389 | X49: 0.1113908179 | Y49: 7.991884568 | Z49: 235168.353 | AA49: -0.8216176739 | AB49: 3.603112481 | AC49: 165926.2406 | AD49: -0.2348161642 | AE49: 1.598779792 | AF49: 159726.4414 | AG49: 0.1370695137 | AH49: 6.580680782 | AI49: 232777.9201 | AJ49: 0.3946690251 | AK49: 6.007739049
A50: 2008-03-01 | B50: 162778.0777 | C50: 0.8136276689 | D50: 5.65460128 | E50: 175169.8268 | F50: -0.7522786728 | G50: 2.077121837 | H50: 173901.6243 | I50: 0.03982177062 | J50: 4.371369385 | K50: 179462.8572 | L50: -0.7883914551 | M50: 1.290902767 | N50: 191125.5173 | O50: 0.4300728607 | P50: 2.691952804 | Q50: 246351.5046 | R50: -0.527929319 | S50: 5.286253257 | T50: 377955.9577 | U50: -0.1996795627 | V50: 9.876216219 | W50: 292709.1491 | X50: -0.1770769468 | Y50: 6.819146304 | Z50: 234136.7175 | AA50: -0.4386795688 | AB50: 2.700417423 | AC50: 165661.8304 | AD50: -0.1593540551 | AE50: 1.070422967 | AF50: 160335.0155 | AG50: 0.3810102662 | AH50: 7.479453995 | AI50: 232177.9344 | AJ50: -0.2577502715 | AK50: 5.061687526
A51: 2008-04-01 | B51: 160327.1677 | C51: -1.5056757 | D51: 4.445511257 | E51: 174282.0669 | F51: -0.5067995284 | G51: 1.132401333 | H51: 173550.5641 | I51: -0.2018728703 | J51: 3.153973365 | K51: 178558.6898 | L51: -0.5038186611 | M51: 0.5554803674 | N51: 191009.5084 | O51: -0.06069774371 | P51: 2.332896734 | Q51: 246325.9638 | R51: -0.01036760556 | S51: 4.636768881 | T51: 376544.6919 | U51: -0.3733942476 | V51: 8.125147352 | W51: 291495.7065 | X51: -0.4145557584 | Y51: 5.343022396 | Z51: 235518.9823 | AA51: 0.5903665639 | AB51: 1.442626061 | AC51: 165014.1495 | AD51: -0.3909656655 | AE51: 1.065831179 | AF51: 160596.1213 | AG51: 0.1628501565 | AH51: 6.76277969 | AI51: 231593.4308 | AJ51: -0.251748112 | AK51: 3.942596759
A52: 2008-05-01 | B52: 159082.9027 | C52: -0.7760787238 | D52: 3.691563619 | E52: 172123.9591 | F52: -1.238284513 | G52: -0.09992034132 | H52: 171866.0534 | I52: -0.9706166698 | J52: 1.815452195 | K52: 176104.2268 | L52: -1.374597373 | M52: -1.333477856 | N52: 189127.0638 | O52: -0.9855240454 | P52: 0.9783199515 | Q52: 244182.1232 | R52: -0.870326707 | S52: 3.247105165 | T52: 374179.2818 | U52: -0.6281884161 | V52: 6.153838514 | W52: 291055.8085 | X52: -0.1509106236 | Y52: 4.878080261 | Z52: 235588.6265 | AA52: 0.02957051633 | AB52: 0.47717432 | AC52: 162653.7369 | AD52: -1.430430432 | AE52: -0.2057055321 | AF52: 160537.5915 | AG52: -0.03644535578 | AH52: 5.659849244 | AI52: 230034.2988 | AJ52: -0.6732194761 | AK52: 2.718250056
A53: 2008-06-01 | B53: 156905.426 | C53: -1.368768525 | D53: 1.56815465 | E53: 171603.975 | F53: -0.3020985938 | G53: -0.5587178733 | H53: 169222.1325 | I53: -1.538361316 | J53: -0.07808397944 | K53: 176341.5479 | L53: 0.1347617567 | M53: -1.398973849 | N53: 187090.3181 | O53: -1.076919226 | P53: -0.4657163615 | Q53: 242619.8861 | R53: -0.6397835391 | S53: 2.152796335 | T53: 371771.6874 | U53: -0.6434333703 | V53: 3.457054448 | W53: 288504.116 | X53: -0.8767021424 | Y53: 2.728772066 | Z53: 233126.7719 | AA53: -1.044980248 | AB53: -1.018529858 | AC53: 161118.3069 | AD53: -0.9439869561 | AE53: -1.72856086 | AF53: 160287.8533 | AG53: -0.1555636638 | AH53: 3.023793787 | AI53: 228228.7687 | AJ53: -0.7848960272 | AK53: 1.09711494
A54: 2008-07-01 | B54: 153181.2645 | C54: -2.37350712 | D54: -0.6045598235 | E54: 169837.8936 | F54: -1.029161155 | G54: -1.934268439 | H54: 166119.7087 | I54: -1.833344005 | J54: -1.393497755 | K54: 174189.7057 | L54: -1.220269522 | M54: -2.775773213 | N54: 184589.0135 | O54: -1.336950308 | P54: -1.460161337 | Q54: 238847.2142 | R54: -1.554972272 | S54: 0.1575941445 | T54: 367264.0106 | U54: -1.212485241 | V54: 0.7770603778 | W54: 284629.0836 | X54: -1.343146318 | Y54: 1.09206568 | Z54: 229205.2876 | AA54: -1.682125267 | AB54: -2.748581491 | AC54: 159594.6341 | AD54: -0.9456857051 | AE54: -3.382141567 | AF54: 159805.0511 | AG54: -0.3012095216 | AH54: 1.838926647 | AI54: 225035.7009 | AJ54: -1.399064561 | AK54: -0.6687909939
A55: 2008-08-01 | B55: 149992.1403 | C55: -2.081928387 | D55: -2.512867702 | E55: 168133.0515 | F55: -1.003805457 | G55: -3.387845077 | H55: 164528.3443 | I55: -0.9579624368 | J55: -3.171171607 | K55: 171524.5251 | L55: -1.530044878 | M55: -4.233486739 | N55: 182599.5202 | O55: -1.077796147 | P55: -3.43299447 | Q55: 234248.8713 | R55: -1.925223553 | S55: -2.49384373 | T55: 362805.7061 | U55: -1.213923583 | V55: -1.755837221 | W55: 280523.245 | X55: -1.442522476 | Y55: -1.529815588 | Z55: 226614.2033 | AA55: -1.130464447 | AB55: -4.205206762 | AC55: 159573.797 | AD55: -0.0130562521 | AE55: -4.422396926 | AF55: 158296.4031 | AG55: -0.9440552302 | AH55: 0.1220625489 | AI55: 222117.1447 | AJ55: -1.296930277 | AK55: -2.757008452
A56: 2008-09-01 | B56: 148612.0542 | C56: -0.9201055876 | D56: -3.24684502 | E56: 165484.3509 | F56: -1.575359879 | G56: -5.901147792 | H56: 162713.9711 | I56: -1.102772373 | J56: -5.370892136 | K56: 167959.1588 | L56: -2.078633521 | M56: -7.285973917 | N56: 179764.7335 | O56: -1.552461202 | P56: -5.58007654 | Q56: 229274.649 | R56: -2.123477631 | S56: -5.128222162 | T56: 354970.7182 | U56: -2.159554753 | V56: -4.489438548 | W56: 276557.3224 | X56: -1.413759022 | Y56: -3.643398289 | Z56: 222639.6257 | AA56: -1.753896083 | AB56: -6.397228992 | AC56: 157595.57 | AD56: -1.239694122 | AE56: -6.218388793 | AF56: 156355.2667 | AG56: -1.226266925 | AH56: -1.40044926 | AI56: 218352.8976 | AJ56: -1.694712553 | AK56: -5.106892324
A57: 2008-10-01 | B57: 147003.9497 | C57: -1.082082165 | D57: -4.909232575 | E57: 162046.2195 | F57: -2.07761723 | G57: -8.070109278 | H57: 161079.0192 | I57: -1.004801213 | J57: -7.522586239 | K57: 165841.2037 | L57: -1.260994116 | M57: -8.5738979 | N57: 177175.8441 | O57: -1.440154215 | P57: -7.358655186 | Q57: 224025.3577 | R57: -2.289521005 | S57: -7.863720487 | T57: 347781.0571 | U57: -2.025423718 | V57: -6.834659794 | W57: 269870.1293 | X57: -2.418013397 | Y57: -6.60636497 | Z57: 218914.5732 | AA57: -1.673130933 | AB57: -8.629323592 | AC57: 155310.2597 | AD57: -1.450110733 | AE57: -8.310061208 | AF57: 154350.9291 | AG57: -1.281912425 | AH57: -2.901709179 | AI57: 214227.1764 | AJ57: -1.889473978 | AK57: -7.44149393
A58: 2008-11-01 | B58: 144801.3086 | C58: -1.49835506 | D58: -7.208543806 | E58: 160408.097 | F58: -1.01089829 | G58: -8.90130896 | H58: 158495.4827 | I58: -1.603893818 | J58: -9.123189929 | K58: 163656.6049 | L58: -1.317283486 | M58: -9.553257436 | N58: 173956.2153 | O58: -1.817193996 | P58: -8.781159843 | Q58: 218617.1561 | R58: -2.414102443 | S58: -9.53878523 | T58: 338446.3018 | U58: -2.684089639 | V58: -9.021207546 | W58: 261629.5833 | X58: -3.053522811 | Y58: -9.728798141 | Z58: 214388.3218 | AA58: -2.067587979 | AB58: -10.34446075 | AC58: 152648.2534 | AD58: -1.713992584 | AE58: -9.512150571 | AF58: 153536.6191 | AG58: -0.5275705179 | AH58: -3.740053869 | AI58: 209529.5189 | AJ58: -2.192839188 | AK58: -9.365156612
A59: 2008-12-01 | B59: 142780.0909 | C59: -1.395855932 | D59: -8.452897254 | E59: 158740.9427 | F59: -1.039320543 | G59: -9.596272117 | H59: 156961.7089 | I59: -0.9677082103 | J59: -10.08897293 | K59: 161302.8851 | L59: -1.438206422 | M59: -10.32892928 | N59: 171933.2809 | O59: -1.162898631 | P59: -9.264917276 | Q59: 215874.4045 | R59: -1.254591201 | S59: -11.36766095 | T59: 335115.3461 | U59: -0.984190312 | V59: -10.09186572 | W59: 253890.974 | X59: -2.957849499 | Y59: -12.67135739 | Z59: 210906.4193 | AA59: -1.624110138 | AB59: -12.09935373 | AC59: 151293.3341 | AD59: -0.8876087867 | AE59: -9.96553927 | AF59: 152968.7974 | AG59: -0.3698281703 | AH59: -4.295195238 | AI59: 206241.5895 | AJ59: -1.569196295 | AK59: -10.88525286
A60: 2009-01-01 | B60: 142290.01 | C60: -0.3432417962 | D60: -10.75587498 | E60: 159372.7776 | F60: 0.3980289304 | G60: -9.366299996 | H60: 155643.1698 | I60: -0.8400387339 | J60: -10.70573974 | K60: 159591.1668 | L60: -1.061182675 | M60: -11.27593414 | N60: 170620.1779 | O60: -0.7637282154 | P60: -9.991788262 | Q60: 216542.7195 | R60: 0.3095850922 | S60: -11.08634226 | T60: 332118.5169 | U60: -0.8942679747 | V60: -11.55600412 | W60: 250439.261 | X60: -1.359525661 | Y60: -14.49728716 | Z60: 207728.6459 | AA60: -1.506721999 | AB60: -12.3938625 | AC60: 152230.808 | AD60: 0.6196399101 | AE60: -8.469362731 | AF60: 150413.6673 | AG60: -1.67036031 | AH60: -5.701374583 | AI60: 204766.9446 | AJ60: -0.7150084896 | AK60: -11.68617015
A61: 2009-02-01 | B61: 142657.9102 | C61: 0.2585566413 | D61: -11.64743034 | E61: 157301.3097 | F61: -1.299762672 | G61: -10.87622315 | H61: 154541.9101 | I61: -0.7075541706 | J61: -11.09717806 | K61: 158901.0248 | L61: -0.432443766 | M61: -12.1554927 | N61: 169607.4574 | O61: -0.593552616 | P61: -10.8769486 | Q61: 215579.6527 | R61: -0.4447467696 | S61: -12.95302016 | T61: 330108.5391 | U61: -0.6051989433 | V61: -12.83392334 | W61: 249172.2249 | X61: -0.5059255422 | Y61: -15.02452211 | Z61: 205520.9527 | AA61: -1.062777449 | AB61: -12.60688348 | AC61: 151231.8777 | AD61: -0.6561945148 | AE61: -8.855960815 | AF61: 148141.801 | AG61: -1.510412207 | AH61: -7.252800667 | AI61: 203425.6935 | AJ61: -0.6550134887 | AK61: -12.60954072
A62: 2009-03-01 | B62: 142152.8504 | C62: -0.3540356456 | D62: -12.67076475 | E62: 157196.8923 | F62: -0.06638055218 | G62: -10.26029131 | H62: 152825.9928 | I62: -1.110324854 | J62: -12.11928385 | K62: 158507.7832 | L62: -0.2474758084 | M62: -11.67655209 | N62: 167171.4067 | O62: -1.436287493 | P62: -12.53318289 | Q62: 213108.1053 | R62: -1.14646597 | S62: -13.49429518 | T62: 326076.6043 | U62: -1.221396702 | V62: -13.72629597 | W62: 247184.4867 | X62: -0.7977366563 | Y62: -15.55286623 | Z62: 204285.738 | AA62: -0.601016451 | AB62: -12.74937985 | AC62: 150271.4415 | AD62: -0.635075242 | AE62: -9.290244369 | AF62: 144319.0647 | AG62: -2.580457543 | AH62: -9.989053714 | AI62: 201733.2 | AJ62: -0.831995924 | AK62: -13.11267346
A63: 2009-04-01 | B63: 142617.2836 | C63: 0.3267139565 | D63: -11.04609055 | E63: 155729.3086 | F63: -0.9335958569 | G63: -10.64524805 | H63: 151338.0421 | I63: -0.9736241053 | J63: -12.79887627 | K63: 157245.7749 | L63: -0.7961806683 | M63: -11.93608386 | N63: 166383.3984 | O63: -0.4713774231 | P63: -12.89260949 | Q63: 210923.8036 | R63: -1.024973545 | S63: -14.37207821 | T63: 324400.5633 | U63: -0.5140022354 | V63: -13.84805834 | W63: 248297.5137 | X63: 0.4502819054 | Y63: -14.81949539 | Z63: 204195.6795 | AA63: -0.04408454449 | AB63: -13.29969351 | AC63: 147662.5393 | AD63: -1.736126473 | AE63: -10.51522571 | AF63: 146116.9008 | AG63: 1.245737079 | AH63: -9.015921695 | AI63: 200864.3094 | AJ63: -0.4307127511 | AK63: -13.2685635
A64: 2009-05-01 | B64: 141809.353 | C64: -0.5665025748 | D64: -10.85820624 | E64: 155693.348 | F64: -0.02309173928 | G64: -9.545801285 | H64: 151020.3453 | I64: -0.2099252656 | J64: -12.12904331 | K64: 156859.6754 | L64: -0.2455388419 | M64: -10.92793269 | N64: 166425.0144 | O64: 0.02501211582 | P64: -12.00359638 | Q64: 211082.2262 | R64: 0.07510890587 | S64: -13.55541369 | T64: 328399.8727 | U64: 1.232830611 | V64: -12.23461888 | W64: 248118.9657 | X64: -0.07190889101 | Y64: -14.7520996 | Z64: 206449.8109 | AA64: 1.103907476 | AB64: -12.36851542 | AC64: 146683.1176 | AD64: -0.6632837936 | AE64: -9.818784157 | AF64: 146557.985 | AG64: 0.3018707793 | AH64: -8.707995653 | AI64: 201377.1372 | AJ64: 0.2553105854 | AK64: -12.45777767
A65: 2009-06-01 | B65: 142312.9396 | C65: 0.3551152534 | D65: -9.300179543 | E65: 155231.8405 | F65: -0.2964208334 | G65: -9.54064995 | H65: 151691.7415 | I65: 0.4445733333 | J65: -10.35939609 | K65: 157427.6281 | L65: 0.3620769425 | M65: -10.72573084 | N65: 170089.4859 | O65: 2.201875394 | P65: -9.086965268 | Q65: 212998.9637 | R65: 0.9080525048 | S65: -12.20877767 | T65: 331625.1872 | U65: 0.9821302415 | V65: -10.79869758 | W65: 251066.9098 | X65: 1.188117214 | Y65: -12.97631612 | Z65: 206956.1807 | AA65: 0.2452749858 | AB65: -11.22590556 | AC65: 146571.8315 | AD65: -0.07586837542 | AE65: -9.028443554 | AF65: 147881.5447 | AG65: 0.9030962498 | AH65: -7.740017977 | AI65: 202903.7349 | AJ65: 0.7580789193 | AK65: -11.09633722
A66: 2009-07-01 | B66: 141255.3725 | C66: -0.743127861 | D66: -7.785476908 | E66: 157174.2544 | F66: 1.251298652 | G66: -7.456309609 | H66: 153641.444 | I66: 1.285305635 | J66: -7.511610005 | K66: 159545.7712 | L66: 1.345470982 | M66: -8.406888635 | N66: 170828.7423 | O66: 0.4346279432 | P66: -7.45454507 | Q66: 214964.1607 | R66: 0.9226321944 | S66: -9.999301684 | T66: 336631.1352 | U66: 1.509519842 | V66: -8.340832341 | W66: 252131.0275 | X66: 0.4238382725 | Y66: -11.41768636 | Z66: 208257.5745 | AA66: 0.6288257779 | AB66: -9.139280042 | AC66: 146836.0071 | AD66: 0.1802363166 | AE66: -7.994395926 | AF66: 146564.1926 | AG66: -0.8908157315 | AH66: -8.285632002 | AI66: 204635.2059 | AJ66: 0.8533460474 | AK66: -9.065448239
A67: 2009-08-01 | B67: 142551.2008 | C67: 0.9173656113 | D67: -4.960886297 | E67: 158835.334 | F67: 1.056839484 | G67: -5.529976094 | H67: 156073.3982 | I67: 1.582876405 | J67: -5.138899392 | K67: 160645.1907 | L67: 0.6890934779 | M67: -6.342728188 | N67: 173040.6946 | O67: 1.29483616 | P67: -5.234858006 | Q67: 217898.0255 | R67: 1.364815806 | S67: -6.980117235 | T67: 340428.3612 | U67: 1.128007971 | V67: -6.167859138 | W67: 255977.1017 | X67: 1.525426756 | Y67: -8.750128137 | Z67: 208719.6247 | AA67: 0.2218647662 | AB67: -7.896494736 | AC67: 149130.8096 | AD67: 1.562833612 | AE67: -6.544299608 | AF67: 146144.2987 | AG67: -0.2864914992 | AH67: -7.676803908 | AI67: 206997.5088 | AJ67: 1.154397104 | AK67: -6.807054886
A68: 2009-09-01 | B68: 145816.7819 | C68: 2.290812775 | D68: -1.880918992 | E68: 160754.6513 | F68: 1.208369256 | G68: -2.858094769 | H68: 158680.43 | I68: 1.670388344 | J68: -2.478915042 | K68: 162257.212 | L68: 1.00346693 | M68: -3.394841225 | N68: 172789.4311 | O68: -0.1452048674 | P68: -3.880239618 | Q68: 219368.2191 | R68: 0.6747163342 | S68: -4.320769842 | T68: 348502.6502 | U68: 2.371802666 | V68: -1.822141305 | W68: 259881.8347 | X68: 1.525422808 | Y68: -6.029667728 | Z68: 210358.5116 | AA68: 0.7852098093 | AB68: -5.516140263 | AC68: 150692.3247 | AD68: 1.047077458 | AE68: -4.380354916 | AF68: 146583.8842 | AG68: 0.3007887222 | AH68: -6.24947446 | AI68: 209709.5608 | AJ68: 1.31018585 | AK68: -3.958425486
A69: 2009-10-01 | B69: 148803.3645 | C69: 2.048174853 | D69: 1.224058839 | E69: 162020.2446 | F69: 0.7872825319 | G69: -0.01602931586 | H69: 160680.0279 | I69: 1.260141464 | J69: -0.2476990841 | K69: 162886.408 | L69: 0.3877768857 | M69: -1.781701787 | N69: 173118.8344 | O69: 0.1906385764 | P69: -2.289821015 | Q69: 222296.5349 | R69: 1.334886093 | S69: -0.7717085299 | T69: 351773.8884 | U69: 0.9386551818 | V69: 1.14808761 | W69: 264049.5078 | X69: 1.603680002 | Y69: -2.156823178 | Z69: 213754.3803 | AA69: 1.614324342 | AB69: -2.357171956 | AC69: 153662.4138 | AD69: 1.970962434 | AE69: -1.061002613 | AF69: 147751.3091 | AG69: 0.7964210027 | AH69: -4.275724199 | AI69: 212208.7293 | AJ69: 1.191728437 | AK69: -0.9421993645
A70: 2009-11-01 | B70: 149895.4453 | C70: 0.7339086236 | D70: 3.518018402 | E70: 163257.3923 | F70: 0.7635760022 | G70: 1.776278954 | H70: 161587.8454 | I70: 0.5649846203 | J70: 1.951073032 | K70: 163586.4781 | L70: 0.4297903458 | M70: -0.04284999349 | N70: 172330.3899 | O70: -0.4554354593 | P70: -0.9346176368 | Q70: 220937.777 | R70: -0.6112366636 | S70: 1.06149991 | T70: 354004.2411 | U70: 0.63403023 | V70: 4.596870835 | W70: 264153.7207 | X70: 0.03946718331 | Y70: 0.9647752096 | Z70: 214143.9875 | AA70: 0.1822686639 | AB70: -0.1139680902 | AC70: 154099.8387 | AD70: 0.2846661754 | AE70: 0.950934783 | AF70: 149132.047 | AG70: 0.9345013404 | AH70: -2.868743687 | AI70: 212654.9666 | AJ70: 0.2102822364 | AK70: 1.491650274
A71: 2009-12-01 | B71: 147239.8418 | C71: -1.77163716 | D71: 3.123510357 | E71: 164047.6114 | F71: 0.4840326742 | G71: 3.342974158 | H71: 164101.745 | I71: 1.555747956 | J71: 4.548903086 | K71: 165745.1896 | L71: 1.319614923 | M71: 2.754014307 | N71: 176811.5208 | O71: 2.600313803 | P71: 2.837286573 | Q71: 227462.9187 | R71: 2.953384337 | S71: 5.368174261 | T71: 360451.284 | U71: 1.82117672 | V71: 7.560363372 | W71: 270540.2723 | X71: 2.417740543 | Y71: 6.557656627 | Z71: 222782.6414 | AA71: 4.034039908 | AB71: 5.631038708 | AC71: 155764.8104 | AD71: 1.080449951 | AE71: 2.955501183 | AF71: 150384.5824 | AG71: 0.8398834375 | AH71: -1.689373963 | AI71: 217045.418 | AJ71: 2.064589172 | AK71: 5.238433496
A72: 2010-01-01 | B72: 149969.7045 | C72: 1.854024461 | D72: 5.397212751 | E72: 164546.1194 | F72: 0.3038800435 | G72: 3.24606363 | H72: 165266.3503 | I72: 0.7096849448 | J72: 6.182847962 | K72: 168800.7792 | L72: 1.843546444 | M72: 5.770753191 | N72: 181293.4495 | O72: 2.534862366 | P72: 6.255574047 | Q72: 230311.8199 | R72: 1.252468401 | S72: 6.358606957 | T72: 368686.5075 | U72: 2.284698061 | V72: 11.01052448 | W72: 275091.8151 | X72: 1.682390139 | Y72: 9.843725773 | Z72: 225926.3999 | AA72: 1.411132592 | AB72: 8.760348824 | AC72: 155426.8655 | AD72: -0.2169583906 | AE72: 2.09948145 | AF72: 151221.2324 | AG72: 0.5563402697 | AH72: 0.5368960479 | AI72: 220328.6578 | AJ72: 1.512697118 | AK72: 7.599719374
A73: 2010-02-01 | B73: 151908.5224 | C73: 1.292806342 | D73: 6.484471927 | E73: 165239.5727 | F73: 0.4214340163 | G73: 5.046533291 | H73: 166425.2236 | I73: 0.7012155013 | J73: 7.689379246 | K73: 170215.4834 | L73: 0.8380910719 | M73: 7.120444113 | N73: 184243.9917 | O73: 1.62749522 | P73: 8.629652581 | Q73: 236303.2171 | R73: 2.601428471 | S73: 9.612950094 | T73: 377663.3619 | U73: 2.434820443 | V73: 14.4058142 | W73: 280557.5235 | X73: 1.986866956 | Y73: 12.5958255 | Z73: 229983.3642 | AA73: 1.795701739 | AB73: 11.90263628 | AC73: 156479.9348 | AD73: 0.6775336349 | AE73: 3.470205591 | AF73: 152456.3322 | AG73: 0.8167502531 | AH73: 2.912433357 | AI73: 224087.725 | AJ73: 1.706118151 | AK73: 10.1570412
A74: 2010-03-01 | B74: 153997.4425 | C74: 1.375117128 | D74: 8.332293072 | E74: 165848.2474 | F74: 0.3683589374 | G74: 5.503515401 | H74: 164443.6485 | I74: -1.190669941 | J74: 7.601884646 | K74: 168315.323 | L74: -1.116326459 | M74: 6.187418424 | N74: 181167.764 | O74: -1.669648873 | P74: 8.372458884 | Q74: 234203.9824 | R74: -0.888364842 | S74: 9.899143464 | T74: 376427.9166 | U74: -0.3271287253 | V74: 15.44155932 | W74: 279392.0291 | X74: -0.4154208485 | Y74: 13.02975879 | Z74: 227202.0748 | AA74: -1.209343713 | AB74: 11.21778598 | AC74: 155200.0232 | AD74: -0.817939743 | AE74: 3.279786008 | AF74: 152725.5946 | AG74: 0.1766161153 | AH74: 5.8249615 | AI74: 222679.125 | AJ74: -0.628593109 | AK74: 10.38298355
A75: 2010-04-01 | B75: 151927.2267 | C75: -1.344318272 | D75: 6.527920678 | E75: 166280.6859 | F75: 0.2607434578 | G75: 6.775460187 | H75: 163645.7748 | I75: -0.4851958223 | J75: 8.132609953 | K75: 167437.6338 | L75: -0.5214553173 | M75: 6.481483471 | N75: 179187.3677 | O75: -1.0931284 | P75: 7.695460846 | Q75: 234101.7401 | R75: -0.04365524357 | S75: 10.98877228 | T75: 373052.5849 | U75: -0.8966741062 | V75: 14.99751454 | W75: 279117.773 | X75: -0.09816173066 | Y75: 12.41263308 | Z75: 227887.8297 | AA75: 0.301825971 | AB75: 11.60266967 | AC75: 154479.2925 | AD75: -0.4643883135 | AE75: 4.61644047 | AF75: 153498.7083 | AG75: 0.5062109061 | AH75: 5.051987436 | AI75: 221932.0153 | AJ75: -0.3355095509 | AK75: 10.48852627
A76: 2010-05-01 | B76: 149799.7279 | C76: -1.400340749 | D76: 5.634589464 | E76: 166068.2626 | F76: -0.1277498213 | G76: 6.663685228 | H76: 162746.9704 | I76: -0.549237792 | J76: 7.764930611 | K76: 167714.4342 | L76: 0.1653155519 | M76: 6.920044162 | N76: 178254.0244 | O76: -0.520875612 | P76: 7.107711551 | Q76: 235081.8816 | R76: 0.4186818473 | S76: 11.36981347 | T76: 371029.7948 | U76: -0.5422265303 | V76: 12.9811019 | W76: 281268.8238 | X76: 0.7706606181 | Y76: 13.36046922 | Z76: 229795.3132 | AA76: 0.8370273405 | AB76: 11.30807635 | AC76: 154173.1946 | AD76: -0.1981481487 | AE76: 5.106297971 | AF76: 153145.2867 | AG76: -0.2302440063 | AH76: 4.494672649 | AI76: 222126.7866 | AJ76: 0.08776170134 | AK76: 10.30387541
A77: 2010-06-01 | B77: 149661.8096 | C77: -0.09206842296 | D77: 5.163880383 | E77: 164289.21 | F77: -1.071277909 | G77: 5.83473694 | H77: 162233.7863 | I77: -0.3153263476 | J77: 6.949649768 | K77: 168792.9926 | L77: 0.643092169 | M77: 7.219421788 | N77: 179924.0463 | O77: 0.9368775215 | P77: 5.781991971 | Q77: 236890.0192 | R77: 0.7691522436 | S77: 11.21651256 | T77: 376408.8589 | U77: 1.449766057 | V77: 13.50430348 | W77: 282468.7191 | X77: 0.4266009045 | Y77: 12.50734686 | Z77: 228627.3799 | AA77: -0.5082493993 | AB77: 10.47139502 | AC77: 154597.5428 | AD77: 0.2752412117 | AE77: 5.475616455 | AF77: 153237.3295 | AG77: 0.06010166278 | AH77: 3.621672249 | AI77: 222964.4037 | AJ77: 0.3770896613 | AK77: 9.886791319
A78: 2010-07-01 | B78: 148939.6096 | C78: -0.4825546785 | D78: 5.439960884 | E78: 163545.7325 | F78: -0.4525418618 | G78: 4.053767066 | H78: 162388.4774 | I78: 0.09535073632 | J78: 5.693147071 | K78: 167966.7792 | L78: -0.489483215 | M78: 5.278114238 | N78: 179636.8791 | O78: -0.1596046491 | P78: 5.156121108 | Q78: 238563.872 | R78: 0.7065949233 | S78: 10.97843998 | T78: 380572.513 | U78: 1.106152005 | V78: 13.05327203 | W78: 284157.4334 | X78: 0.5978411831 | Y78: 12.70228669 | Z78: 229035.244 | AA78: 0.1783969095 | AB78: 9.976909419 | AC78: 154378.2091 | AD78: -0.1418739495 | AE78: 5.136479914 | AF78: 153349.565 | AG78: 0.07324291605 | AH78: 4.629624942 | AI78: 223710.2769 | AJ78: 0.3345256731 | AK78: 9.321500147
A79: 2010-08-01 | B79: 148272.6339 | C79: -0.447816141 | D79: 4.013598734 | E79: 164140.7813 | F79: 0.363842443 | G79: 3.340218601 | H79: 163597.906 | I79: 0.7447748716 | J79: 4.821134073 | K79: 167881.7044 | L79: -0.05064977066 | M79: 4.504656344 | N79: 181575.8917 | O79: 1.07940675 | P79: 4.932479687 | Q79: 239464.4962 | R79: 0.3775190844 | S79: 9.897506234 | T79: 383227.8293 | U79: 0.6977162492 | V79: 12.57223925 | W79: 284584.5351 | X79: 0.1503045943 | Y79: 11.17577833 | Z79: 228437.5901 | AA79: -0.2609440794 | AB79: 9.447106618 | AC79: 154824.7294 | AD79: 0.2892378814 | AE79: 3.818070736 | AF79: 154388.4775 | AG79: 0.6774798985 | AH79: 5.641122454 | AI79: 224451.8644 | AJ79: 0.3314946156 | AK79: 8.43215735
A80: 2010-09-01 | B80: 149297.4014 | C80: 0.6911372625 | D80: 2.386981423 | E80: 165211.275 | F80: 0.6521802005 | G80: 2.772314 | H80: 163763.6021 | I80: 0.1012825438 | J80: 3.203401987 | K80: 167777.9367 | L80: -0.06181005432 | M80: 3.402452543 | N80: 181490.7286 | O80: -0.04690219624 | P80: 5.035781116 | Q80: 239256.9863 | R80: -0.08665579121 | S80: 9.066384966 | T80: 380581.2548 | U80: -0.6906007994 | V80: 9.204694608 | W80: 283722.5737 | X80: -0.3028841434 | Y80: 9.173684247 | Z80: 229178.7107 | AA80: 0.3244301988 | AB80: 8.946725707 | AC80: 154873.8155 | AD80: 0.03170430657 | AE80: 2.774853215 | AF80: 155082.0103 | AG80: 0.4492128232 | AH80: 5.797449128 | AI80: 224267.6054 | AJ80: -0.08209286562 | AK80: 6.942003289
A81: 2010-10-01 | B81: 149743.2787 | C81: 0.2986504179 | D81: 0.6316484529 | E81: 164460.4988 | F81: -0.4544340212 | G81: 1.50614152 | H81: 162359.0007 | I81: -0.8577006069 | J81: 1.044916886 | K81: 167490.9805 | L81: -0.1710333115 | M81: 2.826861104 | N81: 181350.4321 | O81: -0.0773023457 | P81: 4.754882776 | Q81: 237340.1743 | R81: -0.8011519389 | S81: 6.767374672 | T81: 380143.1832 | U81: -0.1151059228 | V81: 8.064639201 | W81: 282116.652 | X81: -0.5660182955 | Y81: 6.842332107 | Z81: 228620.8645 | AA81: -0.2434109995 | AB81: 6.954937797 | AC81: 154072.5198 | AD81: -0.5173861972 | AE81: 0.2668876217 | AF81: 155135.3128 | AG81: 0.03437048266 | AH81: 4.997589367 | AI81: 223377.2585 | AJ81: -0.3970020354 | AK81: 5.262992346
A82: 2010-11-01 | B82: 147981.8469 | C82: -1.176301047 | D82: -1.276622066 | E82: 163050.2234 | F82: -0.8575161957 | G82: -0.1268971291 | H82: 161391.9681 | I82: -0.595613796 | J82: -0.121220323 | K82: 166377.6799 | L82: -0.6646928745 | M82: 1.706254622 | N82: 179337.5799 | O82: -1.109924081 | P82: 4.066137196 | Q82: 234423.0767 | R82: -1.229078755 | S82: 6.10366405 | T82: 380684.9705 | U82: 0.1425219022 | V82: 7.536838914 | W82: 279444.615 | X82: -0.9471390573 | Y82: 5.788634856 | Z82: 227356.1659 | AA82: -0.5531859614 | AB82: 6.169763886 | AC82: 152252.0054 | AD82: -1.181595744 | AE82: -1.199114357 | AF82: 154044.3905 | AG82: -0.7032069426 | AH82: 3.29395563 | AI82: 221777.5336 | AJ82: -0.7161538788 | AK82: 4.289844326
A83: 2010-12-01 | B83: 146345.0481 | C83: -1.106080819 | D83: -0.6077116988 | E83: 162671.3033 | F83: -0.2323946687 | G83: -0.8389686872 | H83: 160104.6145 | I83: -0.7976565298 | J83: -2.435763545 | K83: 165313.4058 | L83: -0.639673609 | M83: -0.2605106328 | N83: 178503.2748 | O83: -0.4652148991 | P83: 0.9568121008 | Q83: 234651.4443 | R83: 0.09741687976 | S83: 3.160306592 | T83: 383803.3436 | U83: 0.819147921 | V83: 6.478561912 | W83: 279303.4345 | X83: -0.0505218064 | Y83: 3.239134124 | Z83: 229954.7515 | AA83: 1.142958032 | AB83: 3.219330735 | AC83: 150860.7668 | AD83: -0.9137735929 | AE83: -3.148364211 | AF83: 154397.5521 | AG83: 0.2292596102 | AH83: 2.668471462 | AI83: 221917.4427 | AJ83: 0.063085352 | AK83: 2.244702877
A84: 2011-01-01 | B84: 146229.2171 | C84: -0.07914927227 | D84: -2.494162058 | E84: 162257.1391 | F84: -0.2546018875 | G84: -1.391087351 | H84: 160630.1874 | I84: 0.3282684376 | J84: -2.805267335 | K84: 165350.4346 | L84: 0.02239915925 | M84: -2.044033562 | N84: 178220.5416 | O84: -0.1583910137 | P84: -1.694991092 | Q84: 234818.5837 | R84: 0.07122877448 | S84: 1.956809591 | T84: 385917.7287 | U84: 0.5509032556 | V84: 4.673678278 | W84: 282066.2631 | X84: 0.9891853198 | Y84: 2.535316431 | Z84: 228078.6141 | AA84: -0.8158724159 | AB84: 0.9526174014 | AC84: 151130.4606 | AD84: 0.178769988 | AE84: -2.76426146 | AF84: 154082.5385 | AG84: -0.2040275617 | AH84: 1.892132518 | AI84: 222405.556 | AJ84: 0.2199526305 | AK84: 0.9426364379
A85: 2011-02-01 | B85: 149667.3118 | C85: 2.351168135 | D85: -1.47536855 | E85: 162057.0398 | F85: -0.1233223496 | G85: -1.926011329 | H85: 159542.614 | I85: -0.6770666646 | J85: -4.135556806 | K85: 165287.6645 | L85: -0.03796188013 | M85: -2.895047426 | N85: 177084.0836 | O85: -0.6376695283 | P85: -3.886101286 | Q85: 236980.2838 | R85: 0.920583095 | S85: 0.2865245431 | T85: 392122.2905 | U85: 1.607742096 | V85: 3.828522965 | W85: 286471.1114 | X85: 1.561635996 | Y85: 2.107798728 | Z85: 229057.9006 | AA85: 0.4293635949 | AB85: -0.402404565 | AC85: 151951.3866 | AD85: 0.543190303 | AE85: -2.894012087 | AF85: 153538.453 | AG85: -0.3531130028 | AH85: 0.7097906794 | AI85: 224135.3955 | AJ85: 0.7777861087 | AK85: 0.02127314552
A86: 2011-03-01 | B86: 148612.6119 | C86: -0.704696252 | D86: -3.496701324 | E86: 160785.4666 | F86: -0.7846454345 | G86: -3.0526586 | H86: 160193.3173 | I86: 0.4078554934 | J86: -2.584673396 | K86: 164482.2726 | L86: -0.4872667541 | M86: -2.277303256 | N86: 176396.3321 | O86: -0.3883756638 | P86: -2.6337091 | Q86: 237160.2098 | R86: 0.07592442819 | S86: 1.262244694 | T86: 395488.8047 | U86: 0.8585368106 | V86: 5.063622343 | W86: 289243.9491 | X86: 0.9679292475 | Y86: 3.526199391 | Z86: 226459.4473 | AA86: -1.134408959 | AB86: -0.3268577307 | AC86: 151797.7616 | AD86: -0.101101429 | AE86: -2.192178585 | AF86: 152324.3304 | AG86: -0.7907612541 | AH86: -0.2627354066 | AI86: 224406.8404 | AJ86: 0.1211075405 | AK86: 0.7758766657
A87: 2011-04-01 | B87: 147457.1603 | C87: -0.7774923076 | D87: -2.942241871 | E87: 159253.8363 | F87: -0.9525925338 | G87: -4.225896445 | H87: 159425.3877 | I87: -0.4793768133 | J87: -2.578977151 | K87: 163469.6482 | L87: -0.6156435354 | M87: -2.369829003 | N87: 175667.1785 | O87: -0.4133609473 | P87: -1.964529754 | Q87: 235726.5904 | R87: -0.6044940515 | S87: 0.6940786933 | T87: 390178.1315 | U87: -1.342812521 | V87: 4.590652163 | W87: 283567.0022 | X87: -1.962684751 | Y87: 1.594032923 | Z87: 226500.4576 | AA87: 0.01810931285 | AB87: -0.6087960759 | AC87: 149746.5529 | AD87: -1.351277305 | AE87: -3.063672502 | AF87: 151533.6157 | AG87: -0.5190994322 | AH87: -1.280201368 | AI87: 222135.1298 | AJ87: -1.012317867 | AK87: 0.09152107358
A88: 2011-05-01 | B88: 145777.5466 | C88: -1.139051946 | D88: -2.685039101 | E88: 157434.6219 | F88: -1.142336315 | G88: -5.198850511 | H88: 157600.0411 | I88: -1.144953499 | J88: -3.162534604 | K88: 162341.4979 | L88: -0.6901282554 | M88: -3.203621866 | N88: 175511.9812 | O88: -0.08834739313 | P88: -1.538278442 | Q88: 233297.2974 | R88: -1.030555379 | S88: -0.759133046 | T88: 379662.49 | U88: -2.695087352 | V88: 2.326685159 | W88: 279259.9794 | X88: -1.518873045 | Y88: -0.7142079569 | Z88: 225305.5851 | AA88: -0.5275364614 | AB88: -1.953794463 | AC88: 147995.2171 | AD88: -1.169533297 | AE88: -4.007167107 | AF88: 151459.3548 | AG88: -0.04900622035 | AH88: -1.100870893 | AI88: 219190.1057 | AJ88: -1.325780439 | AK88: -1.322074161
A89: 2011-06-01 | B89: 144312.0873 | C89: -1.005270916 | D89: -3.5745407 | E89: 157667.2828 | F89: 0.1477825524 | G89: -4.030652534 | H89: 156105.2568 | I89: -0.9484669714 | J89: -3.777591373 | K89: 163081.2452 | L89: 0.4556735813 | M89: -3.383877064 | N89: 173798.8744 | O89: -0.9760625861 | P89: -3.404309776 | Q89: 231662.2765 | R89: -0.7008314506 | S89: -2.206822671 | T89: 374018.1991 | U89: -1.486660132 | V89: -0.6351231311 | W89: 276818.5659 | X89: -0.8742439688 | Y89: -2.000275716 | Z89: 223313.3126 | AA89: -0.8842534496 | AB89: -2.324335439 | AC89: 148117.3228 | AD89: 0.08250651616 | AE89: -4.191670771 | AF89: 150860.2407 | AG89: -0.3955609618 | AH89: -1.551246577 | AI89: 217499.7985 | AJ89: -0.7711603603 | AK89: -2.450886829
A90: 2011-07-01 | B90: 140549.3684 | C90: -2.607348429 | D90: -5.633317558 | E90: 159210.4204 | F90: 0.9787303679 | G90: -2.65082562 | H90: 156050.2113 | I90: -0.03526174502 | J90: -3.903150127 | K90: 163445.0732 | L90: 0.2230961606 | M90: -2.692023993 | N90: 172972.6417 | O90: -0.4753958411 | P90: -3.709838095 | Q90: 232841.2817 | R90: 0.5089327378 | S90: -2.398766537 | T90: 380819.9061 | U90: 1.818549724 | V90: 0.06500549811 | W90: 278997.2804 | X90: 0.7870550582 | Y90: -1.815948623 | Z90: 223312.2277 | AA90: -0.0004858505509 | AB90: -2.498749215 | AC90: 148913.2924 | AD90: 0.5373912887 | AE90: -3.539953479 | AF90: 151472.0039 | AG90: 0.4055165331 | AH90: -1.224366759 | AI90: 218744.1138 | AJ90: 0.5720995229 | AK90: -2.219908328
A91: 2011-08-01 | B91: 138611.353 | C91: -1.378885842 | D91: -6.515889445 | E91: 159746.9542 | F91: 0.3369966731 | G91: -2.676865013 | H91: 157607.2794 | I91: 0.997799398 | J91: -3.66179905 | K91: 164002.085 | L91: 0.3407944857 | M91: -2.310924484 | N91: 174149.1299 | O91: 0.6801585255 | P91: -4.090169534 | Q91: 233865.204 | R91: 0.4397511932 | S91: -2.338255671 | T91: 388286.8391 | U91: 1.960751757 | V91: 1.320105015 | W91: 281101.0575 | X91: 0.7540492984 | Y91: -1.224057253 | Z91: 223177.1411 | AA91: -0.06049226387 | AB91: -2.302794856 | AC91: 150648.2199 | AD91: 1.165058877 | AE91: -2.697572624 | AF91: 152576.848 | AG91: 0.7294047842 | AH91: -1.17342276 | AI91: 220368.1312 | AJ91: 0.7424279379 | AK91: -1.81942493
A92: 2011-09-01 | B92: 138348.9014 | C92: -0.1893435544 | D92: -7.333349336 | E92: 159302.7525 | F92: -0.2780658523 | G92: -3.576343415 | H92: 157352.1358 | I92: -0.1618856456 | J92: -3.915074026 | K92: 163831.6967 | L92: -0.1038939759 | M92: -2.352061305 | N92: 174042.905 | O92: -0.06099653559 | P92: -4.103693734 | Q92: 233260.7011 | R92: -0.2584834524 | S92: -2.506211105 | T92: 390433.8908 | U92: 0.5529550716 | V92: 2.588839016 | W92: 279598.7526 | X92: -0.5344358562 | Y92: -1.453469493 | Z92: 224812.4174 | AA92: 0.7327257153 | AB92: -1.905191493 | AC92: 150874.9883 | AD92: 0.1505284041 | AE92: -2.581990537 | AF92: 153710.693 | AG92: 0.7431304839 | AH92: -0.8842529839 | AI92: 220347.5688 | AJ92: -0.009330962778 | AK92: -1.747928182
A93: 2011-10-01 | B93: 140296.2292 | C93: 1.407548461 | D93: -6.30883039 | E93: 158465.8846 | F93: -0.5253316787 | G93: -3.645017607 | H93: 156779.4453 | I93: -0.3639546948 | J93: -3.436554365 | K93: 163477.1719 | L93: -0.2163957593 | M93: -2.39643269 | N93: 175173.4056 | O93: 0.6495528026 | P93: -3.406127259 | Q93: 233461.5836 | R93: 0.0861192931 | S93: -1.634190554 | T93: 393011.1824 | U93: 0.6601096022 | V93: 3.385040098 | W93: 278496.1732 | X93: -0.3943434748 | Y93: -1.283326875 | Z93: 224910.1354 | AA93: 0.04346647346 | AB93: -1.623092927 | AC93: 153808.7581 | AD93: 1.944503796 | AE93: -0.1711931778 | AF93: 153919.7488 | AG93: 0.1360060288 | AH93: -0.783550765 | AI93: 220616.3247 | AJ93: 0.1219690936 | AK93: -1.235995914
A94: 2011-11-01 | B94: 139341.3082 | C94: -0.6806462069 | D94: -5.838917989 | E94: 157647.4654 | F94: -0.5164639956 | G94: -3.31355447 | H94: 156207.7759 | I94: -0.364632874 | J94: -3.212174793 | K94: 163926.9199 | L94: 0.2751136158 | M94: -1.473010106 | N94: 173539.6609 | O94: -0.9326442451 | P94: -3.232963817 | Q94: 231249.3658 | R94: -0.9475725067 | S94: -1.353838912 | T94: 391195.2469 | U94: -0.4620569658 | V94: 2.76088555 | W94: 275852.4602 | X94: -0.9492816064 | Y94: -1.285462153 | Z94: 223224.8155 | AA94: -0.7493303294 | AB94: -1.817127059 | AC94: 153352.4147 | AD94: -0.2966953287 | AE94: 0.7227552041 | AF94: 153760.0794 | AG94: -0.1037355378 | AH94: -0.1845644094 | AI94: 219194.9024 | AJ94: -0.6442960693 | AK94: -1.164514346
A95: 2011-12-01 | B95: 139050.445 | C95: -0.2087415535 | D95: -4.984523332 | E95: 156226.9057 | F95: -0.9010989876 | G95: -3.961606946 | H95: 157544.3873 | I95: 0.8556625212 | J95: -1.599096414 | K95: 163497.5659 | L95: -0.2619179132 | M95: -1.098422652 | N95: 174965.1322 | O95: 0.8214095496 | P95: -1.982116343 | Q95: 231276.1945 | R95: 0.01160161622 | S95: -1.438409989 | T95: 392970.9402 | U95: 0.4539148542 | V95: 2.388618236 | W95: 274498.5041 | X95: -0.4908261868 | Y95: -1.720326288 | Z95: 224359.7002 | AA95: 0.5084043299 | AB95: -2.43310969 | AC95: 152575.2467 | AD95: -0.5067856792 | AE95: 1.136465015 | AF95: 153017.2487 | AG95: -0.4831102412 | AH95: -0.8939930463 | AI95: 219267.5027 | AJ95: 0.03312133549 | AK95: -1.194110756
A96: 2012-01-01 | B96: 140389.9513 | C96: 0.9633239927 | D96: -3.993227787 | E96: 156533.2537 | F96: 0.196091695 | G96: -3.527663243 | H96: 157699.5713 | I96: 0.09850172635 | J96: -1.824449173 | K96: 164211.1383 | L96: 0.4364421944 | M96: -0.6890192625 | N96: 175437.526 | O96: 0.269993111 | P96: -1.561557162 | Q96: 232509.5848 | R96: 0.5332975652 | S96: -0.9833118025 | T96: 394052.3603 | U96: 0.2751908519 | V96: 2.107866784 | W96: 276203.5621 | X96: 0.6211538256 | Y96: -2.0784836 | Z96: 224132.5907 | AA96: -0.1012255886 | AB96: -1.730115468 | AC96: 150998.4252 | AD96: -1.033471331 | AE96: -0.08736516144 | AF96: 151438.1219 | AG96: -1.031992678 | AH96: -1.716233809 | AI96: 219928.388 | AJ96: 0.301405943 | AK96: -1.113806717
A97: 2012-02-01 | B97: 143147.4597 | C97: 1.964177911 | D97: -4.356229821 | E97: 158195.5819 | F97: 1.061964906 | G97: -2.38277703 | H97: 158268.0018 | I97: 0.3604515281 | J97: -0.7989164317 | K97: 165064.5911 | L97: 0.5197289576 | M97: -0.134960691 | N97: 175662.3602 | O97: 0.1281562671 | P97: -0.8028521434 | Q97: 233500.7451 | R97: 0.4262879217 | S97: -1.46828196 | T97: 394683.5623 | U97: 0.1601822769 | V97: 0.6531819134 | W97: 277588.6423 | X97: 0.5014708117 | Y97: -3.100650892 | Z97: 223391.9084 | AA97: -0.3304661605 | AB97: -2.47360701 | AC97: 151084.161 | AD97: 0.05677926131 | AE97: -0.5707256819 | AF97: 151030.8937 | AG97: -0.2689072902 | AH97: -1.63317999 | AI97: 220752.0344 | AJ97: 0.3745066321 | AK97: -1.509516663
A98: 2012-03-01 | B98: 145147.4227 | C98: 1.397134762 | D98: -2.331692558 | E98: 158991.9512 | F98: 0.5034080305 | G98: -1.115471149 | H98: 156809.1891 | I98: -0.9217357208 | J98: -2.112527688 | K98: 165446.1975 | L98: 0.231186103 | M98: 0.586035713 | N98: 174881.7696 | O98: -0.4443698751 | P98: -0.858613367 | Q98: 236133.5742 | R98: 1.127546322 | S98: -0.4328869585 | T98: 400593.6154 | U98: 1.497415558 | V98: 1.29075986 | W98: 283284.3675 | X98: 2.051858129 | Y98: -2.060399756 | Z98: 223733.8856 | AA98: 0.153083988 | AB98: -1.203553983 | AC98: 152067.1415 | AD98: 0.6506178553 | AE98: 0.1774597736 | AF98: 151343.9455 | AG98: 0.2072766433 | AH98: -0.6436167652 | AI98: 222758.7224 | AJ98: 0.9090235611 | AK98: -0.7344330505
A99: 2012-04-01 | B99: 144081.654 | C99: -0.7342663356 | D99: -2.289143668 | E99: 157887.9208 | F99: -0.6943938364 | G99: -0.857697047 | H99: 157848.9399 | I99: 0.6630675447 | J99: -0.9888310418 | K99: 165396.5486 | L99: -0.03000911588 | M99: 1.178751174 | N99: 173404.904 | O99: -0.8444937614 | P99: -1.287818584 | Q99: 235423.4727 | R99: -0.3007202403 | S99: -0.1285886795 | T99: 407845.3179 | U99: 1.810239164 | V99: 4.527979663 | W99: 285221.2342 | X99: 0.6837181733 | Y99: 0.5833654657 | Z99: 224725.4736 | AA99: 0.4431997602 | AB99: -0.7836557693 | AC99: 152350.1833 | AD99: 0.186129488 | AE99: 1.738691414 | AF99: 152380.9493 | AG99: 0.6851967703 | AH99: 0.559172055 | AI99: 223673.7007 | AJ99: 0.4107486117 | AK99: 0.692628355
A100: 2012-05-01 | B100: 142904.8035 | C100: -0.8167941615 | D100: -1.970634847 | E100: 156999.8097 | F100: -0.5624946832 | G100: -0.2761858867 | H100: 158004.7956 | I100: 0.09873724371 | J100: 0.2568238702 | K100: 164834.2766 | L100: -0.3399538605 | M100: 1.535515384 | N100: 174048.7906 | O100: 0.371319767 | P100: -0.8336698743 | Q100: 238397.0667 | R100: 1.263083043 | S100: 2.185953017 | T100: 418536.4338 | U100: 2.621365369 | V100: 10.23907941 | W100: 288386.0325 | X100: 1.109594231 | Y100: 3.267941616 | Z100: 228449.5232 | AA100: 1.657155063 | AB100: 1.395410664 | AC100: 152069.6881 | AD100: -0.1841121386 | AE100: 2.753109968 | AF100: 152287.3747 | AG100: -0.06140837214 | AH100: 0.546694439 | AI100: 225950.0132 | AJ100: 1.017693394 | AK100: 3.084038601
A101: 2012-06-01 | B101: 142429.7727 | C101: -0.3324106354 | D101: -1.304336077 | E101: 157353.2501 | F101: 0.2251215538 | G101: -0.1991742944 | H101: 158919.4379 | I101: 0.5788699608 | J101: 1.802745928 | K101: 165130.0738 | L101: 0.1794512917 | M101: 1.256323861 | N101: 174275.2469 | O101: 0.1301107847 | P101: 0.2740941324 | Q101: 237966.8116 | R101: -0.1804783273 | S101: 2.721433631 | T101: 419938.0139 | U101: 0.3348764689 | V101: 12.2774279 | W101: 287420.5987 | X101: -0.3347713373 | Y101: 3.829957286 | Z101: 227227.4094 | AA101: -0.5349601151 | AB101: 1.752737752 | AC101: 151477.0781 | AD101: -0.389696366 | AE101: 2.268306815 | AF101: 152933.3133 | AG101: 0.4241577317 | AH101: 1.37416765 | AI101: 225872.5971 | AJ101: -0.03426248118 | AK101: 3.849566141
A102: 2012-07-01 | B102: 141814.8492 | C102: -0.4317380361 | D102: 0.9003817195 | E102: 156767.9671 | F102: -0.37195483 | G102: -1.534103913 | H102: 157282.826 | I102: -1.029837489 | J102: 0.7898833573 | K102: 164362.2188 | L102: -0.4650001246 | M102: 0.5611337999 | N102: 174295.7057 | O102: 0.01173934325 | P102: 0.7648977858 | Q102: 238741.5195 | R102: 0.3255528904 | S102: 2.534017047 | T102: 420551.7063 | U102: 0.146138822 | V102: 10.43322569 | W102: 288256.8458 | X102: 0.2909488915 | Y102: 3.31887298 | Z102: 226307.5901 | AA102: -0.4048011869 | AB102: 1.341333829 | AC102: 150879.7369 | AD102: -0.3943442802 | AE102: 1.320529896 | AF102: 152207.1207 | AG102: -0.4748426642 | AH102: 0.4853152847 | AI102: 225713.2916 | AJ102: -0.07052890843 | AK102: 3.185995587
A103: 2012-08-01 | B103: 141456.8421 | C103: -0.2524468417 | D103: 2.052854251 | E103: 158140.2176 | F103: 0.8753385969 | G103: -1.005801077 | H103: 157328.2856 | I103: 0.0289031353 | J103: -0.1770183167 | K103: 163470.0435 | L103: -0.5428104718 | M103: -0.3244114742 | N103: 174006.199 | O103: -0.1661008417 | P103: -0.0820738507 | Q103: 238306.4475 | R103: -0.182235557 | S103: 1.899061272 | T103: 418604.9491 | U103: -0.462905574 | V103: 7.80817348 | W103: 287015.2914 | X103: -0.4307111685 | Y103: 2.103952915 | Z103: 225633.4092 | AA103: -0.2979046914 | AB103: 1.100591278 | AC103: 150149.7625 | AD103: -0.4838120606 | AE103: -0.3308750354 | AF103: 151175.2223 | AG103: -0.6779567514 | AH103: -0.9186359044 | AI103: 225190.0837 | AJ103: -0.2318019977 | AK103: 2.188135123
A104: 2012-09-01 | B104: 140912.2402 | C104: -0.3849950999 | D104: 1.852807489 | E104: 157391.7281 | F104: -0.4733075059 | G104: -1.199617926 | H104: 157506.9347 | I104: 0.1135517911 | J104: 0.09837737141 | K104: 163924.2282 | L104: 0.2778397546 | M104: 0.05647959117 | N104: 173855.6345 | O104: -0.08652826336 | P104: -0.1076001938 | Q104: 239106.0695 | R104: 0.3355435866 | S104: 2.505937924 | T104: 423694.8766 | U104: 1.215926282 | V104: 8.518980191 | W104: 286067.1813 | X104: -0.3303343303 | Y104: 2.313468366 | Z104: 223599.2911 | AA104: -0.9015146065 | AB104: -0.5396171214 | AC104: 150811.4917 | AD104: 0.4407127589 | AE104: -0.04208553838 | AF104: 150743.8374 | AG104: -0.285354186 | AH104: -1.930155633 | AI104: 225387.3074 | AJ104: 0.08758098443 | AK104: 2.287176876
A105: 2012-10-01 | B105: 142397.5442 | C105: 1.054063145 | D105: 1.497770094 | E105: 158322.8243 | F105: 0.5915788485 | G105: -0.09027834553 | H105: 157403.6773 | I105: -0.06555735349 | J105: 0.3981593387 | K105: 164624.0672 | L105: 0.4269283228 | M105: 0.7015629531 | N105: 174368.5487 | O105: 0.2950230776 | P105: -0.45946291 | Q105: 239532.5037 | R105: 0.1783451989 | S105: 2.60039361 | T105: 424109.6016 | U105: 0.0978829257 | V105: 7.912858602 | W105: 285163.0666 | X105: -0.3160497842 | Y105: 2.393890496 | Z105: 224326.55 | AA105: 0.3252509956 | AB105: -0.2594749247 | AC105: 151414.6122 | AD105: 0.3999167986 | AE105: -1.556573217 | AF105: 149872.5251 | AG105: -0.5780086045 | AH105: -2.629437607 | AI105: 225721.5544 | AJ105: 0.1482989204 | AK105: 2.314076104
A106: 2012-11-01 | B106: 142080.9817 | C106: -0.2223089033 | D106: 1.966160317 | E106: 156428.5397 | F106: -1.196469644 | G106: -0.7731971256 | H106: 157385.7796 | I106: -0.01137058316 | J106: 0.7541261484 | K106: 165237.48 | L106: 0.3726142785 | M106: 0.7994782661 | N106: 174107.4887 | O106: -0.1497173639 | P106: 0.3272035118 | Q106: 237811.5557 | R106: -0.7184611683 | S106: 2.837711504 | T106: 428484.6143 | U106: 1.031575969 | V106: 9.532162707 | W106: 285797.5177 | X106: 0.2224871037 | Y106: 3.605208888 | Z106: 222752.7045 | AA106: -0.7015868291 | AB106: -0.2114957846 | AC106: 151407.9503 | AD106: -0.004399773293 | AE106: -1.267971188 | AF106: 149311.8128 | AG106: -0.3741261099 | AH106: -2.892991827 | AI106: 225691.9578 | AJ106: -0.01311197766 | AK106: 2.964054058
A107: 2012-12-01 | B107: 141415.3109 | C107: -0.4685150678 | D107: 1.700725166 | E107: 156455.3265 | F107: 0.01712399847 | G107: 0.1462109637 | H107: 156621.6791 | I107: -0.4854952737 | J107: -0.5856814368 | K107: 164627.2482 | L107: -0.3693058945 | M107: 0.6909474797 | N107: 175018.8703 | O107: 0.5234591323 | P107: 0.0307135868 | Q107: 238596.3736 | R107: 0.3300167061 | S107: 3.16512431 | T107: 428034.3103 | U107: -0.1050922371 | V107: 8.922636879 | W107: 288387.1898 | X107: 0.9061212975 | Y107: 5.059658065 | Z107: 225731.4697 | AA107: 1.337252134 | AB107: 0.6114153259 | AC107: 151020.9591 | AD107: -0.2555950237 | AE107: -1.018702298 | AF107: 147858.4022 | AG107: -0.9734063289 | AH107: -3.371415001 | AI107: 226421.9401 | AJ107: 0.3234418701 | AK107: 3.262880875
A108: 2013-01-01 | B108: 140967.7173 | C108: -0.3165100583 | D108: 0.4115436496 | E108: 157048.7917 | F108: 0.379319208 | G108: 0.3293472603 | H108: 157016.7935 | I108: 0.2522731424 | J108: -0.4329610636 | K108: 164829.9645 | L108: 0.1231365124 | M108: 0.3768478831 | N108: 176015.2496 | O108: 0.5692982095 | P108: 0.3293044379 | Q108: 238152.9266 | R108: -0.1858565387 | S108: 2.427143717 | T108: 434231.2015 | U108: 1.447755729 | V108: 10.1963204 | W108: 288721.0067 | X108: 0.1157530272 | Y108: 4.531963509 | Z108: 225319.4788 | AA108: -0.1825137576 | AB108: 0.5295472772 | AC108: 150183.8749 | AD108: -0.554283445 | AE108: -0.5394429016 | AF108: 148008.2253 | AG108: 0.1013287447 | AH108: -2.26488322 | AI108: 227195.5544 | AJ108: 0.3416693184 | AK108: 3.304333057
A109: 2013-02-01 | B109: 143216.4484 | C109: 1.595210049 | D109: 0.04819415417 | E109: 159306.0921 | F109: 1.437324311 | G109: 0.7019856121 | H109: 156881.7502 | I109: -0.0860056835 | J109: -0.8758887497 | K109: 166682.433 | L109: 1.123866379 | M109: 0.9801265699 | N109: 177811.3354 | O109: 1.020414912 | P109: 1.223355548 | Q109: 242390.1508 | R109: 1.779203087 | S109: 3.807013858 | T109: 437328.9564 | U109: 0.7133883612 | V109: 10.80495822 | W109: 290393.4271 | X109: 0.5792513597 | Y109: 4.612863354 | Z109: 226385.5348 | AA109: 0.4731308796 | AB109: 1.340078274 | AC109: 152040.8671 | AD109: 1.236479064 | AE109: 0.6332272606 | AF109: 149160.4316 | AG109: 0.778474509 | AH109: -1.238463277 | AI109: 229210.693 | AJ109: 0.8869621858 | AK109: 3.83174665
A110: 2013-03-01 | B110: 143528.0589 | C110: 0.2175801001 | D110: -1.115668258 | E110: 159415.1148 | F110: 0.06843598359 | G110: 0.2661541347 | H110: 157411.1717 | I110: 0.3374653287 | J110: 0.3838949761 | K110: 165880.5055 | L110: -0.4811109781 | M110: 0.2625071123 | N110: 177000.9572 | O110: -0.4557517146 | P110: 1.211783043 | Q110: 242303.3104 | R110: -0.03582670896 | S110: 2.612816187 | T110: 444424.0338 | U110: 1.622366272 | V110: 10.9413672 | W110: 292453.6526 | X110: 0.7094600902 | Y110: 3.236777655 | Z110: 225571.3486 | AA110: -0.3596458551 | AB110: 0.8212716597 | AC110: 151681.9724 | AD110: -0.2360514618 | AE110: -0.2532888562 | AF110: 149507.7733 | AG110: 0.2328645522 | AH110: -1.213244538 | AI110: 230129.4288 | AJ110: 0.4008258718 | AK110: 3.308829553
A111: 2013-04-01 | B111: 143377.4277 | C111: -0.1049489611 | D111: -0.4887688667 | E111: 159136.5922 | F111: -0.1747152832 | G111: 0.7908593546 | H111: 158142.4577 | I111: 0.4645706224 | J111: 0.1859485526 | K111: 165764.1909 | L111: -0.07011953089 | M111: 0.2222793326 | N111: 176436.7771 | O111: -0.3187441263 | P111: 1.748435621 | Q111: 244297.5369 | R111: 0.8230290137 | S111: 3.76940504 | T111: 446529.5962 | U111: 0.4737732986 | V111: 9.485036759 | W111: 293097.4395 | X111: 0.2201329812 | Y111: 2.76143723 | Z111: 226151.5035 | AA111: 0.2571935113 | AB111: 0.6345652764 | AC111: 151488.8899 | AD111: -0.1272943014 | AE111: -0.5653379627 | AF111: 149720.1386 | AG111: 0.142042936 | AH111: -1.746157088 | AI111: 230712.4823 | AJ111: 0.2533589635 | AK111: 3.146897284
A112: 2013-05-01 | B112: 141589.5266 | C112: -1.246989247 | D112: -0.9203867215 | E112: 158107.6823 | F112: -0.6465577494 | G112: 0.705652182 | H112: 158311.071 | I112: 0.1066211281 | J112: 0.1938393059 | K112: 164673.6003 | L112: -0.6579168903 | M112: -0.09747748892 | N112: 175167.1275 | O112: -0.7196059733 | P112: 0.6425421472 | Q112: 242998.4213 | R112: -0.5317759909 | S112: 1.93012217 | T112: 448238.3906 | U112: 0.382683344 | V112: 7.096623947 | W112: 294264.6875 | X112: 0.398245697 | Y112: 2.038467285 | Z112: 226717.554 | AA112: 0.2502970408 | AB112: -0.758140878 | AC112: 150509.0375 | AD112: -0.6468147284 | AE112: -1.026273357 | AF112: 149514.4127 | AG112: -0.1374069206 | AH112: -1.820874465 | AI112: 230551.1961 | AJ112: -0.06990790042 | AK112: 2.036372036
A113: 2013-06-01 | B113: 142832.5473 | C113: 0.8779043616 | D113: 0.2827881783 | E113: 159487.7464 | F113: 0.8728634166 | G113: 1.356499651 | H113: 158634.0652 | I113: 0.2040249996 | J113: -0.1795706939 | K113: 166147.6705 | L113: 0.8951466312 | M113: 0.6162394345 | N113: 176882.78 | O113: 0.9794374727 | P113: 1.496215396 | Q113: 244092.7348 | R113: 0.4503376928 | S113: 2.574276268 | T113: 448540.6411 | U113: 0.06743074168 | V113: 6.811154572 | W113: 292524.5931 | X113: -0.5913364562 | Y113: 1.775792811 | Z113: 226074.337 | AA113: -0.2837085221 | AB113: -0.5074530462 | AC113: 149613.6447 | AD113: -0.5949096476 | AE113: -1.230175187 | AF113: 149699.1469 | AG113: 0.1235560964 | AH113: -2.114756001 | AI113: 230839.4542 | AJ113: 0.1250299863 | AK113: 2.198963999
A114: 2013-07-01 | B114: 142916.4601 | C114: 0.05874907524 | D114: 0.7767951451 | E114: 160226.7527 | F114: 0.4633624209 | G114: 2.206308884 | H114: 158201.3272 | I114: -0.2727900725 | J114: 0.5839806254 | K114: 166461.6328 | L114: 0.1889658031 | M114: 1.277309334 | N114: 177627.3621 | O114: 0.4209466237 | P114: 1.911496548 | Q114: 244795.5366 | R114: 0.2879241074 | S114: 2.535804064 | T114: 451123.207 | U114: 0.5757707621 | V114: 7.269379762 | W114: 294030.0916 | X114: 0.5146570686 | Y114: 2.002813069 | Z114: 227730.5491 | AA114: 0.7325962688 | AB114: 0.6287721044 | AC114: 150262.7462 | AD114: 0.4338517952 | AE114: -0.4089288367 | AF114: 150486.503 | AG114: 0.5259589992 | AH114: -1.130444922 | AI114: 231821.5384 | AJ114: 0.4254403535 | AK114: 2.706197192
A115: 2013-08-01 | B115: 143159.8173 | C115: 0.1702793467 | D115: 1.20388322 | E115: 161095.8861 | F115: 0.5424396626 | G115: 1.869017612 | H115: 159896.7861 | I115: 1.07170963 | J115: 1.632573831 | K115: 166800.79 | L115: 0.2037450245 | M115: 2.037527196 | N115: 179070.0906 | O115: 0.8122220145 | P115: 2.910178831 | Q115: 246068.8747 | R115: 0.5201639368 | S115: 3.257329909 | T115: 457274.8461 | U115: 1.363627276 | V115: 9.237802159 | W115: 293828.7562 | X115: -0.06847441769 | Y115: 2.373903071 | Z115: 230010.2552 | AA115: 1.001054137 | AB115: 1.939804049 | AC115: 151114.4459 | AD115: 0.5668069785 | AE115: 0.6424807646 | AF115: 150539.365 | AG115: 0.03512735727 | AH115: -0.4206094584 | AI115: 233326.7441 | AJ115: 0.649295014 | AK115: 3.613240972
A116: 2013-09-01 | B116: 143088.2915 | C116: -0.04996220999 | D116: 1.544259949 | E116: 161690.0327 | F116: 0.3688154827 | G116: 2.730959664 | H116: 160275.8283 | I116: 0.2370543321 | J116: 1.757950275 | K116: 168672.8392 | L116: 1.122326312 | M116: 2.896832903 | N116: 179664.9253 | O116: 0.3321798201 | P116: 3.341445236 | Q116: 247233.4281 | R116: 0.4732631672 | S116: 3.399059905 | T116: 463724.0333 | U116: 1.410352506 | V116: 9.447637648 | W116: 294027.5903 | X116: 0.06767007549 | Y116: 2.782706132 | Z116: 231324.6879 | AA116: 0.5714670046 | AB116: 3.455018497 | AC116: 153161.3264 | AD116: 1.35452341 | AE116: 1.558127103 | AF116: 150824.5515 | AG116: 0.1894431723 | AH116: 0.05354387359 | AI116: 234754.4979 | AJ116: 0.6119117696 | AK116: 4.156041702
A117: 2013-10-01 | B117: 143997.5161 | C117: 0.6354290835 | D117: 1.123595162 | E117: 161708.6277 | F117: 0.01150039606 | G117: 2.138544108 | H117: 161765.1942 | I117: 0.9292517187 | J117: 2.770911667 | K117: 168966.2326 | L117: 0.1739423106 | M117: 2.637624941 | N117: 180675.9084 | O117: 0.5627047775 | P117: 3.617257663 | Q117: 247257.9684 | R117: 0.009925977241 | S117: 3.225226038 | T117: 469707.2293 | U117: 1.290249278 | V117: 10.75137831 | W117: 296212.1655 | X117: 0.7429830434 | Y117: 3.874659849 | Z117: 231753.6012 | AA117: 0.1854161265 | AB117: 3.31082131 | AC117: 154631.5778 | AD117: 0.9599364495 | AE117: 2.124607123 | AF117: 150910.502 | AG117: 0.0569870319 | AH117: 0.6925731555 | AI117: 236190.0063 | AJ117: 0.611493476 | AK117: 4.637772415
A118: 2013-11-01 | B118: 144013.9654 | C118: 0.01142329979 | D118: 1.360480185 | E118: 161304.8584 | F118: -0.2496894186 | G118: 3.117281947 | H118: 161073.8307 | I118: -0.4273870833 | J118: 2.343319097 | K118: 170122.5901 | L118: 0.6843719075 | M118: 2.9564177 | N118: 181217.8765 | O118: 0.2999670186 | P118: 4.083906943 | Q118: 248305.6794 | R118: 0.4237319478 | S118: 4.412789647 | T118: 476219.6003 | U118: 1.386474503 | V118: 11.14042007 | W118: 297659.3334 | X118: 0.4885578879 | Y118: 4.150426426 | Z118: 230758.4735 | AA118: -0.4293904015 | AB118: 3.594016535 | AC118: 154467.7239 | AD118: -0.1059640799 | AE118: 2.020880411 | AF118: 152053.8466 | AG118: 0.7576309433 | AH118: 1.836447989 | AI118: 237160.8859 | AJ118: 0.4110587174 | AK118: 5.081673386
A119: 2013-12-01 | B119: 144339.085 | C119: 0.2257556555 | D119: 2.06750886 | E119: 161882.1422 | F119: 0.3578837524 | G119: 3.468603983 | H119: 162165.8771 | I119: 0.6779788351 | J119: 3.539866297 | K119: 169840.8328 | L119: -0.1656201493 | M119: 3.16690258 | N119: 182597.9272 | O119: 0.7615421987 | P119: 4.330422691 | Q119: 249231.4439 | R119: 0.3728325957 | S119: 4.457347862 | T119: 483333.4806 | U119: 1.493823507 | V119: 12.91933124 | W119: 302527.4838 | X119: 1.635477173 | Y119: 4.903232346 | Z119: 233238.9947 | AA119: 1.074942649 | AB119: 3.32586546 | AC119: 155363.7697 | AD119: 0.5800860811 | AE119: 2.87563434 | AF119: 152966.1334 | AG119: 0.5999761517 | AH119: 3.454474796 | AI119: 239469.3247 | AJ119: 0.9733640068 | AK119: 5.762420621
A120: 2014-01-01 | B120: 146641.095 | C120: 1.594862493 | D120: 4.024593578 | E120: 163704.6723 | F120: 1.125837635 | G120: 4.238097342 | H120: 163065.8943 | I120: 0.5549978471 | J120: 3.852518315 | K120: 173483.1064 | L120: 2.144521759 | M120: 5.249738396 | N120: 183707.3444 | O120: 0.6075738658 | P120: 4.370129794 | Q120: 252339.5341 | R120: 1.247069838 | S120: 5.956931827 | T120: 497041.8769 | U120: 2.836219063 | V120: 14.46480014 | W120: 305847.7125 | X120: 1.097496549 | Y120: 5.931922294 | Z120: 233826.012 | AA120: 0.2516805871 | AB120: 3.775320842 | AC120: 156144.8845 | AD120: 0.5027651022 | AE120: 3.969140864 | AF120: 155047.4567 | AG120: 1.360643209 | AH120: 4.755973168 | AI120: 242790.0056 | AJ120: 1.386683242 | AK120: 6.863889262
A121: 2014-02-01 | B121: 148185.8483 | C121: 1.053424595 | D121: 3.469852743 | E121: 164716.4142 | F121: 0.6180286872 | G121: 3.396180252 | H121: 163398.1641 | I121: 0.2037641614 | J121: 4.153710638 | K121: 174845.8943 | L121: 0.7855449967 | M121: 4.89761344 | N121: 185328.6417 | O121: 0.8825435413 | P121: 4.227686775 | Q121: 255481.0229 | R121: 1.244945155 | S121: 5.400744222 | T121: 501616.9261 | U121: 0.9204554701 | V121: 14.7001402 | W121: 309915.8035 | X121: 1.330103466 | Y121: 6.722733578 | Z121: 235739.1408 | AA121: 0.8181847774 | AB121: 4.131715419 | AC121: 157682.483 | AD121: 0.984725488 | AE121: 3.710591739 | AF121: 154240.3426 | AG121: -0.5205594096 | AH121: 3.405669316 | AI121: 245119.8762 | AJ121: 0.9596237669 | AK121: 6.940855591
A122: 2014-03-01 | B122: 151034.3322 | C122: 1.92223744 | D122: 5.229829822 | E122: 165396.0187 | F122: 0.4125906356 | G122: 3.751779658 | H122: 164463.8649 | I122: 0.6522109671 | J122: 4.480427344 | K122: 176337.1519 | L122: 0.852898308 | M122: 6.303722288 | N122: 185897.1689 | O122: 0.3067670125 | P122: 5.026081101 | Q122: 258394.4102 | R122: 1.14035369 | S122: 6.64089142 | T122: 509246.0165 | U122: 1.520899714 | V122: 14.58561592 | W122: 313275.4806 | X122: 1.084061246 | Y122: 7.11970184 | Z122: 238104.363 | AA122: 1.003321793 | AB122: 5.556119823 | AC122: 157546.1024 | AD122: -0.08649060685 | AE122: 3.866069194 | AF122: 155210.9519 | AG122: 0.6292836879 | AH122: 3.814636837 | AI122: 247593.4359 | AJ122: 1.009122451 | AK122: 7.588776125
A123: 2014-04-01 | B123: 150101.0814 | C123: -0.6179063608 | D123: 4.68947853 | E123: 164751.1299 | F123: -0.3899058563 | G123: 3.52812485 | H123: 164617.9095 | I123: 0.09366474386 | J123: 4.094695295 | K123: 175663.5287 | L123: -0.3820086592 | M123: 5.971939891 | N123: 185992.8785 | O123: 0.05148525841 | P123: 5.416161874 | Q123: 260783.4918 | R123: 0.9245871856 | S123: 6.748309875 | T123: 514482.8658 | U123: 1.028353514 | V123: 15.21808859 | W123: 315291.5893 | X123: 0.6435577605 | Y123: 7.572276934 | Z123: 240456.3689 | AA123: 0.9878045966 | AB123: 6.325346135 | AC123: 157212.136 | AD123: -0.2119801521 | AE123: 3.777997219 | AF123: 155111.1047 | AG123: -0.06433000965 | AH123: 3.600695401 | AI123: 248854.2762 | AJ123: 0.50923814 | AK123: 7.863377671
A124: 2014-05-01 | B124: 151304.0811 | C124: 0.8014596798 | D124: 6.861068523 | E124: 166026.7466 | F124: 0.7742688525 | G124: 5.008652454 | H124: 165052.2128 | I124: 0.2638250617 | J124: 4.258161961 | K124: 176000.5217 | L124: 0.1918400322 | M124: 6.878407591 | N124: 186264.7372 | O124: 0.1461661821 | P124: 6.335440838 | Q124: 262722.5596 | R124: 0.7435546728 | S124: 8.116982074 | T124: 527999.5102 | U124: 2.627229268 | V124: 17.79435257 | W124: 318406.2621 | X124: 0.9878705508 | Y124: 8.20403387 | Z124: 241908.2105 | AA124: 0.6037859181 | AB124: 6.700256019 | AC124: 156203.6466 | AD124: -0.6414831222 | AE124: 3.783566275 | AF124: 157379.6954 | AG124: 1.462558526 | AH124: 5.260551488 | AI124: 251463.8163 | AJ124: 1.048621771 | AK124: 9.070705572
A125: 2014-06-01 | B125: 149771.9395 | C125: -1.01262411 | D125: 4.858411014 | E125: 165767.7952 | F125: -0.155969697 | G125: 3.937637166 | H125: 164938.5115 | I125: -0.06888810338 | J125: 3.974207115 | K125: 176453.5601 | L125: 0.2574074007 | M125: 6.202849294 | N125: 186978.9397 | O125: 0.3834340661 | P125: 5.707825092 | Q125: 265496.6319 | R125: 1.055894204 | S125: 8.768756313 | T125: 540302.189 | U125: 2.33005497 | V125: 20.45780015 | W125: 321493.1662 | X125: 0.9694860002 | Y125: 9.902953058 | Z125: 240911.3978 | AA125: -0.4120623751 | AB125: 6.562912474 | AC125: 157471.4363 | AD125: 0.8116261476 | AE125: 5.252055468 | AF125: 158442.7712 | AG125: 0.6754847095 | AH125: 5.84079766 | AI125: 253556.4656 | AJ125: 0.832187059 | AK125: 9.841043627
A126: 2014-07-01 | B126: 149026.5105 | C126: -0.4977093891 | D126: 4.275260106 | E126: 166672.0131 | F126: 0.5454726285 | G126: 4.02258695 | H126: 165207.5193 | I126: 0.1630958415 | J126: 4.428655728 | K126: 178090.1749 | L126: 0.9275045822 | M126: 6.985719164 | N126: 189122.0551 | O126: 1.146180133 | P126: 6.471240092 | Q126: 266887.9155 | R126: 0.524030617 | S126: 9.024829132 | T126: 544062.1882 | U126: 0.6959067081 | V126: 20.60168482 | W126: 325254.6239 | X126: 1.16999616 | Y126: 10.6195023 | Z126: 242580.2731 | AA126: 0.692734033 | AB126: 6.520743046 | AC126: 157483.5439 | AD126: 0.007688758498 | AE126: 4.805447728 | AF126: 158920.9565 | AG126: 0.301803197 | AH126: 5.604790671 | AI126: 255388.2777 | AJ126: 0.7224474141 | AK126: 10.16589722
A127: 2014-08-01 | B127: 148712.8177 | C127: -0.2104946365 | D127: 3.878881995 | E127: 167754.9953 | F127: 0.6497684835 | G127: 4.13363082 | H127: 166288.6174 | I127: 0.6543879475 | J127: 3.997473329 | K127: 179213.4962 | L127: 0.6307598204 | M127: 7.441635108 | N127: 190676.663 | O127: 0.8220130138 | P127: 6.481580701 | Q127: 269881.9614 | R127: 1.121836444 | S127: 9.677407079 | T127: 547802.4791 | U127: 0.6874748836 | V127: 19.79720376 | W127: 327250.036 | X127: 0.6134922986 | Y127: 11.37440741 | Z127: 245452.5875 | AA127: 1.184067616 | AB127: 6.713758178 | AC127: 159625.6043 | AD127: 1.360180513 | AE127: 5.632259983 | AF127: 159331.0249 | AG127: 0.2580329146 | AH127: 5.840106958 | AI127: 257365.5937 | AJ127: 0.7742391273 | AK127: 10.30265507
A128: 2014-09-01 | B128: 148062.1259 | C128: -0.437549205 | D128: 3.476059699 | E128: 168967.6865 | F128: 0.7228942078 | G128: 4.500990971 | H128: 167447.7359 | I128: 0.6970522083 | J128: 4.474728144 | K128: 180790.9233 | L128: 0.8801943704 | M128: 7.184371923 | N128: 190910.6763 | O128: 0.122727814 | P128: 6.259291295 | Q128: 271694.4893 | R128: 0.671600232 | S128: 9.893913385 | T128: 551519.2474 | U128: 0.6784869346 | V128: 18.93264263 | W128: 328012.9143 | X128: 0.2331178733 | Y128: 11.5585493 | Z128: 247038.4257 | AA128: 0.6460873901 | AB128: 6.792935921 | AC128: 160179.3765 | AD128: 0.3469193882 | AE128: 4.582129348 | AF128: 159226.9838 | AG128: -0.06529870924 | AH128: 5.570997687 | AI128: 258696.4863 | AJ128: 0.5171213958 | AK128: 10.19873467
A129: 2014-10-01 | B129: 149554.65 | C129: 1.008039093 | D129: 3.859187351 | E129: 169778.2882 | F129: 0.4797376985 | G129: 4.990247326 | H129: 169076.3072 | I129: 0.9725848389 | J129: 4.519583485 | K129: 180430.181 | L129: -0.1995356233 | M129: 6.784757045 | N129: 192319.9117 | O129: 0.7381647611 | P129: 6.444690579 | Q129: 273479.3454 | R129: 0.6569349768 | S129: 10.60486633 | T129: 552393.0516 | U129: 0.1584358615 | V129: 17.60369378 | W129: 328010.8047 | X129: -0.0006431422204 | Y129: 10.73508889 | Z129: 247868.9405 | AA129: 0.3361884932 | AB129: 6.953652164 | AC129: 161966.2477 | AD129: 1.115543823 | AE129: 4.743319529 | AF129: 159593.3947 | AG129: 0.2301186057 | AH129: 5.753670317 | AI129: 259600.018 | AJ129: 0.3492632495 | AK129: 9.911516596
A130: 2014-11-01 | B130: 148582.4985 | C130: -0.6500309491 | D130: 3.17228481 | E130: 169023.6455 | F130: -0.4444871247 | G130: 4.785216793 | H130: 169846.2041 | I130: 0.4553547005 | J130: 5.446181682 | K130: 180728.6115 | L130: 0.1653994128 | M130: 6.234340424 | N130: 192627.9101 | O130: 0.160149015 | P130: 6.29630684 | Q130: 272839.666 | R130: -0.2339041232 | S130: 9.880557954 | T130: 552120.6933 | U130: -0.04930517986 | V130: 15.93825473 | W130: 329162.7249 | X130: 0.3511836057 | Y130: 10.58370694 | Z130: 246394.7226 | AA130: -0.5947569965 | AB130: 6.776023832 | AC130: 161432.5677 | AD130: -0.3295007 | AE130: 4.508931485 | AF130: 158610.907 | AG130: -0.6156192716 | AH130: 4.312327869 | AI130: 259488.657 | AJ130: -0.04289713711 | AK130: 9.414609412
A131: 2014-12-01 | B131: 150238.034 | C131: 1.114219726 | D131: 4.086868766 | E131: 169477.6456 | F131: 0.268601533 | G131: 4.691995849 | H131: 169828.8022 | I131: -0.01024570396 | J131: 4.725362187 | K131: 180757.9824 | L131: 0.01625138046 | M131: 6.42787097 | N131: 193212.0938 | O131: 0.303270549 | P131: 5.812862633 | Q131: 275007.45 | R131: 0.7945267225 | S131: 10.34219667 | T131: 548330.1197 | U131: -0.6865479998 | V131: 13.44757639 | W131: 330024.1281 | X131: 0.261695237 | Y131: 9.088973968 | Z131: 248425.6389 | AA131: 0.8242531541 | AB131: 6.511194322 | AC131: 161827.4757 | AD131: 0.2446272212 | AE131: 4.160368978 | AF131: 159190.1765 | AG131: 0.3652141208 | AH131: 4.068902623 | AI131: 259918.5681 | AJ131: 0.1656762471 | AK131: 8.539399978
A132: 2015-01-01 | B132: 151226.242 | C132: 0.6577615144 | D132: 3.126781768 | E132: 170741.7464 | F132: 0.7458805463 | G132: 4.29863974 | H132: 170032.5955 | I132: 0.1199992834 | J132: 4.272322725 | K132: 182382.456 | L132: 0.8987008946 | M132: 5.129807599 | N132: 194315.4265 | O132: 0.571047412 | P132: 5.774446354 | Q132: 278307.4371 | R132: 1.199962796 | S132: 10.29085796 | T132: 549738.5594 | U132: 0.2568598052 | V132: 10.60206088 | W132: 332481.3956 | X132: 0.7445720899 | Y132: 8.708151806 | Z132: 246627.6839 | AA132: -0.7237397243 | AB132: 5.474870724 | AC132: 162234.3836 | AD132: 0.2514454934 | AE132: 3.899903078 | AF132: 160698.5711 | AG132: 0.9475425543 | AH132: 3.644764314 | AI132: 261151.5961 | AJ132: 0.4743901144 | AK132: 7.562745594
A133: 2015-02-01 | B133: 154438.566 | C133: 2.124184241 | D133: 4.219510657 | E133: 171350.0421 | F133: 0.3562665316 | G133: 4.027302316 | H133: 169685.0455 | I133: -0.2044020295 | J133: 3.847583823 | K133: 184407.801 | L133: 1.110493332 | M133: 5.468762516 | N133: 194648.4308 | O133: 0.1713730474 | P133: 5.028790439 | Q133: 282297.4977 | R133: 1.433688113 | S133: 10.4964645 | T133: 547350.905 | U133: -0.4343254206 | V133: 9.117311753 | W133: 333576.6491 | X133: 0.3294179656 | Y133: 7.634604385 | Z133: 248551.7201 | AA133: 0.7801379694 | AB133: 5.435066574 | AC133: 163483.2014 | AD133: 0.7697614883 | AE133: 3.678733603 | AF133: 165360.5234 | AG133: 2.90105395 | AH133: 7.209644736 | AI133: 262220.948 | AJ133: 0.4094755446 | AK133: 6.976615703
A134: 2015-03-01 | B134: 155068.9778 | C134: 0.4081958618 | D134: 2.671343384 | E134: 171818.1338 | F134: 0.2731786134 | G134: 3.882871657 | H134: 169789.0907 | I134: 0.06131670096 | J134: 3.23793063 | K134: 185416.3873 | L134: 0.5469325751 | M134: 5.148793256 | N134: 194833.5035 | O134: 0.09508053698 | P134: 4.807138649 | Q134: 283249.32 | R134: 0.3371699306 | S134: 9.618981252 | T134: 545203.5905 | U134: -0.3923103989 | V134: 7.060943607 | W134: 335649.2581 | X134: 0.6213291638 | Y134: 7.141885909 | Z134: 249820.5089 | AA134: 0.5104727691 | AB134: 4.920592707 | AC134: 163426.1199 | AD134: -0.03491587143 | AE134: 3.732251923 | AF134: 180702.2426 | AG134: 9.277739906 | AH134: 16.42364174 | AI134: 262799.1094 | AJ134: 0.2204863305 | AK134: 6.141387942
A135: 2015-04-01 | B135: 154504.499 | C135: -0.3640178558 | D135: 2.933634838 | E135: 171520.7732 | F135: -0.1730670296 | G135: 4.109011791 | H135: 169390.3557 | I135: -0.234841382 | J135: 2.899105063 | K135: 185843.3703 | L135: 0.2302832825 | M135: 5.795079714 | N135: 194226.7744 | O135: -0.3114090562 | P135: 4.42699522 | Q135: 284328.8439 | R135: 0.3811214471 | S135: 9.028697335 | T135: 547934.4444 | U135: 0.5008869992 | V135: 6.501981089 | W135: 336441.0198 | X135: 0.2358896145 | Y135: 6.707895548 | Z135: 252038.2808 | AA135: 0.8877461184 | AB135: 4.816637631 | AC135: 161830.3977 | AD135: -0.9764180446 | AE135: 2.937598776 | AF135: 177650.6173 | AG135: -1.688758977 | AH135: 14.53120498 | AI135: 263395.7233 | AJ135: 0.2270228058 | AK135: 5.84335835
A136: 2015-05-01 | B136: 151938.6998 | C136: -1.660663113 | D136: 0.4194326703 | E136: 171352.5286 | F136: -0.09808993929 | G136: 3.207785587 | H136: 170798.5776 | I136: 0.8313471821 | J136: 3.481543628 | K136: 186899.7676 | L136: 0.5684342588 | M136: 6.192735014 | N136: 195496.4676 | O136: 0.6537168778 | P136: 4.956241581 | Q136: 284408.2821 | R136: 0.02793882329 | S136: 8.25422929 | T136: 552101.1399 | U136: 0.7604368664 | V136: 4.564706835 | W136: 338818.5374 | X136: 0.7066669853 | Y136: 6.410764412 | Z136: 254079.7657 | AA136: 0.8099900218 | AB136: 5.031476672 | AC136: 161337.8724 | AD136: -0.3043466237 | AE136: 3.286879569 | AF136: 173742.3097 | AG136: -2.199996614 | AH136: 10.39690303 | AI136: 264658.7405 | AJ136: 0.4795132022 | AK136: 5.247245695
A137: 2015-06-01 | B137: 151362.6106 | C137: -0.3791589916 | D137: 1.06206217 | E137: 171845.0907 | F137: 0.2874554053 | G137: 3.666149725 | H137: 171981.219 | I137: 0.6924187433 | J137: 4.269898787 | K137: 188325.1317 | L137: 0.762635518 | M137: 6.727873085 | N137: 196998.183 | O137: 0.7681547575 | P137: 5.358487611 | Q137: 285921.7855 | R137: 0.5321586913 | S137: 7.693187455 | T137: 559146.362 | U137: 1.276074538 | V137: 3.487709906 | W137: 340136.7835 | X137: 0.3890714196 | Y137: 5.799071101 | Z137: 253290.4318 | AA137: -0.3106638107 | AB137: 5.138417745 | AC137: 160972.8207 | AD137: -0.2262653277 | AE137: 2.223504482 | AF137: 158095.6062 | AG137: -9.0056956 | AH137: -0.219110662 | AI137: 266105.0809 | AJ137: 0.5464925723 | AK137: 4.949041732
A138: 2015-07-01 | B138: 150729.26 | C138: -0.4184326571 | D138: 1.142581623 | E138: 172438.664 | F138: 0.3454118358 | G138: 3.459879552 | H138: 172926.4092 | I138: 0.5495892269 | J138: 4.672238849 | K138: 188101.6469 | L138: -0.118669622 | M138: 5.621574578 | N138: 197522.3047 | O138: 0.2660540935 | P138: 4.441708072 | Q138: 287318.1987 | R138: 0.488389942 | S138: 7.655004964 | T138: 562755.7513 | U138: 0.6455177982 | V138: 3.435923959 | W138: 342080.8743 | X138: 0.5715614683 | Y138: 5.173254783 | Z138: 255471.3508 | AA138: 0.8610348844 | AB138: 5.314149245 | AC138: 162032.1627 | AD138: 0.6580874568 | AE138: 2.888313709 | AF138: 159345.0216 | AG138: 0.7902910325 | AH138: 0.2668402293 | AI138: 267443.1772 | AJ138: 0.5028450927 | AK138: 4.720224286
A139: 2015-08-01 | B139: 152026.3677 | C139: 0.860554721 | D139: 2.228153665 | E139: 174599.4347 | F139: 1.253066228 | G139: 4.080021186 | H139: 174390.295 | I139: 0.8465368187 | J139: 4.872057783 | K139: 188469.8664 | L139: 0.1957555604 | M139: 5.164996142 | N139: 198433.31 | O139: 0.4612164243 | P139: 4.067958223 | Q139: 291949.0776 | R139: 1.611759701 | S139: 8.176580645 | T139: 572899.9253 | U139: 1.802589138 | V139: 4.581477299 | W139: 344081.3983 | X139: 0.5848102583 | Y139: 5.143272884 | Z139: 255625.2871 | AA139: 0.06025578221 | AB139: 4.144466212 | AC139: 162453.2729 | AD139: 0.2598930046 | AE139: 1.771437972 | AF139: 160093.4797 | AG139: 0.4697091364 | AH139: 0.4785350461 | AI139: 270016.4737 | AJ139: 0.9621843664 | AK139: 4.915528837
A140: 2015-09-01 | B140: 151799.872 | C140: -0.1489845282 | D140: 2.524444424 | E140: 174860.0818 | F140: 0.1492829338 | G140: 3.487291261 | H140: 175266.652 | I140: 0.5025262683 | J140: 4.669466594 | K140: 190219.1205 | L140: 0.9281346534 | M140: 5.214972648 | N140: 198551.1748 | O140: 0.05939767779 | P140: 4.00213263 | Q140: 294212.9705 | R140: 0.7754410103 | S140: 8.288162663 | T140: 578729.6132 | U140: 1.017575244 | V140: 4.933711003 | W140: 347774.1407 | X140: 1.073217674 | Y140: 6.02452695 | Z140: 256522.0373 | AA140: 0.350806539 | AB140: 3.83892163 | AC140: 163851.1169 | AD140: 0.8604590985 | AE140: 2.292267859 | AF140: 160811.056 | AG140: 0.4482232936 | AH140: 0.9948515797 | AI140: 271965.7949 | AJ140: 0.7219267802 | AK140: 5.129296053
A141: 2015-10-01 | B141: 152623.5778 | C141: 0.5426261677 | D141: 2.052044384 | E141: 175813.679 | F141: 0.5453486866 | G141: 3.554866113 | H141: 176754.4896 | I141: 0.8488994194 | J141: 4.541252713 | K141: 192654.0231 | L141: 1.280051456 | M141: 6.774832265 | N141: 200153.0982 | O141: 0.806806298 | P141: 4.072998188 | Q141: 296930.9868 | R141: 0.9238261232 | S141: 8.575287956 | T141: 586132.9325 | U141: 1.279236316 | V141: 6.107948099 | W141: 351961.7222 | X141: 1.204109502 | Y141: 7.301868457 | Z141: 258474.7115 | AA141: 0.7612110969 | AB141: 4.27878176 | AC141: 164941.8227 | AD141: 0.6656688234 | AE141: 1.837157476 | AF141: 161429.8537 | AG141: 0.3847979747 | AH141: 1.150711117 | AI141: 274709.3041 | AJ141: 1.00876995 | AK141: 5.82021767
A142: 2015-11-01 | B142: 153037.8296 | C142: 0.2714205766 | D142: 2.99855713 | E142: 174361.3753 | F142: -0.8260470545 | G142: 3.157978123 | H142: 176616.1293 | I142: -0.07827823714 | J142: 3.985914912 | K142: 192764.4999 | L142: 0.05734465597 | M142: 6.659647494 | N142: 199965.2137 | O142: -0.09387039717 | P142: 3.809055271 | Q142: 295747.5325 | R142: -0.3985620571 | S142: 8.396090981 | T142: 588159.8601 | U142: 0.3458136226 | V142: 6.527407368 | W142: 353441.7468 | X142: 0.4205072627 | Y142: 7.37599372 | Z142: 259926.9954 | AA142: 0.5618669294 | AB142: 5.492111462 | AC142: 165437.0706 | AD142: 0.3002560875 | AE142: 2.480604048 | AF142: 162139.5018 | AG142: 0.439601573 | AH142: 2.224686102 | AI142: 275043.6338 | AJ142: 0.1217030851 | AK142: 5.994472734
A143: 2015-12-01 | B143: 154558.1879 | C143: 0.9934526297 | D143: 2.875539451 | E143: 174971.5353 | F143: 0.3499399012 | G143: 3.241660367 | H143: 177075.9037 | I143: 0.2603241088 | J143: 4.267298237 | K143: 191922.3645 | L143: -0.4368726554 | M143: 6.176425525 | N143: 202155.9252 | O143: 1.095546315 | P143: 4.62902254 | Q143: 298780.8658 | R143: 1.025649543 | S143: 8.644644261 | T143: 593832.0135 | U143: 0.9643897539 | V143: 8.298266352 | W143: 356207.7675 | X143: 0.7825959125 | Y143: 7.933856097 | Z143: 263155.0025 | AA143: 1.24188988 | AB143: 5.929083507 | AC143: 166140.9531 | AD143: 0.4254684656 | AE143: 2.665478994 | AF143: 162415.703 | AG143: 0.1703478326 | AH143: 2.026209515 | AI143: 277179.6443 | AJ143: 0.7766078472 | AK143: 6.640955394
A144: 2016-01-01 | B144: 156358.3507 | C144: 1.16471525 | D144: 3.393662825 | E144: 175346.4568 | F144: 0.214275688 | G144: 2.696886051 | H144: 178252.1268 | I144: 0.6642480109 | J144: 4.834091533 | K144: 192817.4774 | L144: 0.4663931879 | M144: 5.721505029 | N144: 202108.2281 | O144: -0.02359420709 | P144: 4.010387526 | Q144: 303008.4918 | R144: 1.414958762 | S144: 8.875456206 | T144: 601699.0473 | U144: 1.324791131 | V144: 9.451854359 | W144: 359099.5432 | X144: 0.8118227648 | Y144: 8.005905882 | Z144: 263381.4615 | AA144: 0.08605537024 | AB144: 6.793145589 | AC144: 167408.3093 | AD144: 0.7628198418 | AE144: 3.189167128 | AF144: 162714.5748 | AG144: 0.1840165739 | AH144: 1.254524939 | AI144: 279397.3205 | AJ144: 0.8000862543 | AK144: 6.986640971
A145: 2016-02-01 | B145: 158483.3817 | C145: 1.359077379 | D145: 2.619045123 | E145: 178412.2389 | F145: 1.748414102 | G145: 4.121502822 | H145: 179181.7239 | I145: 0.5215068799 | J145: 5.596650229 | K145: 195525.3781 | L145: 1.404385525 | M145: 6.028799791 | N145: 204617.5305 | O145: 1.241563675 | P145: 5.121592639 | Q145: 311311.5618 | R145: 2.740210346 | S145: 10.27783255 | T145: 616078.87 | U145: 2.389869611 | V145: 12.55647234 | W145: 369089.6357 | X145: 2.781984172 | Y145: 10.64612487 | Z145: 268450.9286 | AA145: 1.924762289 | AB145: 8.006063473 | AC145: 169980.3163 | AD145: 1.536367613 | AE145: 3.974178885 | AF145: 161936.2824 | AG145: -0.4783175363 | AH145: -2.070772921 | AI145: 285318.8017 | AJ145: 2.119376527 | AK145: 8.808546339
A146: 2016-03-01 | B146: 157976.0233 | C146: -0.320133487 | D146: 1.874678972 | E146: 179766.7541 | F146: 0.7592053198 | G146: 4.626182457 | H146: 179400.029 | I146: 0.1218344384 | J146: 5.660515773 | K146: 195871.5313 | L146: 0.1770374729 | M146: 5.638737829 | N146: 203581.432 | O146: -0.5063585996 | P146: 4.489950808 | Q146: 312649.2555 | R146: 0.4296961208 | S146: 10.37952554 | T146: 617187.3535 | U146: 0.1799255797 | V146: 13.20309775 | W146: 369281.2658 | X146: 0.05191967492 | Y146: 10.01998573 | Z146: 267294.9978 | AA146: -0.4305929507 | AB146: 6.994817569 | AC146: 168942.5908 | AD146: -0.6104974747 | AE146: 3.37551361 | AF146: 163754.1314 | AG146: 1.122570531 | AH146: -9.379026498 | AI146: 285545.0502 | AJ146: 0.07929671479 | AK146: 8.655257951
A147: 2016-04-01 | B147: 156851.556 | C147: -0.7117961982 | D147: 1.519086482 | E147: 180187.709 | F147: 0.2341672556 | G147: 5.052994814 | H147: 178014.6241 | I147: -0.7722434246 | J147: 5.091357383 | K147: 195192.7245 | L147: -0.3465571388 | M147: 5.030770935 | N147: 204088.5942 | O147: 0.2491200803 | P147: 5.077477037 | Q147: 313999.7922 | R147: 0.4319654218 | S147: 10.4354338 | T147: 614874.4012 | U147: -0.3747569103 | V147: 12.21678204 | W147: 368867.9942 | X147: -0.1119124123 | Y147: 9.638234497 | Z147: 268536.3626 | AA147: 0.4644175235 | AB147: 6.545863484 | AC147: 168046.9252 | AD147: -0.5301597293 | AE147: 3.841384281 | AF147: 163972.3571 | AG147: 0.1332642644 | AH147: -7.699528628 | AI147: 285335.8266 | AJ147: -0.07327165346 | AK147: 8.329711296
A148: 2016-05-01 | B148: 154687.005 | C148: -1.379999705 | D148: 1.80882499 | E148: 178965.2877 | F148: -0.6784154951 | G148: 4.442746846 | H148: 178299.8364 | I148: 0.1602184657 | J148: 4.391874239 | K148: 194910.3066 | L148: -0.1446866872 | M148: 4.286007995 | N148: 204680.4357 | O148: 0.2899924404 | P148: 4.697766805 | Q148: 312278.398 | R148: -0.5482150721 | S148: 9.799333469 | T148: 607469.2371 | U148: -1.204337689 | V148: 10.02861489 | W148: 365390.1713 | X148: -0.9428367385 | Y148: 7.842438037 | Z148: 266544.5525 | AA148: -0.7417282746 | AB148: 4.905855725 | AC148: 166648.1359 | AD148: -0.8323801764 | AE148: 3.291393051 | AF148: 164497.8967 | AG148: 0.3205049961 | AH148: -5.320760953 | AI148: 283266.7473 | AJ148: -0.7251382871 | AK148: 7.030943579
A149: 2016-06-01 | B149: 155434.3879 | C149: 0.4831581845 | D149: 2.690081338 | E149: 179396.544 | F149: 0.2409720716 | G149: 4.394337531 | H149: 178988.4956 | I149: 0.3862366137 | J149: 4.074442929 | K149: 195917.822 | L149: 0.5169123164 | M149: 4.031692578 | N149: 206502.0673 | O149: 0.8899881328 | P149: 4.824351263 | Q149: 314289.2601 | R149: 0.6439325017 | S149: 9.921410723 | T149: 604946.8111 | U149: -0.4152351779 | V149: 8.191137816 | W149: 368273.3212 | X149: 0.7890606154 | Y149: 8.272124351 | Z149: 268021.0484 | AA149: 0.5539396252 | AB149: 5.815701921 | AC149: 167409.7221 | AD149: 0.4570025452 | AE149: 3.998750459 | AF149: 163198.5164 | AG149: -0.7899069763 | AH149: 3.227736892 | AI149: 284335.0217 | AJ149: 0.37712666 | AK149: 6.850654909
A150: 2016-07-01 | B150: 154689.2331 | C150: -0.479401521 | D150: 2.627209285 | E150: 178762.1781 | F150: -0.3536109998 | G150: 3.667109205 | H150: 178865.9398 | I150: -0.06847135731 | J150: 3.434715691 | K150: 197904.803 | L150: 1.014191014 | M150: 5.211626895 | N150: 207586.9962 | O150: 0.5253840423 | P150: 5.095470875 | Q150: 314652.6908 | R150: 0.1156357328 | S150: 9.513665425 | T150: 603223.0891 | U150: -0.2849377808 | V150: 7.190923897 | W150: 370704.5502 | X150: 0.6601697288 | Y150: 8.367517168 | Z150: 269043.1679 | AA150: 0.3813579322 | AB150: 5.312461463 | AC150: 166976.4901 | AD150: -0.2587854483 | AE150: 3.051448172 | AF150: 163538.0393 | AG150: 0.208042874 | AH150: 2.631408029 | AI150: 284847.5371 | AJ150: 0.1802505274 | AK150: 6.50768511
A151: 2016-08-01 | B151: 154074.8972 | C151: -0.3971419638 | D151: 1.347483021 | E151: 179476.1952 | F151: 0.3994228861 | G151: 2.793113574 | H151: 178652.5857 | I151: -0.1192815334 | J151: 2.444110066 | K151: 198816.1222 | L151: 0.4604836503 | M151: 5.489607463 | N151: 207990.6082 | O151: 0.1944302926 | P151: 4.816377956 | Q151: 316458.5371 | R151: 0.5739173274 | S151: 8.395114553 | T151: 604771.0554 | U151: 0.2566158921 | V151: 5.563123447 | W151: 372597.7904 | X151: 0.5107140606 | Y151: 8.287687809 | Z151: 269956.9629 | AA151: 0.3396462275 | AB151: 5.606517232 | AC151: 166473.8148 | AD151: -0.3010455648 | AE151: 2.474891284 | AF151: 164296.1275 | AG151: 0.4635546717 | AH151: 2.625121145 | AI151: 285777.4512 | AJ151: 0.3264603023 | AK151: 5.83704294
A152: 2016-09-01 | B152: 154134.4303 | C152: 0.03863905252 | D152: 1.537918517 | E152: 179365.7421 | F152: -0.06154190071 | G152: 2.576723196 | H152: 179230.1562 | I152: 0.3232925636 | J152: 2.261413789 | K152: 200227.54 | L152: 0.7099111113 | M152: 5.261521252 | N152: 208285.0875 | O152: 0.1415829513 | P152: 4.902470446 | Q152: 319009.3876 | R152: 0.8060615131 | S152: 8.428050285 | T152: 612242.232 | U152: 1.235372705 | V152: 5.79072127 | W152: 373777.7503 | X152: 0.3166845961 | Y152: 7.477154418 | Z152: 270527.6155 | AA152: 0.2113865263 | AB152: 5.459795323 | AC152: 168032.5611 | AD152: 0.9363312045 | AE152: 2.551977844 | AF152: 164420.7182 | AG152: 0.07583303541 | AH152: 2.244660505 | AI152: 287399.9262 | AJ152: 0.5677407313 | AK152: 5.675026624
A153: 2016-10-01 | B153: 156095.4363 | C153: 1.272269913 | D153: 2.274785157 | E153: 182397.1492 | F153: 1.690070267 | G153: 3.744572233 | H153: 181628.7442 | I153: 1.338272552 | J153: 2.757641201 | K153: 201449.9058 | L153: 0.6104883502 | M153: 4.565636623 | N153: 210660.0023 | O153: 1.140223159 | P153: 5.249433649 | Q153: 321715.7652 | R153: 0.84836927 | S153: 8.346982812 | T153: 619625.3747 | U153: 1.205918559 | V153: 5.714137573 | W153: 375373.5118 | X153: 0.4269279215 | Y153: 6.651799943 | Z153: 272624.0657 | AA153: 0.7749486711 | AB153: 5.474173492 | AC153: 170216.2766 | AD153: 1.29957881 | AE153: 3.197766261 | AF153: 165483.8176 | AG153: 0.6465726275 | AH153: 2.511285143 | AI153: 290135.4302 | AJ153: 0.951810973 | AK153: 5.615436339
A154: 2016-11-01 | B154: 157186.7215 | C154: 0.6991140639 | D154: 2.711023711 | E154: 182845.5814 | F154: 0.2458548416 | G154: 4.865874757 | H154: 183028.5395 | I154: 0.7706904132 | J154: 3.63070478 | K154: 202593.6906 | L154: 0.5677763194 | M154: 5.099066847 | N154: 211410.3028 | O154: 0.3561666072 | P154: 5.723540093 | Q154: 323248.8815 | R154: 0.4765437325 | S154: 9.298927623 | T154: 627933.2583 | U154: 1.340791387 | V154: 6.762344891 | W154: 376626.3584 | X154: 0.3337599748 | Y154: 6.559669813 | Z154: 272820.7746 | AA154: 0.07215391455 | AB154: 4.960538681 | AC154: 171447.4121 | AD154: 0.7232771452 | AE154: 3.633007704 | AF154: 165433.3704 | AG154: -0.03048468857 | AH154: 2.031502806 | AI154: 291897.3256 | AJ154: 0.6072665277 | AK154: 6.127642916
A155: 2016-12-01 | B155: 158095.6629 | C155: 0.5782558689 | D155: 2.2887658 | E155: 184203.5448 | F155: 0.742683169 | G155: 5.276292206 | H155: 183645.428 | I155: 0.3370449505 | J155: 3.710004692 | K155: 203564.6857 | L155: 0.4792819731 | M155: 6.066161786 | N155: 213383.924 | O155: 0.9335501426 | P155: 5.554127993 | Q155: 323896.1091 | R155: 0.2002257807 | S155: 8.405907558 | T155: 631219.2757 | U155: 0.5233067932 | V155: 6.295932414 | W155: 380499.9257 | X155: 1.028490774 | Y155: 6.819659894 | Z155: 278212.6761 | AA155: 1.976352965 | AB155: 5.721978843 | AC155: 172537.0514 | AD155: 0.6355531017 | AE155: 3.849802339 | AF155: 165269.7833 | AG155: -0.098883964 | AH155: 1.75726871 | AI155: 294178.5704 | AJ155: 0.7815230273 | AK155: 6.132819082
A156: 2017-01-01 | B156: 158905.0915 | C156: 0.5119865973 | D156: 1.628784619 | E156: 183996.9941 | F156: -0.1121317446 | G156: 4.933397303 | H156: 183911.1228 | I156: 0.1446781222 | J156: 3.174714391 | K156: 205295.2301 | L156: 0.8501201585 | M156: 6.471276827 | N156: 215331.9681 | O156: 0.9129291825 | P156: 6.542900383 | Q156: 326903.2643 | R156: 0.9284320078 | S156: 7.88584252 | T156: 635938.0768 | U156: 0.7475692288 | V156: 5.690391168 | W156: 384885.9899 | X156: 1.152710916 | Y156: 7.180863128 | Z156: 279884.7833 | AA156: 0.6010176401 | AB156: 6.265939038 | AC156: 173204.4339 | AD156: 0.3868053351 | AE156: 3.462268204 | AF156: 165034.9192 | AG156: -0.1421095311 | AH156: 1.426021243 | AI156: 296358.2597 | AJ156: 0.7409408907 | AK156: 6.070544689
A157: 2017-02-01 | B157: 159567.2199 | C157: 0.4166816758 | D157: 0.6838812865 | E157: 185962.7857 | F157: 1.068382448 | G157: 4.232078935 | H157: 183610.9911 | I157: -0.16319383 | J157: 2.471941399 | K157: 206521.2629 | L157: 0.597204713 | M157: 5.623763465 | N157: 216835.3013 | O157: 0.6981467711 | P157: 5.971028407 | Q157: 329368.1627 | R157: 0.7540146341 | S157: 5.800170347 | T157: 635940.6971 | U157: 0.0004120435617 | V157: 3.223909806 | W157: 387987.8327 | X157: 0.8059121 | Y157: 5.120218823 | Z157: 281822.1779 | AA157: 0.6922114674 | AB157: 4.980891445 | AC157: 174965.7529 | AD157: 1.016901765 | AE157: 2.932949338 | AF157: 166042.1472 | AG157: 0.61031205 | AH157: 2.535481662 | AI157: 297973.4773 | AJ157: 0.5450219589 | AK157: 4.43527573
A158: 2017-03-01 | B158: 158921.2193 | C158: -0.4048454246 | D158: 0.5983160971 | E158: 186679.0456 | F158: 0.3851630136 | G158: 3.84514449 | H158: 184890.0186 | I158: 0.6965963392 | J158: 3.060194382 | K158: 207795.1648 | L158: 0.6168381267 | M158: 6.087476521 | N158: 218260.6771 | O158: 0.6573541134 | P158: 7.210502923 | Q158: 332560.4423 | R158: 0.9692131575 | S158: 6.368538037 | T158: 641483.7875 | U158: 0.8716363645 | V158: 3.936638342 | W158: 389022.9906 | X158: 0.2668016374 | Y158: 5.345985995 | Z158: 281673.0856 | AA158: -0.0529029751 | AB158: 5.379108442 | AC158: 174718.0836 | AD158: -0.141553017 | AE158: 3.418612661 | AF158: 166469.0308 | AG158: 0.2570935485 | AH158: 1.657912008 | AI158: 299497.2045 | AJ158: 0.5113633632 | AK158: 4.886148199
A159: 2017-04-01 | B159: 157774.5972 | C159: -0.7215034439 | D159: 0.5884807638 | E159: 186318.9152 | F159: -0.192914186 | G159: 3.402677263 | H159: 185550.7444 | I159: 0.3573615115 | J159: 4.233427642 | K159: 208018.1126 | L159: 0.1072921397 | M159: 6.570628165 | N159: 216941.6438 | O159: -0.6043385167 | P159: 6.297779446 | Q159: 333006.0175 | R159: 0.1339832353 | S159: 6.052942007 | T159: 642778.4181 | U159: 0.2018181309 | V159: 4.538165321 | W159: 388203.674 | X159: -0.2106087714 | Y159: 5.241896854 | Z159: 281495.4576 | AA159: -0.06306173944 | AB159: 4.825825043 | AC159: 172521.4357 | AD159: -1.257252709 | AE159: 2.662655408 | AF159: 168424.3959 | AG159: 1.174611913 | AH159: 2.71511541 | AI159: 299277.4073 | AJ159: -0.07338873067 | AK159: 4.886025311
A160: 2017-05-01 | B160: 157649.8783 | C160: -0.07904882076 | D160: 1.915398961 | E160: 185954.4939 | F160: -0.1955900973 | G160: 3.905341805 | H160: 185796.1172 | I160: 0.1322402964 | J160: 4.204311686 | K160: 207950.8624 | L160: -0.0323290111 | M160: 6.690541945 | N160: 216902.4775 | O160: -0.01805381481 | P160: 5.971279941 | Q160: 334609.6299 | R160: 0.4815565815 | S160: 7.151065219 | T160: 640468.854 | U160: -0.3593095243 | V160: 5.432310791 | W160: 387418.303 | X160: -0.2023090001 | Y160: 6.028660186 | Z160: 282889.3818 | AA160: 0.4951853031 | AB160: 6.132119058 | AC160: 171037.0668 | AD160: -0.8603968103 | AE160: 2.633651364 | AF160: 169117.3447 | AG160: 0.4114302133 | AH160: 2.808210976 | AI160: 299125.157 | AJ160: -0.05087263041 | AK160: 5.59840147
A161: 2017-06-01 | B161: 157447.2256 | C161: -0.1285460351 | D161: 1.29497579 | E161: 185624.0936 | F161: -0.1776780497 | G161: 3.471387674 | H161: 183963.0145 | I161: -0.9866205793 | J161: 2.779239448 | K161: 209250.4707 | L161: 0.6249592924 | M161: 6.805225038 | N161: 217020.4755 | O161: 0.05440138098 | P161: 5.093609131 | Q161: 335236.8034 | R161: 0.1874343708 | S161: 6.665052204 | T161: 632242.6026 | U161: -1.284410845 | V161: 4.512097753 | W161: 385964.0929 | X161: -0.3753591712 | Y161: 4.80370711 | Z161: 281796.7567 | AA161: -0.3862375497 | AB161: 5.139786025 | AC161: 171059.875 | AD161: 0.01333520524 | AE161: 2.180370876 | AF161: 170320.2323 | AG161: 0.7112739174 | AH161: 4.363836189 | AI161: 297854.7065 | AJ161: -0.424722066 | AK161: 4.754843316
A162: 2017-07-01 | B162: 157393.7784 | C162: -0.03394608818 | D162: 1.748373358 | E162: 187271.2808 | F162: 0.8873779157 | G162: 4.760012846 | H162: 183944.2005 | I162: -0.01022706649 | J162: 2.839143505 | K162: 209099.4701 | L162: -0.07216260708 | M162: 5.656591942 | N162: 217178.3011 | O162: 0.07272383571 | P162: 4.620378461 | Q162: 334280.3035 | R162: -0.2853206716 | S162: 6.237865826 | T162: 627325.7332 | U162: -0.7776871362 | V162: 3.995643492 | W162: 385992.6839 | X162: 0.007407683097 | Y162: 4.124075013 | Z162: 284036.7324 | AA162: 0.7948905081 | AB162: 5.572921494 | AC162: 172863.1042 | AD162: 1.05415091 | AE162: 3.525414895 | AF162: 170540.5301 | AG162: 0.1293433068 | AH162: 4.28187282 | AI162: 297778.8047 | AJ162: -0.02548281859 | AK162: 4.539715441
A163: 2017-08-01 | B163: 156602.1817 | C163: -0.502940323 | D163: 1.640296028 | E163: 188636.5776 | F163: 0.7290476478 | G163: 5.103954009 | H163: 186077.7472 | I163: 1.159888013 | J163: 4.156201517 | K163: 210006.1848 | L163: 0.4336284115 | M163: 5.628347673 | N163: 218443.309 | O163: 0.5824743824 | P163: 5.025563853 | Q163: 334684.7291 | R163: 0.1209839779 | S163: 5.759424957 | T163: 624711.4665 | U163: -0.4167319383 | V163: 3.297183442 | W163: 386479.7802 | X163: 0.1261931445 | Y163: 3.725730566 | Z163: 283689.8535 | AA163: -0.1221246727 | AB163: 5.087066652 | AC163: 174371.0033 | AD163: 0.8723082745 | AE163: 4.743802227 | AF163: 171053.7877 | AG163: 0.300959293 | AH163: 4.113097679 | AI163: 298202.8438 | AJ163: 0.142400715 | AK163: 4.347926188
A164: 2017-09-01 | B164: 157570.5105 | C164: 0.6183367756 | D164: 2.229274934 | E164: 189371.2532 | F164: 0.3894661324 | G164: 5.57827319 | H164: 188527.3805 | I164: 1.316456861 | J164: 5.187310226 | K164: 210435.2259 | L164: 0.2042992458 | M164: 5.098042906 | N164: 219860.5356 | O164: 0.6487845919 | P164: 5.557502103 | Q164: 334331.7618 | R164: -0.1054626228 | S164: 4.803110754 | T164: 634738.939 | U164: 1.605136609 | V164: 3.674478145 | W164: 386222.9433 | X164: -0.06645545852 | Y164: 3.329570324 | Z164: 286195.3897 | AA164: 0.8831955524 | AB164: 5.791561843 | AC164: 176732.105 | AD164: 1.354067852 | AE164: 5.177296532 | AF164: 171324.6847 | AG164: 0.1583695064 | AH164: 4.198963841 | AI164: 300117.9178 | AJ164: 0.6422051224 | AK164: 4.42518958
A165: 2017-10-01 | B165: 158153.6806 | C165: 0.3701010208 | D165: 1.318580705 | E165: 190380.0678 | F165: 0.5327179024 | G165: 4.376668512 | H165: 188774.5304 | I165: 0.1310949701 | J165: 3.934281537 | K165: 211264.1368 | L165: 0.3939031391 | M165: 4.871797291 | N165: 220807.9842 | O165: 0.4309316246 | P165: 4.817232402 | Q165: 336885.6162 | R165: 0.7638683097 | S165: 4.715296111 | T165: 642262.5789 | U165: 1.185312497 | V165: 3.653369471 | W165: 385197.1445 | X165: -0.2655975938 | Y165: 2.617028724 | Z165: 287521.0875 | AA165: 0.4632142676 | AB165: 5.464309189 | AC165: 178207.2944 | AD165: 0.8347036901 | AE165: 4.694626131 | AF165: 170628.0155 | AG165: -0.4066368084 | AH165: 3.108580641 | AI165: 301592.8336 | AJ165: 0.4914454477 | AK165: 3.948984579
A166: 2017-11-01 | B166: 158992.6349 | C166: 0.5304677329 | D166: 1.148896919 | E166: 191093.9097 | F166: 0.3749562002 | G166: 4.511089728 | H166: 188711.6192 | I166: -0.03332609781 | J166: 3.105023763 | K166: 212123.0292 | L166: 0.4065490909 | M166: 4.703669986 | N166: 221386.8862 | O166: 0.2621744321 | P166: 4.719062056 | Q166: 336279.9334 | R166: -0.1797888513 | S166: 4.031275161 | T166: 651903.8279 | U166: 1.5011382 | V166: 3.817375369 | W166: 384302.8513 | X166: -0.2321650528 | Y166: 2.038225091 | Z166: 289473.323 | AA166: 0.6789886309 | AB166: 6.103841782 | AC166: 178706.4663 | AD166: 0.2801073987 | AE166: 4.233982949 | AF166: 170701.545 | AG166: 0.04309343189 | AH166: 3.184469131 | AI166: 302886.1642 | AJ166: 0.428833315 | AK166: 3.764624623
A167: 2017-12-01 | B167: 158698.6228 | C167: -0.1849217945 | D167: 0.3813892893 | E167: 193292.0444 | F167: 1.150290331 | G167: 4.933943948 | H167: 189229.4143 | I167: 0.274384339 | J167: 3.040634545 | K167: 212652.6378 | L167: 0.2496704531 | M167: 4.464405051 | N167: 221926.076 | O167: 0.2435509221 | P167: 4.003184421 | Q167: 336972.7442 | R167: 0.2060220496 | S167: 4.037293045 | T167: 645402.4738 | U167: -0.9972873004 | V167: 2.24695262 | W167: 387470.4491 | X167: 0.8242452044 | Y167: 1.831938178 | Z167: 293226.2824 | AA167: 1.296478486 | AB167: 5.396449412 | AC167: 178487.5809 | AD167: -0.1224831909 | AE167: 3.44884152 | AF167: 172008.6875 | AG167: 0.765747352 | AH167: 4.077517446 | AI167: 303638.3163 | AJ167: 0.2483283326 | AK167: 3.215647532
A168: 2018-01-01 | B168: 161966.9302 | C168: 2.059442841 | D168: 1.92683489 | E168: 193385.6613 | F168: 0.04843285358 | G168: 5.102619853 | H168: 190781.4561 | I168: 0.8201905604 | J168: 3.735681268 | K168: 216862.4976 | L168: 1.979688497 | M168: 5.634455065 | N168: 224752.0073 | O168: 1.27336601 | P168: 4.3746589 | Q168: 338804.3952 | R168: 0.5435605784 | S168: 3.640566563 | T168: 639866.6881 | U168: -0.8577261327 | V168: 0.6177663278 | W168: 391905.8312 | X168: 1.144702019 | Y168: 1.823875502 | Z168: 292651.53 | AA168: -0.1960098541 | AB168: 4.56142935 | AC168: 179930.9136 | AD168: 0.8086460269 | AE168: 3.883549355 | AF168: 173724.5645 | AG168: 0.9975524976 | AH168: 5.265337398 | AI168: 304960.3345 | AJ168: 0.4353924088 | AK168: 2.902593235
A169: 2018-02-01 | B169: 164286.566 | C169: 1.432166285 | D169: 2.957591238 | E169: 194049.1204 | F169: 0.3430756741 | G169: 4.348361793 | H169: 191204.2523 | I169: 0.2216128454 | J169: 4.135515599 | K169: 218978.8064 | L169: 0.9758758889 | M169: 6.032087618 | N169: 226786.1609 | O169: 0.9050658235 | P169: 4.589132614 | Q169: 342315.033 | R169: 1.03618425 | S169: 3.930820197 | T169: 630897.3341 | U169: -1.401753553 | V169: -0.7930555627 | W169: 395462.1591 | X169: 0.9074444951 | Y169: 1.926433197 | Z169: 293133.4591 | AA169: 0.1646767972 | AB169: 4.013623533 | AC169: 183525.9802 | AD169: 1.998026086 | AE169: 4.892515926 | AF169: 177265.2889 | AG169: 2.038125349 | AH169: 6.759212584 | AI169: 305858.1427 | AJ169: 0.2944016239 | AK169: 2.646096375
A170: 2018-03-01 | B170: 165972.8079 | C170: 1.026402756 | D170: 4.437159856 | E170: 193645.2528 | F170: -0.2081264898 | G170: 3.731649264 | H170: 190784.8943 | I170: -0.21932463 | J170: 3.188314742 | K170: 219545.136 | L170: 0.258623021 | M170: 5.654593192 | N170: 226479.5799 | O170: -0.1351850196 | P170: 3.765636097 | Q170: 343962.9719 | R170: 0.4814100156 | S170: 3.428708919 | T170: 626894.1308 | U170: -0.6345253154 | V170: -2.274360947 | W170: 395352.8863 | X170: -0.02763167381 | Y170: 1.62712638 | Z170: 290683.5921 | AA170: -0.8357514127 | AB170: 3.198923506 | AC170: 181373.8917 | AD170: -1.172634269 | AE170: 3.809455754 | AF170: 178528.6339 | AG170: 0.7126860725 | AH170: 7.244352313 | AI170: 305226.8003 | AJ170: -0.2064167401 | AK170: 1.913071539
A171: 2018-04-01 | B171: 163414.2876 | C171: -1.541529783 | D171: 3.574523688 | E171: 192853.3696 | F171: -0.408935017 | G171: 3.507134171 | H171: 190378.2783 | I171: -0.2131279635 | J171: 2.601732486 | K171: 218338.3704 | L171: -0.5496662756 | M171: 4.961230375 | N171: 226990.6356 | O171: 0.2256519736 | P171: 4.63211749 | Q171: 343364.6777 | R171: -0.1739414294 | S171: 3.110652556 | T171: 626154.2995 | U171: -0.11801535 | V171: -2.586290729 | W171: 394927.0994 | X171: -0.1076979376 | Y171: 1.731932434 | Z171: 290545.8361 | AA171: -0.04739037285 | AB171: 3.215106393 | AC171: 178816.6216 | AD171: -1.409943871 | AE171: 3.648929671 | AF171: 179064.4499 | AG171: 0.300128902 | AH171: 6.317406685 | AI171: 304546.4333 | AJ171: -0.2229054001 | AK171: 1.760582599
A172: 2018-05-01 | B172: 161667.6348 | C172: -1.068849491 | D172: 2.548531323 | E172: 191051.3664 | F172: -0.9343903143 | G172: 2.74092461 | H172: 189700.0272 | I172: -0.356265008 | J172: 2.101179513 | K172: 217826.0351 | L172: -0.2346519687 | M172: 4.748801033 | N172: 226239.6833 | O172: -0.3308296542 | P172: 4.304794412 | Q172: 342214.8843 | R172: -0.3348607306 | S172: 2.272873717 | T172: 629978.2264 | U172: 0.6107004169 | V172: -1.637960625 | W172: 392213.6527 | X172: -0.6870753278 | Y172: 1.237770547 | Z172: 291143.1912 | AA172: 0.2055975368 | AB172: 2.917680879 | AC172: 174725.9944 | AD172: -2.287610176 | AE172: 2.156800057 | AF172: 178012.2932 | AG172: -0.587585484 | AH172: 5.259631112 | AI172: 303728.0509 | AJ172: -0.268721686 | AK172: 1.538785297
A173: 2018-06-01 | B173: 161431.0186 | C173: -0.146359673 | D173: 2.530240186 | E173: 191061.388 | F173: 0.005245527311 | G173: 2.929196502 | H173: 190697.1923 | I173: 0.5256536405 | J173: 3.660615041 | K173: 218849.5401 | L173: 0.4698726291 | M173: 4.587358562 | N173: 227523.2186 | O173: 0.5673342903 | P173: 4.839517132 | Q173: 343156.5944 | R173: 0.2751809428 | S173: 2.362446767 | T173: 629751.0741 | U173: -0.03605715656 | V173: -0.3940779145 | W173: 391930.3732 | X173: -0.07222580262 | Y173: 1.545812274 | Z173: 290077.0157 | AA173: -0.3662031366 | AB173: 2.93837978 | AC173: 177136.9348 | AD173: 1.379840746 | AE173: 3.552592259 | AF173: 177213.0578 | AG173: -0.4489776389 | AH173: 4.046979875 | AI173: 304057.8518 | AJ173: 0.1085842567 | AK173: 2.082607793
A174: 2018-07-01 | B174: 159937.4253 | C174: -0.925220783 | D174: 1.616103787 | E174: 191599.7157 | F174: 0.2817564117 | G174: 2.311318071 | H174: 191678.0139 | I174: 0.5143345741 | J174: 4.20443448 | K174: 217688.2002 | L174: -0.5306567599 | M174: 4.10748535 | N174: 226176.0207 | O174: -0.5921144539 | P174: 4.143010406 | Q174: 341218.1204 | R174: -0.5648948755 | S174: 2.075448907 | T174: 623356.0845 | U174: -1.015478963 | V174: -0.6327890827 | W174: 389608.4664 | X174: -0.5924283886 | Y174: 0.9367489805 | Z174: 291247.8582 | AA174: 0.4036316269 | AB174: 2.538800445 | AC174: 179443.7427 | AD174: 1.302273777 | AE174: 3.806849662 | AF174: 176954.8268 | AG174: -0.1457178113 | AH174: 3.761156782 | AI174: 302880.7246 | AJ174: -0.3871392202 | AK174: 1.713325403
A175: 2018-08-01 | B175: 159983.4863 | C175: 0.02879944697 | D175: 2.159168314 | E175: 193350.5582 | F175: 0.9138022162 | G175: 2.498974798 | H175: 192497.6776 | I175: 0.4276253173 | J175: 3.450133328 | K175: 219163.1591 | L175: 0.6775557252 | M175: 4.360335512 | N175: 228027.4639 | O175: 0.8185850878 | P175: 4.387479234 | Q175: 341204.1909 | R175: -0.004082282704 | S175: 1.947941224 | T175: 620518.077 | U175: -0.4552786992 | V175: -0.6712522121 | W175: 390702.118 | X175: 0.2807052901 | Y175: 1.092511955 | Z175: 292660.0933 | AA175: 0.4848911285 | AB175: 3.161988232 | AC175: 181627.1826 | AD175: 1.216782423 | AE175: 4.16134513 | AF175: 177062.042 | AG175: 0.06058897532 | AH175: 3.512494133 | AI175: 303633.9596 | AJ175: 0.2486903169 | AK175: 1.82128236
A176: 2018-09-01 | B176: 159740.4537 | C176: -0.1519110671 | D176: 1.377125185 | E176: 193248.7072 | F176: -0.05267685604 | G176: 2.047540949 | H176: 191972.7159 | I176: -0.2727106578 | J176: 1.827498696 | K176: 220588.3792 | L176: 0.6503009833 | M176: 4.824835452 | N176: 229568.4959 | O176: 0.67580983 | P176: 4.41550835 | Q176: 340208.7284 | R176: -0.291749786 | S176: 1.757824795 | T176: 626117.6039 | U176: 0.9023954542 | V176: -1.358248965 | W176: 390512.7888 | X176: -0.04845870769 | Y176: 1.110717421 | Z176: 293974.5583 | AA176: 0.449143922 | AB176: 2.718132058 | AC176: 182581.1411 | AD176: 0.5252289121 | AE176: 3.309549236 | AF176: 178323.8666 | AG176: 0.7126454833 | AH176: 4.085331821 | AI176: 304466.6702 | AJ176: 0.2742481709 | AK176: 1.449014596
A177: 2018-10-01 | B177: 161408.0307 | C177: 1.043929031 | D177: 2.057713784 | E177: 194982.2234 | F177: 0.8970389529 | G177: 2.417351575 | H177: 191604.5494 | I177: -0.1917806382 | J177: 1.499152985 | K177: 222817.0377 | L177: 1.010324531 | M177: 5.468462893 | N177: 230619.7338 | O177: 0.4579190825 | P177: 4.44356653 | Q177: 342302.3461 | R177: 0.6153921186 | S177: 1.607884002 | T177: 635338.7616 | U177: 1.472751709 | V177: -1.078035301 | W177: 391209.6011 | X177: 0.1784351965 | Y177: 1.560877776 | Z177: 295071.6753 | AA177: 0.3732013316 | AB177: 2.626098763 | AC177: 184226.3452 | AD177: 0.9010810807 | AE177: 3.377555766 | AF177: 179237.9869 | AG177: 0.5126180533 | AH177: 5.04604792 | AI177: 306560.1438 | AJ177: 0.6875871179 | AK177: 1.647025274
A178: 2018-11-01 | B178: 160824.8619 | C178: -0.3613009777 | D178: 1.152397437 | E178: 194917.9805 | F178: -0.03294803563 | G178: 2.001147443 | H178: 191625.5765 | I178: 0.01097421066 | J178: 1.544132413 | K178: 222203.7305 | L178: -0.2752514851 | M178: 4.7522899 | N178: 230117.0061 | O178: -0.217989886 | P178: 3.94337716 | Q178: 339792.0897 | R178: -0.7333448017 | S178: 1.044414459 | T178: 635230.8059 | U178: -0.01699183447 | V178: -2.557589209 | W178: 389236.8917 | X178: -0.5042589478 | Y178: 1.283893768 | Z178: 293712.822 | AA178: -0.4605163324 | AB178: 1.464556017 | AC178: 184445.4065 | AD178: 0.118908759 | AE178: 3.211378028 | AF178: 179304.1464 | AG178: 0.03691153065 | AH178: 5.039556874 | AI178: 305650.2819 | AJ178: -0.2967971944 | AK178: 0.9125929367
A179: 2018-12-01 | B179: 160396.6488 | C179: -0.2662605231 | D179: 1.069968935 | E179: 196313.4064 | F179: 0.7159040995 | G179: 1.563107236 | H179: 193871.2548 | I179: 1.171909522 | J179: 2.45302272 | K179: 221893.9135 | L179: -0.1394292459 | M179: 4.345714155 | N179: 230512.632 | O179: 0.1719237772 | P179: 3.869106373 | Q179: 340036.7698 | R179: 0.07200879573 | S179: 0.9092799582 | T179: 634221.0527 | U179: -0.1589584706 | V179: -1.732472604 | W179: 389299.3825 | X179: 0.01605470213 | Y179: 0.4720187983 | Z179: 296009.192 | AA179: 0.7818419257 | AB179: 0.9490655386 | AC179: 184770.5665 | AD179: 0.1762906752 | AE179: 3.520124816 | AF179: 178254.521 | AG179: -0.5853882621 | AH179: 3.631115117 | AI179: 306235.9184 | AJ179: 0.1916034664 | AK179: 0.8554922008
A180: 2019-01-01 | B180: 161356.5586 | C180: 0.5984600134 | D180: -0.3768495548 | E180: 195742.3695 | F180: -0.2908802263 | G180: 1.218657156 | H180: 194984.8513 | I180: 0.5744000063 | J180: 2.203251468 | K180: 221976.9988 | L180: 0.03744369141 | M180: 2.358407424 | N180: 232516.9603 | O180: 0.8695091109 | P180: 3.454898207 | Q180: 340984.3794 | R180: 0.2786785458 | S180: 0.6434344378 | T180: 633000.5939 | U180: -0.1924342965 | V180: -1.073050733 | W180: 391431.4868 | X180: 0.5476772998 | Y180: -0.1210352877 | Z180: 294723.0849 | AA180: -0.434482152 | AB180: 0.7078571902 | AC180: 184808.0725 | AD180: 0.02029868804 | AE180: 2.710573074 | AF180: 177982.8896 | AG180: -0.152384007 | AH180: 2.451193433 | AI180: 306703.4229 | AJ180: 0.15266154 | AK180: 0.5715787292
A181: 2019-02-01 | B181: 163304.4321 | C181: 1.207185836 | D181: -0.5978175364 | E181: 197164.8518 | F181: 0.7267115209 | G181: 1.605640563 | H181: 195632.8857 | I181: 0.3323511204 | J181: 2.316179323 | K181: 224412.9088 | L181: 1.097370435 | M181: 2.481565438 | N181: 233196.424 | O181: 0.2922211446 | P181: 2.826567178 | Q181: 343792.8735 | R181: 0.8236430315 | S181: 0.4317194141 | T181: 633552.4833 | U181: 0.08718624447 | V181: 0.4208528318 | W181: 393641.5497 | X181: 0.5646103901 | Y181: -0.4603751218 | Z181: 294778.5319 | AA181: 0.0188132699 | AB181: 0.5612026635 | AC181: 185985.4692 | AD181: 0.6370916136 | AE181: 1.340131263 | AF181: 177443.1606 | AG181: -0.3032476672 | AH181: 0.1003421312 | AI181: 308132.6523 | AJ181: 0.4659972113 | AK181: 0.7436485441
A182: 2019-03-01 | B182: 164954.4896 | C182: 1.010418078 | D182: -0.6135452261 | E182: 197196.918 | F182: 0.01626365334 | G182: 1.834109109 | H182: 194833.3552 | I182: -0.408689223 | J182: 2.12200283 | K182: 225407.1784 | L182: 0.4430536591 | M182: 2.670085287 | N182: 231856.566 | O182: -0.5745619905 | P182: 2.374159334 | Q182: 342159.3943 | R182: -0.4751346679 | S182: -0.5243522338 | T182: 631898.8953 | U182: -0.2610025313 | V182: 0.798342867 | W182: 392509.1796 | X182: -0.2876652744 | Y182: -0.719283133 | Z182: 293396.4325 | AA182: -0.4688602852 | AB182: 0.9332622873 | AC182: 185579.5652 | AD182: -0.2182450178 | AE182: 2.318786632 | AF182: 179209.9358 | AG182: 0.9956851468 | AH182: 0.3816205408 | AI182: 307368.8634 | AJ182: -0.2478766505 | AK182: 0.7017939227
A183: 2019-04-01 | B183: 163304.7695 | C183: -1.000106192 | D183: -0.06701864454 | E183: 197661.8316 | F183: 0.2357610855 | G183: 2.493325407 | H183: 194419.0488 | I183: -0.2126465102 | J183: 2.122495549 | K183: 225592.2941 | L183: 0.08212501279 | M183: 3.322331117 | N183: 230737.1403 | O183: -0.4828095687 | P183: 1.650510713 | Q183: 341176.2642 | R183: -0.2873310216 | S183: -0.6373438043 | T183: 633390.9713 | U183: 0.2361257518 | V183: 1.155733004 | W183: 389348.7383 | X183: -0.8051891441 | Y183: -1.412503987 | Z183: 292951.886 | AA183: -0.1515173197 | AB183: 0.8281137326 | AC183: 185380.8413 | AD183: -0.1070828882 | AE183: 3.670922538 | AF183: 180593.6959 | AG183: 0.7721447433 | AH183: 0.8540198845 | AI183: 306672.6799 | AJ183: -0.2264977305 | AK183: 0.6981682998
A184: 2019-05-01 | B184: 163524.558 | C184: 0.1345878883 | D184: 1.148605399 | E184: 196427.5055 | F184: -0.624463567 | G184: 2.813975763 | H184: 193903.9748 | I184: -0.2649298129 | J184: 2.21610282 | K184: 224078.7377 | L184: -0.6709255632 | M184: 2.870502845 | N184: 230284.4654 | O184: -0.1961864231 | P184: 1.78783054 | Q184: 341489.623 | R184: 0.09184658133 | S184: -0.2119315464 | T184: 639298.1695 | U184: 0.9326306231 | V184: 1.479407185 | W184: 387899.6026 | X184: -0.37219479 | Y184: -1.099923486 | Z184: 294034.8904 | AA184: 0.3696867677 | AB184: 0.9932223497 | AC184: 183888.3753 | AD184: -0.8050810215 | AE184: 5.243856794 | AF184: 181802.8366 | AG184: 0.6695364929 | AH184: 2.129371715 | AI184: 306763.6606 | AJ184: 0.02966704525 | AK184: 0.9994498956
A185: 2019-06-01 | B185: 161732.7599 | C185: -1.095736384 | D185: 0.1869165709 | E185: 195539.1731 | F185: -0.4522444043 | G185: 2.343636847 | H185: 194011.6862 | I185: 0.05554885202 | J185: 1.738092704 | K185: 222545.5259 | L185: -0.6842290495 | M185: 1.688825026 | N185: 229988.9911 | O185: -0.1283084032 | P185: 1.08374545 | Q185: 342817.4627 | R185: 0.3888374949 | S185: -0.09882711024 | T185: 638237.1358 | U185: -0.1659685168 | V185: 1.347526354 | W185: 388987.7818 | X185: 0.28053114 | Y185: -0.750794439 | Z185: 292735.3473 | AA185: -0.4419690276 | AB185: 0.9164226921 | AC185: 184394.5108 | AD185: 0.2752406179 | AE185: 4.097155666 | AF185: 182064.4933 | AG185: 0.1439233044 | AH185: 2.737628661 | AI185: 306525.5032 | AJ185: -0.07763546317 | AK185: 0.8115730076
A186: 2019-07-01 | B186: 162418.3286 | C186: 0.4238898404 | D186: 1.551171274 | E186: 195918.8062 | F186: 0.1941468448 | G186: 2.254225951 | H186: 194075.6102 | I186: 0.03294848597 | J186: 1.250845759 | K186: 222091.1147 | L186: -0.2041879669 | M186: 2.02257839 | N186: 229620.2183 | O186: -0.1603436464 | P186: 1.522795231 | Q186: 341421.5925 | R186: -0.4071759337 | S186: 0.05963108469 | T186: 631173.459 | U186: -1.106748009 | V186: 1.25407849 | W186: 388824.6706 | X186: -0.04193220519 | Y186: -0.2011752502 | Z186: 294365.814 | AA186: 0.5569763817 | AB186: 1.070550624 | AC186: 185781.0884 | AD186: 0.7519625353 | AE186: 3.531661598 | AF186: 181868.5356 | AG186: -0.1076309432 | AH186: 2.776815308 | AI186: 305855.9046 | AJ186: -0.2184479538 | AK186: 0.9822942558
A187: 2019-08-01 | B187: 162755.1148 | C187: 0.2073572258 | D187: 1.732446583 | E187: 197696.4929 | F187: 0.9073588636 | G187: 2.247697012 | H187: 195675.119 | I187: 0.8241678822 | J187: 1.650638843 | K187: 222406.1662 | L187: 0.1418568648 | M187: 1.47972275 | N187: 230362.6895 | O187: 0.3233474827 | P187: 1.024098429 | Q187: 338743.965 | R187: -0.7842583955 | S187: -0.7210421249 | T187: 625941.4361 | U187: -0.82893583 | V187: 0.8740050118 | W187: 388418.5556 | X187: -0.1044468206 | Y187: -0.5844765831 | Z187: 295711.7037 | AA187: 0.4572167123 | AB187: 1.042714912 | AC187: 186375.0206 | AD187: 0.3196946372 | AE187: 2.614056959 | AF187: 181334.9684 | AG187: -0.2933806715 | AH187: 2.413236867 | AI187: 305593.7631 | AJ187: -0.08570750554 | AK187: 0.6454493634
A188: 2019-09-01 | B188: 164129.3903 | C188: 0.8443823818 | D188: 2.747542327 | E188: 199385.6357 | F188: 0.8544121247 | G188: 3.175663429 | H188: 197641.0513 | I188: 1.004692003 | J188: 2.952677607 | K188: 224751.8438 | L188: 1.054681937 | M188: 1.887436057 | N188: 232890.9597 | O188: 1.097517201 | P188: 1.4472647 | Q188: 338857.729 | R188: 0.03358407532 | S188: -0.3971089835 | T188: 632128.197 | U188: 0.9883929287 | V188: 0.9599782896 | W188: 387784.295 | X188: -0.1632930936 | Y188: -0.6986951377 | Z188: 296800.2677 | AA188: 0.3681166548 | AB188: 0.9612088409 | AC188: 188094.4712 | AD188: 0.9225756717 | AE188: 3.019660243 | AF188: 181532.132 | AG188: 0.1087289299 | AH188: 1.799122832 | AI188: 307260.3834 | AJ188: 0.5453711925 | AK188: 0.9175760443
A189: 2019-10-01 | B189: 165538.1901 | C189: 0.8583470351 | D189: 2.558831395 | E189: 200057.3817 | F189: 0.3369079142 | G189: 2.602882581 | H189: 199377.4671 | I189: 0.8785704321 | J189: 4.056750091 | K189: 225736.6678 | L189: 0.4381828339 | M189: 1.310326233 | N189: 234489.0312 | O189: 0.6861887213 | P189: 1.67778242 | Q189: 339800.345 | R189: 0.2781745633 | S189: -0.7309330904 | T189: 640484.5036 | U189: 1.321932271 | V189: 0.8099209899 | W189: 389504.0988 | X189: 0.4434949808 | Y189: -0.4359561321 | Z189: 298468.7354 | AA189: 0.5621516648 | AB189: 1.151266085 | AC189: 189592.9562 | AD189: 0.7966661515 | AE189: 2.913052956 | AF189: 181443.2486 | AG189: -0.04896291146 | AH189: 1.230353948 | AI189: 309356.1787 | AJ189: 0.6820909548 | AK189: 0.912067327
A190: 2019-11-01 | B190: 164992.4144 | C190: -0.3296977602 | D190: 2.591360815 | E190: 200136.0563 | F190: 0.03932604883 | G190: 2.677062315 | H190: 200250.9437 | I190: 0.4381019798 | J190: 4.501156596 | K190: 226186.1766 | L190: 0.1991296983 | M190: 1.79224986 | N190: 233406.5546 | O190: -0.4616320874 | P190: 1.429511226 | Q190: 340566.5098 | R190: 0.2254749937 | S190: 0.2279099998 | T190: 647443.6011 | U190: 1.086536441 | V190: 1.922576033 | W190: 391302.8474 | X190: 0.4618047734 | Y190: 0.530770782 | Z190: 297020.3731 | AA190: -0.485264323 | AB190: 1.126117365 | AC190: 191468.2171 | AD190: 0.9890984236 | AE190: 3.807528097 | AF190: 181875.2366 | AG190: 0.2380843663 | AH190: 1.43392678 | AI190: 310430.712 | AJ190: 0.3473450026 | AK190: 1.56401951
A191: 2019-12-01 | B191: 164848.2404 | C191: -0.08738214544 | D191: 2.775364506 | E191: 201154.0849 | F191: 0.5086682202 | G191: 2.465791102 | H191: 200694.3867 | I191: 0.2214436317 | J191: 3.519413884 | K191: 226171.8563 | L191: -0.006331210221 | M191: 1.927922512 | N191: 234139.5363 | O191: 0.3140364908 | P191: 1.573408064 | Q191: 339349.6285 | R191: -0.3573109057 | S191: -0.2020785347 | T191: 650576.5844 | U191: 0.4839005709 | V191: 2.578837712 | W191: 393360.7711 | X191: 0.5259158576 | Y191: 1.043255854 | Z191: 298778.1107 | AA191: 0.591790247 | AB191: 0.9354164614 | AC191: 191919.4803 | AD191: 0.2356856883 | AE191: 3.869076089 | AF191: 182151.632 | AG191: 0.1519698137 | AH191: 2.186262113 | AI191: 311424.8641 | AJ191: 0.3202492914 | AK191: 1.694427515
A192: 2020-01-01 | B192: 164985.5895 | C192: 0.0833184983 | D192: 2.249075565 | E192: 201808.7636 | F192: 0.3254613027 | G192: 3.099172707 | H192: 200799.2527 | I192: 0.05225158814 | J192: 2.981975946 | K192: 227331.0824 | L192: 0.5125421637 | M192: 2.411999259 | N192: 235848.7481 | O192: 0.7299970955 | P192: 1.432922491 | Q192: 341930.4347 | R192: 0.7605153904 | S192: 0.2774482827 | T192: 656726.5683 | U192: 0.9453128274 | V192: 3.748175695 | W192: 395740.0086 | X192: 0.6048486961 | Y192: 1.100709036 | Z192: 296612.9483 | AA192: -0.7246723599 | AB192: 0.6412335945 | AC192: 192120.5994 | AD192: 0.1047934751 | AE192: 3.956822232 | AF192: 182675.5286 | AG192: 0.2876156119 | AH192: 2.636567471 | AI192: 312901.3972 | AJ192: 0.4741217629 | AK192: 2.020836347
A193: 2020-02-01 | B193: 167319.447 | C193: 1.414582613 | D193: 2.458607413 | E193: 203873.1786 | F193: 1.022956066 | G193: 3.402394832 | H193: 202284.2066 | I193: 0.7395216186 | J193: 3.399899197 | K193: 229835.1013 | L193: 1.101485498 | M193: 2.416167832 | N193: 238709.3297 | O193: 1.212888171 | P193: 2.364060979 | Q193: 344448.5252 | R193: 0.736433585 | S193: 0.1907112783 | T193: 657613.2567 | U193: 0.1350163745 | V193: 3.797755356 | W193: 399514.8706 | X193: 0.9538742342 | Y193: 1.492048002 | Z193: 299524.608 | AA193: 0.981636076 | AB193: 1.610048078 | AC193: 194398.1272 | AD193: 1.185467783 | AE193: 4.523287767 | AF193: 183138.9018 | AG193: 0.2536591841 | AH193: 3.209896153 | AI193: 315359.4058 | AJ193: 0.7855537471 | AK193: 2.345338427
A194: 2020-03-01 | B194: 165911.3556 | C194: -0.8415587346 | D194: 0.5800787548 | E194: 202188.8277 | F194: -0.8261758178 | G194: 2.531433894 | H194: 200163.2469 | I194: -1.048504862 | J194: 2.735615617 | K194: 229769.2619 | L194: -0.02864636719 | M194: 1.93520168 | N194: 235314.3873 | O194: -1.422207685 | P194: 1.491362228 | Q194: 345611.6243 | R194: 0.3376699151 | S194: 1.008953725 | T194: 658133.9224 | U194: 0.07917506584 | V194: 4.151776069 | W194: 403489.2497 | X194: 0.9948013111 | Y194: 2.797404662 | Z194: 300226.1248 | AA194: 0.2342100565 | AB194: 2.32780346 | AC194: 192189.0829 | AD194: -1.136350638 | AE194: 3.561554653 | AF194: 183029.8374 | AG194: -0.05955283387 | AH194: 2.131523327 | AI194: 315400.509 | AJ194: 0.01303376989 | AK194: 2.613031629
A195: 2020-04-01 | B195: 164373.1217 | C195: -0.9271420164 | D195: 0.6542075472 | E195: 199907.5754 | F195: -1.128278079 | G195: 1.136154505 | H195: 197684.3124 | I195: -1.238456336 | J195: 1.679497779 | K195: 227687.8221 | L195: -0.9058825924 | M195: 0.9289005599 | N195: 232586.8697 | O195: -1.15909513 | P195: 0.8016608548 | Q195: 341646.7213 | R195: -1.147213423 | S195: 0.1378926789 | T195: 650527.5711 | U195: -1.155745222 | V195: 2.705532682 | W195: 401170.2338 | X195: -0.5747404463 | Y195: 3.036222881 | Z195: 298684.9225 | AA195: -0.5133471634 | AB195: 1.956989081 | AC195: 190787.088 | AD195: -0.7294872405 | AE195: 2.916292064 | AF195: 183036.4292 | AG195: 0.003601463213 | AH195: 1.352612685 | AI195: 312475.7293 | AJ195: -0.9273224564 | AK195: 1.892261604
A196: 2020-05-01 | B196: 161178.5468 | C196: -1.943489837 | D196: -1.434653765 | E196: 197914.9145 | F196: -0.9967911327 | G196: 0.7572304808 | H196: 195484.6945 | I196: -1.112692203 | J196: 0.8152074756 | K196: 225493.8453 | L196: -0.9635898941 | M196: 0.6315224829 | N196: 231427.088 | O196: -0.498644505 | P196: 0.4961787706 | Q196: 340846.3588 | R196: -0.2342661101 | S196: -0.1883700369 | T196: 647012.7688 | U196: -0.5403002727 | V196: 1.206729458 | W196: 395930.6876 | X196: -1.306065547 | Y196: 2.070402995 | Z196: 296890.0675 | AA196: -0.6009191615 | AB196: 0.9710334474 | AC196: 188273.0818 | AD196: -1.317702511 | AE196: 2.384439188 | AF196: 182750.7741 | AG196: -0.1560645866 | AH196: 0.5214096283 | AI196: 309882.9007 | AJ196: -0.8297695989 | AK196: 1.016821887
A197: 2020-06-01 | B197: 162383.5435 | C197: 0.7476161137 | D197: 0.4023820775 | E197: 199680.1419 | F197: 0.8919122684 | G197: 2.117718247 | H197: 196640.8991 | I197: 0.591455289 | J197: 1.355182712 | K197: 226835.8595 | L197: 0.5951444811 | M197: 1.927845363 | N197: 235404.5514 | O197: 1.718668028 | P197: 2.354704151 | Q197: 343276.8867 | R197: 0.7130860677 | S197: 0.1340141979 | T197: 645642.7189 | U197: -0.2117500693 | V197: 1.160318418 | W197: 392214.0078 | X197: -0.9387197992 | Y197: 0.8293900754 | Z197: 297441.9001 | AA197: 0.1858710048 | AB197: 1.607784258 | AC197: 190484.9811 | AD197: 1.174835664 | AE197: 3.302956399 | AF197: 184912.9855 | AG197: 1.183147602 | AH197: 1.564551218 | AI197: 310422.6717 | AJ197: 0.1741854771 | AK197: 1.271401041
A198: 2020-07-01 | B198: 164077.8346 | C198: 1.043388413 | D198: 1.021747972 | E198: 203692.6712 | F198: 2.009478418 | G198: 3.967901357 | H198: 200029.2603 | I198: 1.72312128 | J198: 3.067696188 | K198: 228343.2517 | L198: 0.6645299558 | M198: 2.815122537 | N198: 237599.84 | O198: 0.9325599818 | P198: 3.475138973 | Q198: 348141.2151 | R198: 1.417027626 | S198: 1.96813053 | T198: 651150.618 | U198: 0.853087782 | V198: 3.165082229 | W198: 397662.7986 | X198: 1.389239192 | Y198: 2.273036819 | Z198: 303989.4373 | AA198: 2.20128275 | AB198: 3.269273423 | AC198: 192519.3937 | AD198: 1.068017345 | AE198: 3.627013572 | AF198: 185530.8313 | AG198: 0.3341278576 | AH198: 2.01370499 | AI198: 314572.6893 | AJ198: 1.33689257 | AK198: 2.849964521
A199: 2020-08-01 | B199: 167773.4044 | C199: 2.252327229 | D199: 3.08333756 | E199: 206119.7888 | F199: 1.191558609 | G199: 4.260720943 | H199: 203437.0944 | I199: 1.70366784 | J199: 3.966766682 | K199: 231330.1423 | L199: 1.308070433 | M199: 4.012467929 | N199: 240985.8389 | O199: 1.425084665 | P199: 4.611488695 | Q199: 353065.6988 | R199: 1.414507548 | S199: 4.227893438 | T199: 659468.3174 | U199: 1.277384857 | V199: 5.356232931 | W199: 406751.3814 | X199: 2.285499892 | Y199: 4.719863533 | Z199: 310720.7857 | AA199: 2.21433628 | AB199: 5.075579302 | AC199: 193259.4397 | AD199: 0.384400753 | AE199: 3.693852906 | AF199: 185887.6354 | AG199: 0.1923152465 | AH199: 2.5106393 | AI199: 319732.3952 | AJ199: 1.640226908 | AK199: 4.626610171
A200: 2020-09-01 | B200: 170089.044 | C200: 1.380218556 | D200: 3.631070412 | E200: 211325.1038 | F200: 2.525383443 | G200: 5.988128507 | H200: 207347.4113 | I200: 1.922125808 | J200: 4.911105252 | K200: 234853.1811 | L200: 1.52294845 | M200: 4.494440211 | N200: 243913.649 | O200: 1.214930359 | P200: 4.732982927 | Q200: 357289.761 | R200: 1.19639552 | S200: 5.439460418 | T200: 660640.8993 | U200: 0.1778071563 | V200: 4.510588585 | W200: 413051.4131 | X200: 1.548865478 | Y200: 6.515766238 | Z200: 316578.5253 | AA200: 1.885210065 | AB200: 6.663827386 | AC200: 197055.8619 | AD200: 1.964417444 | AE200: 4.764303067 | AF200: 185535.5372 | AG200: -0.1894145466 | AH200: 2.205342462 | AI200: 323978.8745 | AJ200: 1.328135446 | AK200: 5.441147622
A201: 2020-10-01 | B201: 174309.4615 | C201: 2.48129886 | D201: 5.298639233 | E201: 216494.1126 | F201: 2.445998468 | G201: 8.216008211 | H201: 212168.3988 | I201: 2.325077228 | J201: 6.415434923 | K201: 241209.4063 | L201: 2.706467592 | M201: 6.854331035 | N201: 248966.3416 | O201: 2.071508728 | P201: 6.17398192 | Q201: 360675.6563 | R201: 0.9476608749 | S201: 6.143404977 | T201: 664418.3878 | U201: 0.5717915059 | V201: 3.736840482 | W201: 417827.9765 | X201: 1.156408926 | Y201: 7.27177911 | Z201: 324532.8056 | AA201: 2.512577369 | AB201: 8.732596472 | AC201: 200543.2834 | AD201: 1.769762883 | AE201: 5.775703591 | AF201: 188186.8889 | AG201: 1.429026356 | AH201: 3.716666443 | AI201: 328971.8153 | AJ201: 1.541131591 | AK201: 6.340793524
A202: 2020-11-01 | B202: 175189.5151 | C202: 0.5048799868 | D202: 6.180345209 | E202: 222148.6723 | F202: 2.611876876 | G202: 10.99882565 | H202: 215392.2199 | I202: 1.519463399 | J202: 7.561150976 | K202: 245315.6696 | L202: 1.702364491 | M202: 8.45741031 | N202: 252971.3632 | O202: 1.608659851 | P202: 8.382287556 | Q202: 361316.8644 | R202: 0.1777797076 | S202: 6.092893468 | T202: 657947.1106 | U202: -0.9739762423 | V202: 1.622304925 | W202: 419946.1045 | X202: 0.5069377958 | Y202: 7.319971551 | Z202: 329359.2222 | AA202: 1.487189111 | AB202: 10.88775452 | AC202: 205814.6798 | AD202: 2.628557966 | AE202: 7.492869001 | AF202: 192350.8002 | AG202: 2.212646852 | AH202: 5.759752561 | AI202: 331317.2654 | AJ202: 0.7129638472 | AK202: 6.728249695
A203: 2020-12-01 | B203: 179778.3107 | C203: 2.619332323 | D203: 9.056857534 | E203: 225955.4939 | F203: 1.713636923 | G203: 12.32955775 | H203: 221507.7365 | I203: 2.839246733 | J203: 10.37066862 | K203: 249822.6681 | L203: 1.837224064 | M203: 10.45700922 | N203: 258350.3097 | O203: 2.126306523 | P203: 10.34031834 | Q203: 365189.7501 | R203: 1.071880668 | S203: 7.61460139 | T203: 665753.6106 | U203: 1.186493558 | V203: 2.332857744 | W203: 425502.9386 | X203: 1.323225535 | Y203: 8.171167495 | Z203: 335420.9439 | AA203: 1.840459084 | AB203: 12.26422951 | AC203: 209781.6383 | AD203: 1.927441961 | AE203: 9.307110447 | AF203: 195783.4856 | AG203: 1.78459637 | AH203: 7.483794345 | AI203: 336573.7787 | AJ203: 1.586549761 | AK203: 8.075435668
... 38 more rows

Sheet INTERACTIVE REGIONS CHARTS
C2: WALKER FRASER STEELE HPI (SCOTLAND) NATIONAL AND REGIONAL FORMATTED DATA FROM 2000
C3: A TRUE MEASURE OF HOUSE PRICE INFLATION
O4: =SERIES!$K$3 -> FEBRUARY 2024
O5: © Acadata Limited
O6: Walker Fraser Steele HPI (Scotland) clb/cms
Q8: Select Region(s)
Q11: North East
Q12: North West
Q13: East Midlands
Q14: West Midlands
Q15: Wales
Q16: Yorks & Humber
Q17: South West
Q18: East of England
Q19: South East
Q20: Greater London
Q21: Scotland
D29: To change the date range, click on the start and end dates below and select from the drop down lists, then click Reset Dates.
D31: Start Date | E31: 2005-01-01 | G31: End Date | H31: 2024-02-01
E32: =MATCH(E31,dates)+ROW(dates)-1 -> 12 | H32: =MATCH(H31,dates)+ROW(dates)-1 -> 241
Q38: Select Region(s)
Q41: North East
Q42: North West
Q43: East Midlands
Q44: West Midlands
Q45: Wales
Q46: Yorks & Humber
Q47: South West
Q48: East of England
Q49: South East
Q50: Greater London
Q51: Scotland
D58: To change the date range, click on the start and end dates below and select from the drop down lists, then click Reset Dates.
D60: Start Date | E60: 2005-01-01 | G60: End Date | H60: 2024-02-01
E61: =MATCH(E60,dates)+ROW(dates)-1 -> 12 | H61: =MATCH(H60,dates)+ROW(dates)-1 -> 241
Q65: Select Region(s)
Q68: North East
Q69: North West
Q70: East Midlands
Q71: West Midlands
Q72: Wales
Q73: Yorks & Humber
Q74: South West
Q75: East of England
Q76: South East
Q77: Greater London
Q78: Scotland
D85: To change the date range, click on the start and end dates below and select from the drop down lists, then click Reset Dates.
D87: Start Date | E87: 2020-01-01 | G87: End Date | H87: 2024-02-01
E88: =MATCH(E87,dates)+ROW(dates)-1 -> 192 | H88: =MATCH(H87,dates)+ROW(dates)-1 -> 241
